Workbook

Sheet Unicode
A1: 00 | J1: 
A2: 01 | B2:  | J2: 
A3: 02 | B3:  | J3: 
A4: 03 | B4:  | J4: 
A5: 04 | B5:  | J5: 
A6: 05 | B6:  | J6: 
A7: 06 | B7:  | J7: 
A8: 07 | B8:  | J8: 
A9: 08 | B9: 
A10: 09
A11: 0A
A12: 0B
A13: 0C
A14: 0D | J14: 
A15: 0E | B15:  | J15: 
A16: 0F | B16:  | J16: 
A17: 10 | B17:  | J17: 
A18: 11 | B18:  | J18: 
A19: 12 | B19:  | J19: 
A20: 13 | B20:  | J20: 
A21: 14 | B21:  | J21: 
A22: 15 | B22:  | J22: 
A23: 16 | B23:  | J23: 
A24: 17 | B24:  | J24: 
A25: 18 | B25:  | J25: 
A26: 19 | B26:  | J26: 
A27: 1A | B27:  | J27: 
A28: 1B | B28: 
A29: 1C
A30: 1D
A31: 1E
A32: 1F
A33: 20 | J33: !
A34: 21 | B34: ! | J34: "
A35: 22 | B35: " | J35: #
A36: 23 | B36: # | J36: $
A37: 24 | B37: $ | J37: %
A38: 25 | B38: % | J38: &
A39: 26 | B39: &
A40: 27 | B40: ' | J40: (
A41: 28 | B41: ( | J41: )
A42: 29 | B42: ) | J42: *
A43: 2A | B43: * | J43: +
A44: 2B | B44: + | J44: ,
A45: 2C | B45: , | J45: -
A46: 2D | B46: - | J46: .
A47: 2E | B47: . | J47: /
A48: 2F | B48: / | J48: 0
A49: 30 | B49: 0 | J49: 1
A50: 31 | B50: 1 | J50: 2
A51: 32 | B51: 2 | J51: 3
A52: 33 | B52: 3 | J52: 4
A53: 34 | B53: 4 | J53: 5
A54: 35 | B54: 5 | J54: 6
A55: 36 | B55: 6 | J55: 7
A56: 37 | B56: 7 | J56: 8
A57: 38 | B57: 8 | J57: 9
A58: 39 | B58: 9 | J58: :
A59: 3A | B59: : | J59: ;
A60: 3B | B60: ; | J60: <
A61: 3C | B61: < | J61: =
A62: 3D | B62: = | J62: >
A63: 3E | B63: > | J63: ?
A64: 3F | B64: ? | J64: @
A65: 40 | B65: @ | J65: A
A66: 41 | B66: A | J66: B
A67: 42 | B67: B | J67: C
A68: 43 | B68: C | J68: D
A69: 44 | B69: D | J69: E
A70: 45 | B70: E | J70: F
A71: 46 | B71: F | J71: G
A72: 47 | B72: G | J72: H
A73: 48 | B73: H | J73: I
A74: 49 | B74: I | J74: J
A75: 4A | B75: J | J75: K
A76: 4B | B76: K | J76: L
A77: 4C | B77: L | J77: M
A78: 4D | B78: M | J78: N
A79: 4E | B79: N | J79: O
A80: 4F | B80: O | J80: P
A81: 50 | B81: P | J81: Q
A82: 51 | B82: Q | J82: R
A83: 52 | B83: R | J83: S
A84: 53 | B84: S | J84: T
A85: 54 | B85: T | J85: U
A86: 55 | B86: U | J86: V
A87: 56 | B87: V | J87: W
A88: 57 | B88: W | J88: X
A89: 58 | B89: X | J89: Y
A90: 59 | B90: Y | J90: Z
A91: 5A | B91: Z | J91: [
A92: 5B | B92: [ | J92: \
A93: 5C | B93: \ | J93: ]
A94: 5D | B94: ] | J94: ^
A95: 5E | B95: ^ | J95: _
A96: 5F | B96: _ | J96: `
A97: 60 | B97: ` | J97: a
A98: 61 | B98: a | J98: b
A99: 62 | B99: b | J99: c
A100: 63 | B100: c | J100: d
A101: 64 | B101: d | J101: e
A102: 65 | B102: e | J102: f
A103: 66 | B103: f | J103: g
A104: 67 | B104: g | J104: h
A105: 68 | B105: h | J105: i
A106: 69 | B106: i | J106: j
A107: 6A | B107: j | J107: k
A108: 6B | B108: k | J108: l
A109: 6C | B109: l | J109: m
A110: 6D | B110: m | J110: n
A111: 6E | B111: n | J111: o
A112: 6F | B112: o | J112: p
A113: 70 | B113: p | J113: q
A114: 71 | B114: q | J114: r
A115: 72 | B115: r | J115: s
A116: 73 | B116: s | J116: t
A117: 74 | B117: t | J117: u
A118: 75 | B118: u | J118: v
A119: 76 | B119: v | J119: w
A120: 77 | B120: w | J120: x
A121: 78 | B121: x | J121: y
A122: 79 | B122: y | J122: z
A123: 7A | B123: z | J123: {
A124: 7B | B124: { | J124: |
A125: 7C | B125: | | J125: }
A126: 7D | B126: } | J126: ~
A127: 7E | B127: ~ | J127: 
A128: 7F | B128:  | J128: 
A129: C280 | B129:  | J129: 
A130: C281 | B130:  | J130: 
A131: C282 | B131:  | J131: 
A132: C283 | B132:  | J132: 
A133: C284 | B133: 
A134: C285 | J134: 
A135: C286 | B135:  | J135: 
A136: C287 | B136:  | J136: 
A137: C288 | B137:  | J137: 
A138: C289 | B138:  | J138: 
A139: C28A | B139:  | J139: 
A140: C28B | B140:  | J140: 
A141: C28C | B141:  | J141: 
A142: C28D | B142:  | J142: 
A143: C28E | B143:  | J143: 
A144: C28F | B144:  | J144: 
A145: C290 | B145:  | J145: 
A146: C291 | B146:  | J146: 
A147: C292 | B147:  | J147: 
A148: C293 | B148:  | J148: 
A149: C294 | B149:  | J149: 
A150: C295 | B150:  | J150: 
A151: C296 | B151:  | J151: 
A152: C297 | B152:  | J152: 
A153: C298 | B153:  | J153: 
A154: C299 | B154:  | J154: 
A155: C29A | B155:  | J155: 
A156: C29B | B156:  | J156: 
A157: C29C | B157:  | J157: 
A158: C29D | B158:  | J158: 
A159: C29E | B159:  | J159: 
A160: C29F | B160: 
A161: C2A0 | J161: ¡
A162: C2A1 | B162: ¡ | J162: ¢
A163: C2A2 | B163: ¢ | J163: £
A164: C2A3 | B164: £ | J164: ¤
A165: C2A4 | B165: ¤ | J165: ¥
A166: C2A5 | B166: ¥ | J166: ¦
A167: C2A6 | B167: ¦ | J167: §
A168: C2A7 | B168: § | J168: ¨
A169: C2A8 | B169: ¨ | J169: ©
A170: C2A9 | B170: © | J170: ª
A171: C2AA | B171: ª | J171: «
A172: C2AB | B172: « | J172: ¬
A173: C2AC | B173: ¬ | J173: ­
A174: C2AD | B174: ­ | J174: ®
A175: C2AE | B175: ® | J175: ¯
A176: C2AF | B176: ¯ | J176: °
A177: C2B0 | B177: ° | J177: ±
A178: C2B1 | B178: ± | J178: ²
A179: C2B2 | B179: ² | J179: ³
A180: C2B3 | B180: ³ | J180: ´
A181: C2B4 | B181: ´ | J181: µ
A182: C2B5 | B182: µ | J182: ¶
A183: C2B6 | B183: ¶ | J183: ·
A184: C2B7 | B184: · | J184: ¸
A185: C2B8 | B185: ¸ | J185: ¹
A186: C2B9 | B186: ¹ | J186: º
A187: C2BA | B187: º | J187: »
A188: C2BB | B188: » | J188: ¼
A189: C2BC | B189: ¼ | J189: ½
A190: C2BD | B190: ½ | J190: ¾
A191: C2BE | B191: ¾ | J191: ¿
A192: C2BF | B192: ¿ | J192: À
A193: C380 | B193: À | J193: Á
A194: C381 | B194: Á | J194: Â
A195: C382 | B195: Â | J195: Ã
A196: C383 | B196: Ã | J196: Ä
A197: C384 | B197: Ä | J197: Å
A198: C385 | B198: Å | J198: Æ
A199: C386 | B199: Æ | J199: Ç
A200: C387 | B200: Ç | J200: È
... 2189 more rows

Sheet fontmap
A1: EFBC80 | B1: ＀ | E1: =CODE(C1) -> 32 | J1: EFBE9C | K1: =HEX2DEC(VLOOKUP(J1,DTE!$A$1:$B$256,2,FALSE)) -> 5 | L1: =VLOOKUP(J1,$O$1:$P$512,2,FALSE) -> 126 | O1: EFBC91 | P1: 1 | S1: input | T1: C:\hax\7th Dragon 2020-II\Loose Files\
A2: EFBC81 | B2: ！ | C2: ! | E2: =CODE(C2) -> 33 | J2: EFBE9C | K2: =HEX2DEC(VLOOKUP(J2,DTE!$A$1:$B$256,2,FALSE)) -> 5 | L2: =VLOOKUP(J2,$O$1:$P$512,2,FALSE) -> 126 | O2: EFBC92 | P2: =P1+1 -> 2 | S2: output | T2: C:\hax\7th Dragon 2020-II\CPK\
A3: EFBC82 | B3: ＂ | C3: " | E3: 34 | J3: EFBE9C | K3: =HEX2DEC(VLOOKUP(J3,DTE!$A$1:$B$256,2,FALSE)) -> 5 | L3: 126 | O3: EFBC93 | P3: =P2+1 -> 3 | S3: temp | T3: C:\hax\7th Dragon 2020-II\Edited Files\
A4: EFBC83 | B4: ＃ | C4: # | E4: 35 | J4: EFBE9C | K4: =HEX2DEC(VLOOKUP(J4,DTE!$A$1:$B$256,2,FALSE)) -> 5 | L4: 126 | O4: EFBC94 | P4: 4
A5: EFBC84 | B5: ＄ | C5: $ | E5: 36 | J5: EFBE9C | K5: =HEX2DEC(VLOOKUP(J5,DTE!$A$1:$B$256,2,FALSE)) -> 5 | L5: 126 | O5: EFBC95 | P5: 5
A6: EFBC85 | B6: ％ | C6: % | E6: 37 | J6: EFBE9C | K6: =HEX2DEC(VLOOKUP(J6,DTE!$A$1:$B$256,2,FALSE)) -> 5 | L6: 126 | O6: EFBC96 | P6: 6
A7: EFBC86 | B7: ＆ | C7: & | E7: 38 | J7: EFBE9C | K7: =HEX2DEC(VLOOKUP(J7,DTE!$A$1:$B$256,2,FALSE)) -> 5 | L7: 126 | O7: EFBC97 | P7: 7
A8: EFBC87 | B8: ＇ | C8: ' | E8: 39 | J8: EFBE9C | K8: =HEX2DEC(VLOOKUP(J8,DTE!$A$1:$B$256,2,FALSE)) -> 5 | L8: 126 | O8: EFBC98 | P8: 8
A9: EFBC88 | B9: （ | C9: ( | E9: 40 | J9: EFBE9C | K9: =HEX2DEC(VLOOKUP(J9,DTE!$A$1:$B$256,2,FALSE)) -> 5 | L9: 126 | O9: EFBC99 | P9: 9
A10: EFBC89 | B10: ） | C10: ) | E10: 41 | J10: EFBE9C | K10: =HEX2DEC(VLOOKUP(J10,DTE!$A$1:$B$256,2,FALSE)) -> 5 | L10: 126 | O10: EFBCA1 | P10: 10
A11: EFBC8A | B11: ＊ | C11: * | E11: 42 | J11: EFBE9C | K11: =HEX2DEC(VLOOKUP(J11,DTE!$A$1:$B$256,2,FALSE)) -> 5 | L11: 126 | O11: EFBCA2 | P11: 11
A12: EFBC8B | B12: ＋ | C12: + | E12: 43 | J12: EFBE9C | K12: =HEX2DEC(VLOOKUP(J12,DTE!$A$1:$B$256,2,FALSE)) -> 5 | L12: 126 | O12: EFBCA3 | P12: 12
A13: EFBC8C | B13: ， | C13: , | E13: 44 | J13: EFBE9C | K13: =HEX2DEC(VLOOKUP(J13,DTE!$A$1:$B$256,2,FALSE)) -> 5 | L13: 126 | O13: EFBCA4 | P13: 13
A14: EFBC8D | B14: － | C14: - | E14: 45 | J14: EFBE9C | K14: =HEX2DEC(VLOOKUP(J14,DTE!$A$1:$B$256,2,FALSE)) -> 5 | L14: 126 | O14: EFBCA5 | P14: 14
A15: EFBC8E | B15: ． | C15: . | E15: 46 | J15: EFBE9C | K15: =HEX2DEC(VLOOKUP(J15,DTE!$A$1:$B$256,2,FALSE)) -> 5 | L15: 126 | O15: EFBCA6 | P15: 15
A16: EFBC8F | B16: ／ | C16: / | E16: 47 | J16: EFBE9C | K16: =HEX2DEC(VLOOKUP(J16,DTE!$A$1:$B$256,2,FALSE)) -> 5 | L16: 126 | O16: EFBCA7 | P16: 16
A17: EFBC90 | B17: ０ | C17: 0 | E17: 48 | J17: EFBE9C | K17: =HEX2DEC(VLOOKUP(J17,DTE!$A$1:$B$256,2,FALSE)) -> 5 | L17: 126 | O17: EFBCA8 | P17: 17
A18: EFBC91 | B18: １ | C18: 1 | E18: 49 | J18: EFBE9C | K18: =HEX2DEC(VLOOKUP(J18,DTE!$A$1:$B$256,2,FALSE)) -> 5 | L18: 126 | O18: EFBCA9 | P18: 18
A19: EFBC92 | B19: ２ | C19: 2 | E19: 50 | J19: EFBE9C | K19: =HEX2DEC(VLOOKUP(J19,DTE!$A$1:$B$256,2,FALSE)) -> 5 | L19: 126 | O19: EFBCAA | P19: 19
A20: EFBC93 | B20: ３ | C20: 3 | E20: 51 | J20: EFBE9C | K20: =HEX2DEC(VLOOKUP(J20,DTE!$A$1:$B$256,2,FALSE)) -> 5 | L20: 126 | O20: EFBCAB | P20: 20
A21: EFBC94 | B21: ４ | C21: 4 | E21: 52 | J21: EFBE9C | K21: =HEX2DEC(VLOOKUP(J21,DTE!$A$1:$B$256,2,FALSE)) -> 5 | L21: 126 | O21: EFBCAC | P21: 21
A22: EFBC95 | B22: ５ | C22: 5 | E22: 53 | J22: EFBE9C | K22: =HEX2DEC(VLOOKUP(J22,DTE!$A$1:$B$256,2,FALSE)) -> 5 | L22: 126 | O22: EFBCAD | P22: 22
A23: EFBC96 | B23: ６ | C23: 6 | E23: 54 | J23: EFBE9C | K23: =HEX2DEC(VLOOKUP(J23,DTE!$A$1:$B$256,2,FALSE)) -> 5 | L23: 126 | O23: EFBCAE | P23: 23
A24: EFBC97 | B24: ７ | C24: 7 | E24: 55 | J24: EFBE9C | K24: =HEX2DEC(VLOOKUP(J24,DTE!$A$1:$B$256,2,FALSE)) -> 5 | L24: 126 | O24: EFBCAF | P24: 24
A25: EFBC98 | B25: ８ | C25: 8 | E25: 56 | J25: EFBE9C | K25: =HEX2DEC(VLOOKUP(J25,DTE!$A$1:$B$256,2,FALSE)) -> 5 | L25: 126 | O25: EFBCB0 | P25: 25
A26: EFBC99 | B26: ９ | C26: 9 | E26: 57 | J26: EFBE9C | K26: =HEX2DEC(VLOOKUP(J26,DTE!$A$1:$B$256,2,FALSE)) -> 5 | L26: 126 | O26: EFBCB1 | P26: 26
A27: EFBC9A | B27: ： | C27: : | E27: 58 | J27: EFBE9C | K27: =HEX2DEC(VLOOKUP(J27,DTE!$A$1:$B$256,2,FALSE)) -> 5 | L27: 126 | O27: EFBCB2 | P27: 27
A28: EFBC9B | B28: ； | C28: ; | E28: 59 | J28: EFBE9C | K28: =HEX2DEC(VLOOKUP(J28,DTE!$A$1:$B$256,2,FALSE)) -> 5 | L28: 126 | O28: EFBCB3 | P28: 28
A29: EFBC9C | B29: ＜ | C29: < | E29: 60 | J29: EFBE9C | K29: =HEX2DEC(VLOOKUP(J29,DTE!$A$1:$B$256,2,FALSE)) -> 5 | L29: 126 | O29: EFBCB4 | P29: 29
A30: EFBC9D | B30: ＝ | C30: = | E30: 61 | J30: EFBE9C | K30: =HEX2DEC(VLOOKUP(J30,DTE!$A$1:$B$256,2,FALSE)) -> 5 | L30: 126 | O30: EFBCB5 | P30: 30
A31: EFBC9E | B31: ＞ | C31: > | E31: 62 | J31: EFBE9C | K31: =HEX2DEC(VLOOKUP(J31,DTE!$A$1:$B$256,2,FALSE)) -> 5 | L31: 126 | O31: EFBCB6 | P31: 31
A32: EFBC9F | B32: ？ | C32: ? | E32: 63 | J32: EFBE9C | K32: =HEX2DEC(VLOOKUP(J32,DTE!$A$1:$B$256,2,FALSE)) -> 5 | L32: 126 | O32: EFBCB7 | P32: 32
A33: EFBCA0 | B33: ＠ | C33: @ | E33: 64 | I33: ! | J33: EFBC81 | K33: =HEX2DEC(VLOOKUP(J33,DTE!$A$1:$B$256,2,FALSE)) -> 4 | L33: 137 | O33: EFBCB8 | P33: 33
A34: EFBCA1 | B34: Ａ | C34: A | E34: 65 | I34: " | J34: EFBC82 | K34: =HEX2DEC(VLOOKUP(J34,DTE!$A$1:$B$256,2,FALSE)) -> 5 | L34: 138 | O34: EFBCB9 | P34: 34
A35: EFBCA2 | B35: Ｂ | C35: B | E35: 66 | I35: # | J35: EFBC83 | K35: =HEX2DEC(VLOOKUP(J35,DTE!$A$1:$B$256,2,FALSE)) -> 11 | L35: 168 | O35: EFBCBA | P35: 35
A36: EFBCA3 | B36: Ｃ | C36: C | E36: 67 | H36: ☆ | I36: $ | J36: EFBEB8 | K36: =HEX2DEC(VLOOKUP(J36,DTE!$A$1:$B$256,2,FALSE)) -> 13 | L36: 177 | O36: EFBC80 | P36: 36
A37: EFBCA4 | B37: Ｄ | C37: D | E37: 68 | I37: % | J37: EFBC85 | K37: =HEX2DEC(VLOOKUP(J37,DTE!$A$1:$B$256,2,FALSE)) -> 12 | L37: 163 | O37: EFBD81 | P37: 37
A38: EFBCA5 | B38: Ｅ | C38: E | E38: 69 | I38: & | J38: EFBC86 | K38: =HEX2DEC(VLOOKUP(J38,DTE!$A$1:$B$256,2,FALSE)) -> 11 | L38: 170 | O38: EFBD82 | P38: 38
A39: EFBCA6 | B39: Ｆ | C39: F | E39: 70 | I39: ' | J39: EFBC87 | K39: =HEX2DEC(VLOOKUP(J39,DTE!$A$1:$B$256,2,FALSE)) -> 3 | L39: 140 | O39: EFBD83 | P39: 39
A40: EFBCA7 | B40: Ｇ | C40: G | E40: 71 | I40: ( | J40: EFBC88 | K40: =HEX2DEC(VLOOKUP(J40,DTE!$A$1:$B$256,2,FALSE)) -> 7 | L40: 195 | O40: EFBD84 | P40: 40
A41: EFBCA8 | B41: Ｈ | C41: H | E41: 72 | I41: ) | J41: EFBC89 | K41: =HEX2DEC(VLOOKUP(J41,DTE!$A$1:$B$256,2,FALSE)) -> 4 | L41: 196 | O41: EFBD85 | P41: 41
A42: EFBCA9 | B42: Ｉ | C42: I | E42: 73 | I42: * | J42: EFBC8A | K42: =HEX2DEC(VLOOKUP(J42,DTE!$A$1:$B$256,2,FALSE)) -> 9 | L42: 172 | O42: EFBD86 | P42: 42
A43: EFBCAA | B43: Ｊ | C43: J | E43: 74 | I43: + | J43: EFBC8B | K43: =HEX2DEC(VLOOKUP(J43,DTE!$A$1:$B$256,2,FALSE)) -> 10 | L43: 145 | O43: EFBD87 | P43: 43
A44: EFBCAB | B44: Ｋ | C44: K | E44: 75 | I44: , | J44: EFBC8C | K44: =HEX2DEC(VLOOKUP(J44,DTE!$A$1:$B$256,2,FALSE)) -> 3 | L44: 131 | O44: EFBD88 | P44: 44
A45: EFBCAC | B45: Ｌ | C45: L | E45: 76 | I45: - | J45: EFBC8D | K45: =HEX2DEC(VLOOKUP(J45,DTE!$A$1:$B$256,2,FALSE)) -> 6 | L45: 142 | O45: EFBD89 | P45: 45
A46: EFBCAD | B46: Ｍ | C46: M | E46: 77 | I46: . | J46: EFBC8E | K46: =HEX2DEC(VLOOKUP(J46,DTE!$A$1:$B$256,2,FALSE)) -> 4 | L46: 132 | O46: EFBD8A | P46: 46
A47: EFBCAE | B47: Ｎ | C47: N | E47: 78 | I47: / | J47: EFBC8F | K47: =HEX2DEC(VLOOKUP(J47,DTE!$A$1:$B$256,2,FALSE)) -> 12 | L47: 190 | O47: EFBD8B | P47: 47
A48: EFBCAF | B48: Ｏ | C48: O | E48: 79 | I48: 0 | J48: EFBC90 | K48: =HEX2DEC(VLOOKUP(J48,DTE!$A$1:$B$256,2,FALSE)) -> 9 | L48: 127 | O48: EFBD8C | P48: 48
A49: EFBCB0 | B49: Ｐ | C49: P | E49: 80 | I49: 1 | J49: EFBC91 | K49: =HEX2DEC(VLOOKUP(J49,DTE!$A$1:$B$256,2,FALSE)) -> 6 | L49: 1 | O49: EFBD8D | P49: 49
A50: EFBCB1 | B50: Ｑ | C50: Q | E50: 81 | I50: 2 | J50: EFBC92 | K50: =HEX2DEC(VLOOKUP(J50,DTE!$A$1:$B$256,2,FALSE)) -> 9 | L50: 2 | O50: EFBD8E | P50: 50
A51: EFBCB2 | B51: Ｒ | C51: R | E51: 82 | I51: 3 | J51: EFBC93 | K51: =HEX2DEC(VLOOKUP(J51,DTE!$A$1:$B$256,2,FALSE)) -> 10 | L51: 3 | O51: EFBD8F | P51: 51
A52: EFBCB3 | B52: Ｓ | C52: S | E52: 83 | I52: 4 | J52: EFBC94 | K52: =HEX2DEC(VLOOKUP(J52,DTE!$A$1:$B$256,2,FALSE)) -> 10 | L52: 4 | O52: EFBD90 | P52: 52
A53: EFBCB4 | B53: Ｔ | C53: T | E53: 84 | I53: 5 | J53: EFBC95 | K53: =HEX2DEC(VLOOKUP(J53,DTE!$A$1:$B$256,2,FALSE)) -> 10 | L53: 5 | O53: EFBD91 | P53: 53
A54: EFBCB5 | B54: Ｕ | C54: U | E54: 85 | I54: 6 | J54: EFBC96 | K54: =HEX2DEC(VLOOKUP(J54,DTE!$A$1:$B$256,2,FALSE)) -> 9 | L54: 6 | O54: EFBD92 | P54: 54
A55: EFBCB6 | B55: Ｖ | C55: V | E55: 86 | I55: 7 | J55: EFBC97 | K55: =HEX2DEC(VLOOKUP(J55,DTE!$A$1:$B$256,2,FALSE)) -> 9 | L55: 7 | O55: EFBD93 | P55: 55
A56: EFBCB7 | B56: Ｗ | C56: W | E56: 87 | I56: 8 | J56: EFBC98 | K56: =HEX2DEC(VLOOKUP(J56,DTE!$A$1:$B$256,2,FALSE)) -> 10 | L56: 8 | O56: EFBD94 | P56: 56
A57: EFBCB8 | B57: Ｘ | C57: X | E57: 88 | I57: 9 | J57: EFBC99 | K57: =HEX2DEC(VLOOKUP(J57,DTE!$A$1:$B$256,2,FALSE)) -> 10 | L57: 9 | O57: EFBD95 | P57: 57
A58: EFBCB9 | B58: Ｙ | C58: Y | E58: 89 | I58: : | J58: EFBC9A | K58: =HEX2DEC(VLOOKUP(J58,DTE!$A$1:$B$256,2,FALSE)) -> 3 | L58: 134 | O58: EFBD96 | P58: 58
A59: EFBCBA | B59: Ｚ | C59: Z | E59: 90 | I59: ; | J59: EFBC9B | K59: =HEX2DEC(VLOOKUP(J59,DTE!$A$1:$B$256,2,FALSE)) -> 3 | L59: 135 | O59: EFBD97 | P59: 59
A60: EFBCBB | B60: ［ | C60: [ | E60: 91 | I60: < | J60: EFBC9C | K60: =HEX2DEC(VLOOKUP(J60,DTE!$A$1:$B$256,2,FALSE)) -> 9 | L60: 152 | O60: EFBD98 | P60: 60
A61: EFBCBC | B61: ＼ | C61: \ | E61: 92 | I61: = | J61: EFBC9D | K61: =HEX2DEC(VLOOKUP(J61,DTE!$A$1:$B$256,2,FALSE)) -> 10 | L61: 150 | O61: EFBD99 | P61: 61
A62: EFBCBD | B62: ］ | C62: ] | E62: 93 | I62: > | J62: EFBC9E | K62: =HEX2DEC(VLOOKUP(J62,DTE!$A$1:$B$256,2,FALSE)) -> 10 | L62: 153 | O62: EFBD9A | P62: 62
A63: EFBCBE | B63: ＾ | C63: ^ | E63: 94 | I63: ? | J63: EFBC9F | K63: =HEX2DEC(VLOOKUP(J63,DTE!$A$1:$B$256,2,FALSE)) -> 8 | L63: 136 | O63: EFBD80 | P63: 63
A64: EFBCBF | B64: ＿ | C64: _ | E64: 95 | I64: @ | J64: EFBCA0 | K64: =HEX2DEC(VLOOKUP(J64,DTE!$A$1:$B$256,2,FALSE)) -> 10 | L64: 174 | O64: EFBD9C | P64: 64
A65: EFBD80 | B65: ｀ | C65: ` | E65: 96 | I65: A | J65: EFBCA1 | K65: =HEX2DEC(VLOOKUP(J65,DTE!$A$1:$B$256,2,FALSE)) -> 10 | L65: 10 | O65: EFBD9F | P65: 65
A66: EFBD81 | B66: ａ | C66: a | E66: =CODE(C66) -> 97 | I66: B | J66: EFBCA2 | K66: =HEX2DEC(VLOOKUP(J66,DTE!$A$1:$B$256,2,FALSE)) -> 8 | L66: =VLOOKUP(J66,$O$1:$P$512,2,FALSE) -> 11 | O66: EFBDA0 | P66: 66
A67: EFBD82 | B67: ｂ | C67: b | E67: 98 | I67: C | J67: EFBCA3 | K67: =HEX2DEC(VLOOKUP(J67,DTE!$A$1:$B$256,2,FALSE)) -> 9 | L67: 12 | O67: EFBDA1 | P67: =P66+1 -> 67
A68: EFBD83 | B68: ｃ | C68: c | E68: 99 | I68: D | J68: EFBCA4 | K68: =HEX2DEC(VLOOKUP(J68,DTE!$A$1:$B$256,2,FALSE)) -> 10 | L68: 13 | O68: EFBDA2 | P68: 68
A69: EFBD84 | B69: ｄ | C69: d | E69: 100 | I69: E | J69: EFBCA5 | K69: =HEX2DEC(VLOOKUP(J69,DTE!$A$1:$B$256,2,FALSE)) -> 8 | L69: 14 | O69: EFBDA3 | P69: 69
A70: EFBD85 | B70: ｅ | C70: e | E70: 101 | I70: F | J70: EFBCA6 | K70: =HEX2DEC(VLOOKUP(J70,DTE!$A$1:$B$256,2,FALSE)) -> 8 | L70: 15 | O70: EFBDA4 | P70: 70
A71: EFBD86 | B71: ｆ | C71: f | E71: 102 | I71: G | J71: EFBCA7 | K71: =HEX2DEC(VLOOKUP(J71,DTE!$A$1:$B$256,2,FALSE)) -> 9 | L71: 16 | O71: EFBDA5 | P71: 71
A72: EFBD87 | B72: ｇ | C72: g | E72: 103 | I72: H | J72: EFBCA8 | K72: =HEX2DEC(VLOOKUP(J72,DTE!$A$1:$B$256,2,FALSE)) -> 9 | L72: 17 | O72: EFBDA6 | P72: 72
A73: EFBD88 | B73: ｈ | C73: h | E73: 104 | I73: I | J73: EFBCA9 | K73: =HEX2DEC(VLOOKUP(J73,DTE!$A$1:$B$256,2,FALSE)) -> 4 | L73: 18 | O73: EFBDA7 | P73: 73
A74: EFBD89 | B74: ｉ | C74: i | E74: 105 | I74: J | J74: EFBCAA | K74: =HEX2DEC(VLOOKUP(J74,DTE!$A$1:$B$256,2,FALSE)) -> 6 | L74: 19 | O74: EFBDA8 | P74: 74
A75: EFBD8A | B75: ｊ | C75: j | E75: 106 | I75: K | J75: EFBCAB | K75: =HEX2DEC(VLOOKUP(J75,DTE!$A$1:$B$256,2,FALSE)) -> 9 | L75: 20 | O75: EFBDA9 | P75: 75
A76: EFBD8B | B76: ｋ | C76: k | E76: 107 | I76: L | J76: EFBCAC | K76: =HEX2DEC(VLOOKUP(J76,DTE!$A$1:$B$256,2,FALSE)) -> 8 | L76: 21 | O76: EFBDAA | P76: 76
A77: EFBD8C | B77: ｌ | C77: l | E77: 108 | I77: M | J77: EFBCAD | K77: =HEX2DEC(VLOOKUP(J77,DTE!$A$1:$B$256,2,FALSE)) -> 10 | L77: 22 | O77: EFBDAB | P77: 77
A78: EFBD8D | B78: ｍ | C78: m | E78: 109 | I78: N | J78: EFBCAE | K78: =HEX2DEC(VLOOKUP(J78,DTE!$A$1:$B$256,2,FALSE)) -> 9 | L78: 23 | O78: EFBDAC | P78: 78
A79: EFBD8E | B79: ｎ | C79: n | E79: 110 | I79: O | J79: EFBCAF | K79: =HEX2DEC(VLOOKUP(J79,DTE!$A$1:$B$256,2,FALSE)) -> 10 | L79: 24 | O79: EFBDAD | P79: 79
A80: EFBD8F | B80: ｏ | C80: o | E80: 111 | I80: P | J80: EFBCB0 | K80: =HEX2DEC(VLOOKUP(J80,DTE!$A$1:$B$256,2,FALSE)) -> 8 | L80: 25 | O80: EFBDAE | P80: 80
A81: EFBD90 | B81: ｐ | C81: p | E81: 112 | I81: Q | J81: EFBCB1 | K81: =HEX2DEC(VLOOKUP(J81,DTE!$A$1:$B$256,2,FALSE)) -> 10 | L81: 26 | O81: EFBDAF | P81: 81
A82: EFBD91 | B82: ｑ | C82: q | E82: 113 | I82: R | J82: EFBCB2 | K82: =HEX2DEC(VLOOKUP(J82,DTE!$A$1:$B$256,2,FALSE)) -> 9 | L82: 27 | O82: EFBDB0 | P82: 82
A83: EFBD92 | B83: ｒ | C83: r | E83: 114 | I83: S | J83: EFBCB3 | K83: =HEX2DEC(VLOOKUP(J83,DTE!$A$1:$B$256,2,FALSE)) -> 8 | L83: 28 | O83: EFBDB1 | P83: 83
A84: EFBD93 | B84: ｓ | C84: s | E84: 115 | I84: T | J84: EFBCB4 | K84: =HEX2DEC(VLOOKUP(J84,DTE!$A$1:$B$256,2,FALSE)) -> 8 | L84: 29 | O84: EFBDB2 | P84: 84
A85: EFBD94 | B85: ｔ | C85: t | E85: 116 | I85: U | J85: EFBCB5 | K85: =HEX2DEC(VLOOKUP(J85,DTE!$A$1:$B$256,2,FALSE)) -> 8 | L85: 30 | O85: EFBDB3 | P85: 85
A86: EFBD95 | B86: ｕ | C86: u | E86: 117 | I86: V | J86: EFBCB6 | K86: =HEX2DEC(VLOOKUP(J86,DTE!$A$1:$B$256,2,FALSE)) -> 10 | L86: 31 | O86: EFBDB4 | P86: 86
A87: EFBD96 | B87: ｖ | C87: v | E87: 118 | I87: W | J87: EFBCB7 | K87: =HEX2DEC(VLOOKUP(J87,DTE!$A$1:$B$256,2,FALSE)) -> 12 | L87: 32 | O87: EFBDB5 | P87: 87
A88: EFBD97 | B88: ｗ | C88: w | E88: 119 | I88: X | J88: EFBCB8 | K88: =HEX2DEC(VLOOKUP(J88,DTE!$A$1:$B$256,2,FALSE)) -> 9 | L88: 33 | O88: EFBDB6 | P88: 88
A89: EFBD98 | B89: ｘ | C89: x | E89: 120 | I89: Y | J89: EFBCB9 | K89: =HEX2DEC(VLOOKUP(J89,DTE!$A$1:$B$256,2,FALSE)) -> 9 | L89: 34 | O89: EFBDB7 | P89: 89
A90: EFBD99 | B90: ｙ | C90: y | E90: 121 | I90: Z | J90: EFBCBA | K90: =HEX2DEC(VLOOKUP(J90,DTE!$A$1:$B$256,2,FALSE)) -> 9 | L90: 35 | O90: EFBDB8 | P90: 90
A91: EFBD9A | B91: ｚ | C91: z | E91: 122 | I91: [ | J91: EFBCBB | K91: =HEX2DEC(VLOOKUP(J91,DTE!$A$1:$B$256,2,FALSE)) -> 7 | L91: 201 | O91: EFBDB9 | P91: 91
A92: EFBD9B | B92: ｛ | C92: { | E92: 123 | I92: \ | J92: EFBCBC | K92: =HEX2DEC(VLOOKUP(J92,DTE!$A$1:$B$256,2,FALSE)) -> 12 | L92: 191 | O92: EFBDBA | P92: 92
A93: EFBD9C | B93: ｜ | C93: | | E93: 124 | I93: ] | J93: EFBCBD | K93: =HEX2DEC(VLOOKUP(J93,DTE!$A$1:$B$256,2,FALSE)) -> 4 | L93: 202 | O93: EFBDBB | P93: 93
A94: EFBD9D | B94: ｝ | C94: } | E94: 125 | I94: ^ | J94: EFBCBE | K94: =HEX2DEC(VLOOKUP(J94,DTE!$A$1:$B$256,2,FALSE)) -> 6 | L94: 171 | O94: EFBDBC | P94: 94
A95: EFBD9E | B95: ～ | C95: ~ | E95: 126 | I95: _ | J95: EFBCBF | K95: =HEX2DEC(VLOOKUP(J95,DTE!$A$1:$B$256,2,FALSE)) -> 12 | L95: 144 | O95: EFBDBD | P95: 95
A96: EFBD9F | B96: ｟ | I96: ` | J96: EFBEB8 | K96: =HEX2DEC(VLOOKUP(J96,DTE!$A$1:$B$256,2,FALSE)) -> 13 | L96: 177 | O96: EFBDBE | P96: 96
A97: EFBDA0 | B97: ｠ | I97: a | J97: EFBD81 | K97: =HEX2DEC(VLOOKUP(J97,DTE!$A$1:$B$256,2,FALSE)) -> 8 | L97: 37 | O97: EFBDBF | P97: 97
A98: EFBDA1 | B98: ｡ | C98: . | E98: 46 | I98: b | J98: EFBD82 | K98: =HEX2DEC(VLOOKUP(J98,DTE!$A$1:$B$256,2,FALSE)) -> 8 | L98: 38 | O98: EFBE80 | P98: 98
A99: EFBDA2 | B99: ｢ | C99: " | E99: 34 | I99: c | J99: EFBD83 | K99: =HEX2DEC(VLOOKUP(J99,DTE!$A$1:$B$256,2,FALSE)) -> 8 | L99: 39 | O99: EFBE81 | P99: 99
A100: EFBDA3 | B100: ｣ | C100: " | E100: 34 | I100: d | J100: EFBD84 | K100: =HEX2DEC(VLOOKUP(J100,DTE!$A$1:$B$256,2,FALSE)) -> 8 | L100: 40 | O100: EFBE82 | P100: 100
A101: EFBDA4 | B101: ､ | C101: ` | E101: 96 | I101: e | J101: EFBD85 | K101: =HEX2DEC(VLOOKUP(J101,DTE!$A$1:$B$256,2,FALSE)) -> 8 | L101: 41 | O101: EFBE83 | P101: 101
A102: EFBDA5 | B102: ･ | I102: f | J102: EFBD86 | K102: =HEX2DEC(VLOOKUP(J102,DTE!$A$1:$B$256,2,FALSE)) -> 6 | L102: 42 | O102: EFBE84 | P102: 102
A103: EFBDA6 | B103: ｦ | I103: g | J103: EFBD87 | K103: =HEX2DEC(VLOOKUP(J103,DTE!$A$1:$B$256,2,FALSE)) -> 7 | L103: 43 | O103: EFBE85 | P103: 103
A104: EFBDA7 | B104: ｧ | I104: h | J104: EFBD88 | K104: =HEX2DEC(VLOOKUP(J104,DTE!$A$1:$B$256,2,FALSE)) -> 8 | L104: 44 | O104: EFBE86 | P104: 104
A105: EFBDA8 | B105: ｨ | I105: i | J105: EFBD89 | K105: =HEX2DEC(VLOOKUP(J105,DTE!$A$1:$B$256,2,FALSE)) -> 4 | L105: 45 | O105: EFBE87 | P105: 105
A106: EFBDA9 | B106: ｩ | I106: j | J106: EFBD8A | K106: =HEX2DEC(VLOOKUP(J106,DTE!$A$1:$B$256,2,FALSE)) -> 5 | L106: 46 | O106: EFBE88 | P106: 106
A107: EFBDAA | B107: ｪ | I107: k | J107: EFBD8B | K107: =HEX2DEC(VLOOKUP(J107,DTE!$A$1:$B$256,2,FALSE)) -> 7 | L107: 47 | O107: EFBE89 | P107: 107
A108: EFBDAB | B108: ｫ | I108: l | J108: EFBD8C | K108: =HEX2DEC(VLOOKUP(J108,DTE!$A$1:$B$256,2,FALSE)) -> 4 | L108: 48 | O108: EFBE8A | P108: 108
A109: EFBDAC | B109: ｬ | I109: m | J109: EFBD8D | K109: =HEX2DEC(VLOOKUP(J109,DTE!$A$1:$B$256,2,FALSE)) -> 11 | L109: 49 | O109: EFBE8B | P109: 109
A110: EFBDAD | B110: ｭ | I110: n | J110: EFBD8E | K110: =HEX2DEC(VLOOKUP(J110,DTE!$A$1:$B$256,2,FALSE)) -> 8 | L110: 50 | O110: EFBE8C | P110: 110
A111: EFBDAE | B111: ｮ | I111: o | J111: EFBD8F | K111: =HEX2DEC(VLOOKUP(J111,DTE!$A$1:$B$256,2,FALSE)) -> 8 | L111: 51 | O111: EFBE8D | P111: 111
A112: EFBDAF | B112: ｯ | I112: p | J112: EFBD90 | K112: =HEX2DEC(VLOOKUP(J112,DTE!$A$1:$B$256,2,FALSE)) -> 8 | L112: 52 | O112: EFBE8E | P112: 112
A113: EFBDB0 | B113: ｰ | I113: q | J113: EFBD91 | K113: =HEX2DEC(VLOOKUP(J113,DTE!$A$1:$B$256,2,FALSE)) -> 8 | L113: 53 | O113: EFBE8F | P113: 113
A114: EFBDB1 | B114: ｱ | I114: r | J114: EFBD92 | K114: =HEX2DEC(VLOOKUP(J114,DTE!$A$1:$B$256,2,FALSE)) -> 5 | L114: 54 | O114: EFBE90 | P114: 114
A115: EFBDB2 | B115: ｲ | I115: s | J115: EFBD93 | K115: =HEX2DEC(VLOOKUP(J115,DTE!$A$1:$B$256,2,FALSE)) -> 7 | L115: 55 | O115: EFBE91 | P115: 115
A116: EFBDB3 | B116: ｳ | I116: t | J116: EFBD94 | K116: =HEX2DEC(VLOOKUP(J116,DTE!$A$1:$B$256,2,FALSE)) -> 5 | L116: 56 | O116: EFBE92 | P116: 116
A117: EFBDB4 | B117: ｴ | I117: u | J117: EFBD95 | K117: =HEX2DEC(VLOOKUP(J117,DTE!$A$1:$B$256,2,FALSE)) -> 7 | L117: 57 | O117: EFBE93 | P117: 117
A118: EFBDB5 | B118: ｵ | I118: v | J118: EFBD96 | K118: =HEX2DEC(VLOOKUP(J118,DTE!$A$1:$B$256,2,FALSE)) -> 8 | L118: 58 | O118: EFBE94 | P118: 118
A119: EFBDB6 | B119: ｶ | I119: w | J119: EFBD97 | K119: =HEX2DEC(VLOOKUP(J119,DTE!$A$1:$B$256,2,FALSE)) -> 11 | L119: 59 | O119: EFBE95 | P119: 119
A120: EFBDB7 | B120: ｷ | I120: x | J120: EFBD98 | K120: =HEX2DEC(VLOOKUP(J120,DTE!$A$1:$B$256,2,FALSE)) -> 8 | L120: 60 | O120: EFBE96 | P120: 120
A121: EFBDB8 | B121: ｸ | I121: y | J121: EFBD99 | K121: =HEX2DEC(VLOOKUP(J121,DTE!$A$1:$B$256,2,FALSE)) -> 8 | L121: 61 | O121: EFBE97 | P121: 121
A122: EFBDB9 | B122: ｹ | I122: z | J122: EFBD9A | K122: =HEX2DEC(VLOOKUP(J122,DTE!$A$1:$B$256,2,FALSE)) -> 7 | L122: 62 | O122: EFBE98 | P122: 122
A123: EFBDBA | B123: ｺ | I123: { | J123: EFBD9B | K123: =HEX2DEC(VLOOKUP(J123,DTE!$A$1:$B$256,2,FALSE)) -> 4 | L123: 193 | O123: EFBE99 | P123: 123
A124: EFBDBB | B124: ｻ | I124: | | J124: EFBD8C | K124: =HEX2DEC(VLOOKUP(J124,DTE!$A$1:$B$256,2,FALSE)) -> 4 | L124: 48 | O124: EFBE9A | P124: 124
A125: EFBDBC | B125: ｼ | I125: } | J125: EFBD9D | K125: =HEX2DEC(VLOOKUP(J125,DTE!$A$1:$B$256,2,FALSE)) -> 4 | L125: 194 | O125: EFBE9B | P125: 125
A126: EFBDBD | B126: ｽ | H126: ♪ | I126: ~ | J126: EFBEB3 | K126: =HEX2DEC(VLOOKUP(J126,DTE!$A$1:$B$256,2,FALSE)) -> 10 | L126: 167 | O126: EFBE9C | P126: 126
A127: EFBDBE | B127: ｾ | J127: EFBE9C | K127: =HEX2DEC(VLOOKUP(J127,DTE!$A$1:$B$256,2,FALSE)) -> 5 | L127: 126 | O127: EFBC90 | P127: 127
A128: EFBDBF | B128: ｿ | J128: EFBE9C | K128: =HEX2DEC(VLOOKUP(J128,DTE!$A$1:$B$256,2,FALSE)) -> 5 | L128: 126 | O128: EFBE9D | P128: 128
I129: . | O129: EFBE9E | P129: 129
I130: " | O130: EFBE9F | P130: 130
I131: " | O131: EFBC8C | P131: =P130+1 -> 131
I132: ` | O132: EFBC8E | P132: 132
O133: EFBEA0 | P133: 133
O134: EFBC9A | P134: 134
O135: EFBC9B | P135: 135
O136: EFBC9F | P136: 136
O137: EFBC81 | P137: 137
O138: EFBC82 | P138: 138
O139: EFBEA1 | P139: 139
O140: EFBC87 | P140: 140
O141: EFBEA2 | P141: 141
O142: EFBC8D | P142: 142
O143: EFBD9E | P143: 143
O144: EFBCBF | P144: 144
O145: EFBC8B | P145: 145
O146: EFBEA3 | P146: 146
O147: EFBEA4 | P147: 147
O148: EFBEA5 | P148: 148
O149: EFBEA6 | P149: 149
O150: EFBC9D | P150: 150
O151: EFBEA7 | P151: 151
O152: EFBC9C | P152: 152
O153: EFBC9E | P153: 153
O154: EFBEA8 | P154: 154
O155: EFBEA9 | P155: 155
O156: EFBEAA | P156: 156
O157: EFBEAB | P157: 157
O158: EFBEAC | P158: 158
O159: EFBEAD | P159: 159
O160: EFBEAE | P160: 160
O161: EFBEAF | P161: 161
O162: EFBC84 | P162: 162
O163: EFBC85 | P163: 163
O164: EFBEB0 | P164: 164
O165: EFBEB1 | P165: 165
O166: EFBEB2 | P166: 166
O167: EFBEB3 | P167: 167
O168: EFBC83 | P168: 168
O169: EFBEB4 | P169: 169
O170: EFBC86 | P170: 170
O171: EFBCBE | P171: 171
O172: EFBC8A | P172: 172
O173: EFBEB5 | P173: 173
O174: EFBCA0 | P174: 174
O175: EFBEB6 | P175: 175
O176: EFBEB7 | P176: 176
O177: EFBEB8 | P177: 177
O178: EFBEB9 | P178: 178
O179: EFBEBA | P179: 179
O180: EFBEBB | P180: 180
O181: EFBEBC | P181: 181
O182: EFBEBD | P182: 182
O183: EFBEBE | P183: 183
O184: EFBEBF | P184: 184
O185: EFBF80 | P185: 185
O186: EFBF81 | P186: 186
O187: EFBF82 | P187: 187
O188: EFBF83 | P188: 188
O189: EFBF84 | P189: 189
O190: EFBC8F | P190: 190
O191: EFBCBC | P191: 191
O192: EFBF85 | P192: 192
O193: EFBD9B | P193: 193
O194: EFBD9D | P194: 194
O195: EFBC88 | P195: =P194+1 -> 195
O196: EFBC89 | P196: 196
O197: EFBF86 | P197: 197
O198: EFBF87 | P198: 198
O199: EFBF88 | P199: 199
O200: EFBF89 | P200: 200
... 312 more rows

Sheet DTE
A1: EFBC80 | B1: 0A | D1: 10017 | E1: 115 | F1: 108 | G1: =IF(E1=0,1,OFFSET(fontmap!$L$1,E1-1,0)) -> 55 | H1: =IF(F1=0,1,OFFSET(fontmap!$L$1,F1-1,0)) -> 48 | I1: EFBD80 | K1: 1 | L1: 11 | M1: Zealous Researcher | R1: =CHAR(E1) -> s | S1: =CHAR(F1) -> l
A2: EFBC81 | B2: 04 | D2: 670 | E2: 116 | F2: 32 | G2: =IF(E2=0,1,OFFSET(fontmap!$L$1,E2-1,0)) -> 56 | H2: =IF(F2=0,1,OFFSET(fontmap!$L$1,F2-1,0)) -> 126 | I2: EFBD9C | K2: 12 | L2: 10 | M2: President Griffith | R2: =CHAR(E2) -> t
A3: EFBC82 | B3: 05 | D3: 579 | E3: 101 | F3: 32 | G3: =IF(E3=0,1,OFFSET(fontmap!$L$1,E3-1,0)) -> 41 | H3: =IF(F3=0,1,OFFSET(fontmap!$L$1,F3-1,0)) -> 126 | I3: EFBD9F | K3: 22 | L3: 11 | M3: Scared Researcher | R3: e
A4: EFBC83 | B4: 0B | D4: 419 | E4: 32 | F4: 116 | G4: =IF(E4=0,1,OFFSET(fontmap!$L$1,E4-1,0)) -> 126 | H4: =IF(F4=0,1,OFFSET(fontmap!$L$1,F4-1,0)) -> 56 | I4: EFBDA0 | K4: 33 | L4: 12 | M4: Flower-loving Woman | S4: t
A5: EFBC84 | B5: 08 | D5: 396 | E5: 105 | F5: 116 | G5: =IF(E5=0,1,OFFSET(fontmap!$L$1,E5-1,0)) -> 45 | H5: =IF(F5=0,1,OFFSET(fontmap!$L$1,F5-1,0)) -> 56 | I5: EFBDA1 | K5: 45 | L5: 10 | M5: Transfixing Lady | R5: i | S5: t
A6: EFBC85 | B6: 0C | D6: 392 | E6: 100 | F6: 32 | G6: =IF(E6=0,1,OFFSET(fontmap!$L$1,E6-1,0)) -> 40 | H6: =IF(F6=0,1,OFFSET(fontmap!$L$1,F6-1,0)) -> 126 | I6: EFBDA2 | K6: 55 | L6: 12 | M6: Unshaken Researcher | R6: d
A7: EFBC86 | B7: 0B | D7: 370 | E7: 108 | F7: 108 | G7: =IF(E7=0,1,OFFSET(fontmap!$L$1,E7-1,0)) -> 48 | H7: =IF(F7=0,1,OFFSET(fontmap!$L$1,F7-1,0)) -> 48 | I7: EFBDA3 | K7: 67 | L7: 12 | M7: Perplexed Researcher | R7: l | S7: l
A8: EFBC87 | B8: 03 | D8: 310 | E8: 114 | F8: 105 | G8: =IF(E8=0,1,OFFSET(fontmap!$L$1,E8-1,0)) -> 54 | H8: =IF(F8=0,1,OFFSET(fontmap!$L$1,F8-1,0)) -> 45 | I8: EFBDA4 | K8: 79 | L8: 11 | M8: Malingering Soldier | R8: r | S8: i
A9: EFBC88 | B9: 07 | D9: 302 | E9: 41 | F9: 32 | G9: =IF(E9=0,1,OFFSET(fontmap!$L$1,E9-1,0)) -> 196 | H9: =IF(F9=0,1,OFFSET(fontmap!$L$1,F9-1,0)) -> 126 | I9: EFBDA5 | K9: 90 | L9: 12 | M9: Famous Fortuneteller | R9: )
A10: EFBC89 | B10: 04 | D10: 299 | E10: 121 | F10: 32 | G10: =IF(E10=0,1,OFFSET(fontmap!$L$1,E10-1,0)) -> 61 | H10: =IF(F10=0,1,OFFSET(fontmap!$L$1,F10-1,0)) -> 126 | I10: EFBDA6 | K10: 102 | L10: 9 | M10: Kind Researcher | R10: y
A11: EFBC8A | B11: 09 | D11: 270 | E11: 110 | F11: 32 | G11: =IF(E11=0,1,OFFSET(fontmap!$L$1,E11-1,0)) -> 50 | H11: =IF(F11=0,1,OFFSET(fontmap!$L$1,F11-1,0)) -> 126 | I11: EFBDA7 | K11: 111 | L11: 11 | M11: Gossipy Researcher | R11: n
A12: EFBC8B | B12: 0A | D12: 258 | E12: 32 | F12: 73 | G12: =IF(E12=0,1,OFFSET(fontmap!$L$1,E12-1,0)) -> 126 | H12: =IF(F12=0,1,OFFSET(fontmap!$L$1,F12-1,0)) -> 18 | I12: EFBDA8 | K12: 122 | L12: 10 | M12: Splendid Steward | S12: I
A13: EFBC8C | B13: 03 | D13: 254 | E13: 105 | F13: 108 | G13: =IF(E13=0,1,OFFSET(fontmap!$L$1,E13-1,0)) -> 45 | H13: =IF(F13=0,1,OFFSET(fontmap!$L$1,F13-1,0)) -> 48 | I13: EFBDA9 | K13: 132 | L13: 9 | M13: MANIC Manager | R13: i | S13: l
A14: EFBC8D | B14: 06 | D14: 253 | E14: 44 | F14: 32 | G14: =IF(E14=0,1,OFFSET(fontmap!$L$1,E14-1,0)) -> 131 | H14: =IF(F14=0,1,OFFSET(fontmap!$L$1,F14-1,0)) -> 126 | I14: EFBDAA | K14: 141 | L14: 12 | M14: Sharp Businesswoman | R14: ,
A15: EFBC8E | B15: 04 | D15: 248 | E15: 97 | F15: 32 | G15: =IF(E15=0,1,OFFSET(fontmap!$L$1,E15-1,0)) -> 37 | H15: =IF(F15=0,1,OFFSET(fontmap!$L$1,F15-1,0)) -> 126 | I15: EFBDAB | K15: 153 | L15: 11 | M15: Off-Duty Murakumo | R15: a
A16: EFBC8F | B16: 0C | D16: 247 | E16: 102 | F16: 32 | G16: =IF(E16=0,1,OFFSET(fontmap!$L$1,E16-1,0)) -> 42 | H16: =IF(F16=0,1,OFFSET(fontmap!$L$1,F16-1,0)) -> 126 | I16: EFBDAC | K16: 164 | L16: 10 | M16: Murakumo Witness | R16: f
A17: EFBC90 | B17: 09 | D17: 238 | E17: 108 | F17: 32 | G17: =IF(E17=0,1,OFFSET(fontmap!$L$1,E17-1,0)) -> 48 | H17: =IF(F17=0,1,OFFSET(fontmap!$L$1,F17-1,0)) -> 126 | I17: EFBDAD | K17: 174 | L17: 12 | M17: Skeptical Researcher | R17: l
A18: EFBC91 | B18: 06 | D18: 233 | E18: 115 | F18: 105 | G18: =IF(E18=0,1,OFFSET(fontmap!$L$1,E18-1,0)) -> 55 | H18: =IF(F18=0,1,OFFSET(fontmap!$L$1,F18-1,0)) -> 45 | I18: EFBDAE | K18: 186 | L18: 11 | M18: Discerning Gourmet | R18: s | S18: i
A19: EFBC92 | B19: 09 | D19: 229 | E19: 32 | F19: 105 | G19: =IF(E19=0,1,OFFSET(fontmap!$L$1,E19-1,0)) -> 126 | H19: =IF(F19=0,1,OFFSET(fontmap!$L$1,F19-1,0)) -> 45 | I19: EFBDAF | K19: 197 | L19: 10 | M19: Spicoholic Soldier | S19: i
A20: EFBC93 | B20: 0A | D20: 219 | E20: 32 | F20: 102 | G20: =IF(E20=0,1,OFFSET(fontmap!$L$1,E20-1,0)) -> 126 | H20: =IF(F20=0,1,OFFSET(fontmap!$L$1,F20-1,0)) -> 42 | I20: EFBDB0 | K20: 207 | L20: 11 | M20: Sweetheart Soldier | S20: f
A21: EFBC94 | B21: 0A | D21: 212 | E21: 39 | F21: 115 | G21: =IF(E21=0,1,OFFSET(fontmap!$L$1,E21-1,0)) -> 140 | H21: =IF(F21=0,1,OFFSET(fontmap!$L$1,F21-1,0)) -> 55 | I21: EFBDB1 | K21: 218 | L21: 11 | M21: On-Break Murakumo | R21: ' | S21: s
A22: EFBC95 | B22: 0A | D22: 209 | E22: 108 | F22: 105 | G22: =IF(E22=0,1,OFFSET(fontmap!$L$1,E22-1,0)) -> 48 | H22: =IF(F22=0,1,OFFSET(fontmap!$L$1,F22-1,0)) -> 45 | I22: EFBDB2 | K22: 229 | L22: 11 | M22: Blocking Researcher | R22: l | S22: i
A23: EFBC96 | B23: 09 | D23: 204 | E23: 114 | F23: 32 | G23: =IF(E23=0,1,OFFSET(fontmap!$L$1,E23-1,0)) -> 54 | H23: =IF(F23=0,1,OFFSET(fontmap!$L$1,F23-1,0)) -> 126 | I23: EFBDB3 | K23: 240 | L23: 9 | M23: Soothing Mother | R23: r
A24: EFBC97 | B24: 09 | D24: 204 | E24: 105 | F24: 103 | G24: =IF(E24=0,1,OFFSET(fontmap!$L$1,E24-1,0)) -> 45 | H24: =IF(F24=0,1,OFFSET(fontmap!$L$1,F24-1,0)) -> 43 | I24: EFBDB4 | R24: i | S24: g
A25: EFBC98 | B25: 0A | D25: 202 | E25: 107 | F25: 41 | G25: =IF(E25=0,1,OFFSET(fontmap!$L$1,E25-1,0)) -> 47 | H25: =IF(F25=0,1,OFFSET(fontmap!$L$1,F25-1,0)) -> 196 | I25: EFBDB5 | R25: k | S25: )
A26: EFBC99 | B26: 0A | D26: 201 | E26: 116 | F26: 105 | G26: =IF(E26=0,1,OFFSET(fontmap!$L$1,E26-1,0)) -> 56 | H26: =IF(F26=0,1,OFFSET(fontmap!$L$1,F26-1,0)) -> 45 | I26: EFBDB6 | R26: t | S26: i
A27: EFBC9A | B27: 03 | D27: 192 | E27: 116 | F27: 114 | G27: =IF(E27=0,1,OFFSET(fontmap!$L$1,E27-1,0)) -> 56 | H27: =IF(F27=0,1,OFFSET(fontmap!$L$1,F27-1,0)) -> 54 | I27: EFBDB7 | R27: t | S27: r
A28: EFBC9B | B28: 03 | D28: 181 | E28: 105 | F28: 115 | G28: =IF(E28=0,1,OFFSET(fontmap!$L$1,E28-1,0)) -> 45 | H28: =IF(F28=0,1,OFFSET(fontmap!$L$1,F28-1,0)) -> 55 | I28: EFBDB8 | R28: i | S28: s
A29: EFBC9C | B29: 09 | D29: 162 | E29: 105 | F29: 114 | G29: =IF(E29=0,1,OFFSET(fontmap!$L$1,E29-1,0)) -> 45 | H29: =IF(F29=0,1,OFFSET(fontmap!$L$1,F29-1,0)) -> 54 | I29: EFBDB9 | R29: i | S29: r
A30: EFBC9D | B30: 0A | D30: 157 | E30: 116 | F30: 116 | G30: =IF(E30=0,1,OFFSET(fontmap!$L$1,E30-1,0)) -> 56 | H30: =IF(F30=0,1,OFFSET(fontmap!$L$1,F30-1,0)) -> 56 | I30: EFBDBA | R30: t | S30: t
A31: EFBC9E | B31: 0A | D31: 150 | E31: 102 | F31: 105 | G31: =IF(E31=0,1,OFFSET(fontmap!$L$1,E31-1,0)) -> 42 | H31: =IF(F31=0,1,OFFSET(fontmap!$L$1,F31-1,0)) -> 45 | I31: EFBDBB | R31: =CHAR(E31) -> f | S31: =CHAR(F31) -> i
A32: EFBC9F | B32: 08 | D32: 145 | E32: 111 | F32: 32 | G32: =IF(E32=0,1,OFFSET(fontmap!$L$1,E32-1,0)) -> 51 | H32: =IF(F32=0,1,OFFSET(fontmap!$L$1,F32-1,0)) -> 126 | I32: EFBDBC | R32: o
A33: EFBCA0 | B33: 0A | D33: 129 | E33: 107 | F33: 105 | G33: =IF(E33=0,1,OFFSET(fontmap!$L$1,E33-1,0)) -> 47 | H33: =IF(F33=0,1,OFFSET(fontmap!$L$1,F33-1,0)) -> 45 | I33: EFBDBD | R33: k | S33: i
A34: EFBCA1 | B34: 0A | D34: 127 | E34: 116 | F34: 46 | G34: =IF(E34=0,1,OFFSET(fontmap!$L$1,E34-1,0)) -> 56 | H34: =IF(F34=0,1,OFFSET(fontmap!$L$1,F34-1,0)) -> 132 | I34: EFBDBE | R34: t | S34: .
A35: EFBCA2 | B35: 08 | D35: 122 | E35: 115 | F35: 46 | G35: =IF(E35=0,1,OFFSET(fontmap!$L$1,E35-1,0)) -> 55 | H35: =IF(F35=0,1,OFFSET(fontmap!$L$1,F35-1,0)) -> 132 | I35: EFBDBF | R35: s | S35: .
A36: EFBCA3 | B36: 09 | D36: 122 | E36: 32 | F36: 114 | G36: =IF(E36=0,1,OFFSET(fontmap!$L$1,E36-1,0)) -> 126 | H36: =IF(F36=0,1,OFFSET(fontmap!$L$1,F36-1,0)) -> 54 | I36: EFBE80 | S36: r
A37: EFBCA4 | B37: 0A | D37: 118 | E37: 73 | F37: 116 | G37: =IF(E37=0,1,OFFSET(fontmap!$L$1,E37-1,0)) -> 18 | H37: =IF(F37=0,1,OFFSET(fontmap!$L$1,F37-1,0)) -> 56 | I37: EFBE81 | R37: I | S37: t
A38: EFBCA5 | B38: 08 | D38: 114 | E38: 117 | F38: 108 | G38: =IF(E38=0,1,OFFSET(fontmap!$L$1,E38-1,0)) -> 57 | H38: =IF(F38=0,1,OFFSET(fontmap!$L$1,F38-1,0)) -> 48 | I38: EFBE82 | R38: u | S38: l
A39: EFBCA6 | B39: 08 | D39: 111 | E39: 105 | F39: 102 | G39: =IF(E39=0,1,OFFSET(fontmap!$L$1,E39-1,0)) -> 45 | H39: =IF(F39=0,1,OFFSET(fontmap!$L$1,F39-1,0)) -> 42 | I39: EFBE83 | R39: i | S39: f
A40: EFBCA7 | B40: 09 | D40: 93 | E40: 53 | F40: 32 | G40: =IF(E40=0,1,OFFSET(fontmap!$L$1,E40-1,0)) -> 5 | H40: =IF(F40=0,1,OFFSET(fontmap!$L$1,F40-1,0)) -> 126 | I40: EFBE84 | R40: 5
A41: EFBCA8 | B41: 09 | D41: 92 | E41: 103 | F41: 105 | G41: =IF(E41=0,1,OFFSET(fontmap!$L$1,E41-1,0)) -> 43 | H41: =IF(F41=0,1,OFFSET(fontmap!$L$1,F41-1,0)) -> 45 | I41: EFBE85 | R41: g | S41: i
A42: EFBCA9 | B42: 04 | D42: 86 | E42: 99 | F42: 32 | G42: =IF(E42=0,1,OFFSET(fontmap!$L$1,E42-1,0)) -> 39 | H42: =IF(F42=0,1,OFFSET(fontmap!$L$1,F42-1,0)) -> 126 | I42: EFBE86 | R42: c
A43: EFBCAA | B43: 06 | D43: 82 | E43: 52 | F43: 32 | G43: =IF(E43=0,1,OFFSET(fontmap!$L$1,E43-1,0)) -> 4 | H43: =IF(F43=0,1,OFFSET(fontmap!$L$1,F43-1,0)) -> 126 | I43: EFBE87 | R43: 4
A44: EFBCAB | B44: 09 | D44: 81 | E44: 48 | F44: 32 | G44: =IF(E44=0,1,OFFSET(fontmap!$L$1,E44-1,0)) -> 127 | H44: =IF(F44=0,1,OFFSET(fontmap!$L$1,F44-1,0)) -> 126 | I44: EFBE88 | R44: 0
A45: EFBCAC | B45: 08 | D45: 81 | E45: 46 | F45: 32 | G45: =IF(E45=0,1,OFFSET(fontmap!$L$1,E45-1,0)) -> 132 | H45: =IF(F45=0,1,OFFSET(fontmap!$L$1,F45-1,0)) -> 126 | I45: EFBE89 | R45: .
A46: EFBCAD | B46: 0A | D46: 80 | E46: 73 | F46: 73 | G46: =IF(E46=0,1,OFFSET(fontmap!$L$1,E46-1,0)) -> 18 | H46: =IF(F46=0,1,OFFSET(fontmap!$L$1,F46-1,0)) -> 18 | I46: EFBE8A | R46: I | S46: I
A47: EFBCAE | B47: 09 | D47: 78 | E47: 32 | F47: 108 | G47: =IF(E47=0,1,OFFSET(fontmap!$L$1,E47-1,0)) -> 126 | H47: =IF(F47=0,1,OFFSET(fontmap!$L$1,F47-1,0)) -> 48 | I47: EFBE8B | S47: l
A48: EFBCAF | B48: 0A | D48: 68 | E48: 109 | F48: 32 | G48: =IF(E48=0,1,OFFSET(fontmap!$L$1,E48-1,0)) -> 49 | H48: =IF(F48=0,1,OFFSET(fontmap!$L$1,F48-1,0)) -> 126 | I48: EFBE8C | R48: m
A49: EFBCB0 | B49: 08 | D49: 66 | E49: 104 | F49: 32 | G49: =IF(E49=0,1,OFFSET(fontmap!$L$1,E49-1,0)) -> 44 | H49: =IF(F49=0,1,OFFSET(fontmap!$L$1,F49-1,0)) -> 126 | I49: EFBE8D | R49: h
A50: EFBCB1 | B50: 0A | D50: 59 | E50: 114 | F50: 116 | G50: =IF(E50=0,1,OFFSET(fontmap!$L$1,E50-1,0)) -> 54 | H50: =IF(F50=0,1,OFFSET(fontmap!$L$1,F50-1,0)) -> 56 | I50: EFBE8E | R50: r | S50: t
A51: EFBCB2 | B51: 09 | D51: 57 | E51: 101 | F51: 44 | G51: =IF(E51=0,1,OFFSET(fontmap!$L$1,E51-1,0)) -> 41 | H51: =IF(F51=0,1,OFFSET(fontmap!$L$1,F51-1,0)) -> 131 | I51: EFBE8F | R51: e | S51: ,
A52: EFBCB3 | B52: 08 | D52: 56 | E52: 51 | F52: 32 | G52: =IF(E52=0,1,OFFSET(fontmap!$L$1,E52-1,0)) -> 3 | H52: =IF(F52=0,1,OFFSET(fontmap!$L$1,F52-1,0)) -> 126 | I52: EFBE90 | R52: =CHAR(E52) -> 3 | S52: =CHAR(F52) -> 
A53: EFBCB4 | B53: 08 | D53: 54 | E53: 50 | F53: 32 | G53: =IF(E53=0,1,OFFSET(fontmap!$L$1,E53-1,0)) -> 2 | H53: =IF(F53=0,1,OFFSET(fontmap!$L$1,F53-1,0)) -> 126 | I53: EFBE91 | R53: 2
A54: EFBCB5 | B54: 08 | D54: 54 | E54: 49 | F54: 32 | G54: =IF(E54=0,1,OFFSET(fontmap!$L$1,E54-1,0)) -> 1 | H54: =IF(F54=0,1,OFFSET(fontmap!$L$1,F54-1,0)) -> 126 | I54: EFBE92 | R54: 1
A55: EFBCB6 | B55: 0A | D55: 52 | E55: 121 | F55: 44 | G55: =IF(E55=0,1,OFFSET(fontmap!$L$1,E55-1,0)) -> 61 | H55: =IF(F55=0,1,OFFSET(fontmap!$L$1,F55-1,0)) -> 131 | I55: EFBE93 | R55: y | S55: ,
A56: EFBCB7 | B56: 0C | D56: 52 | E56: 55 | F56: 32 | G56: =IF(E56=0,1,OFFSET(fontmap!$L$1,E56-1,0)) -> 7 | H56: =IF(F56=0,1,OFFSET(fontmap!$L$1,F56-1,0)) -> 126 | I56: EFBE94 | R56: 7
A57: EFBCB8 | B57: 09 | D57: 52 | E57: 54 | F57: 32 | G57: =IF(E57=0,1,OFFSET(fontmap!$L$1,E57-1,0)) -> 6 | H57: =IF(F57=0,1,OFFSET(fontmap!$L$1,F57-1,0)) -> 126 | I57: EFBE95 | R57: 6
A58: EFBCB9 | B58: 09 | D58: 50 | E58: 114 | F58: 46 | G58: =IF(E58=0,1,OFFSET(fontmap!$L$1,E58-1,0)) -> 54 | H58: =IF(F58=0,1,OFFSET(fontmap!$L$1,F58-1,0)) -> 132 | I58: EFBE96 | R58: r | S58: .
A59: EFBCBA | B59: 09 | D59: 49 | E59: 114 | F59: 108 | G59: =IF(E59=0,1,OFFSET(fontmap!$L$1,E59-1,0)) -> 54 | H59: =IF(F59=0,1,OFFSET(fontmap!$L$1,F59-1,0)) -> 48 | I59: EFBE97 | R59: r | S59: l
A60: EFBCBB | B60: 07 | D60: 45 | E60: 114 | F60: 114 | G60: =IF(E60=0,1,OFFSET(fontmap!$L$1,E60-1,0)) -> 54 | H60: =IF(F60=0,1,OFFSET(fontmap!$L$1,F60-1,0)) -> 54 | I60: EFBE98 | R60: r | S60: r
A61: EFBCBC | B61: 0C | D61: 44 | E61: 115 | F61: 44 | G61: =IF(E61=0,1,OFFSET(fontmap!$L$1,E61-1,0)) -> 55 | H61: =IF(F61=0,1,OFFSET(fontmap!$L$1,F61-1,0)) -> 131 | I61: EFBE99 | R61: s | S61: ,
A62: EFBCBD | B62: 04 | D62: 44 | E62: 105 | F62: 107 | G62: =IF(E62=0,1,OFFSET(fontmap!$L$1,E62-1,0)) -> 45 | H62: =IF(F62=0,1,OFFSET(fontmap!$L$1,F62-1,0)) -> 47 | I62: EFBE9A | R62: i | S62: k
A63: EFBCBE | B63: 06 | D63: 44 | E63: 57 | F63: 32 | G63: =IF(E63=0,1,OFFSET(fontmap!$L$1,E63-1,0)) -> 9 | H63: =IF(F63=0,1,OFFSET(fontmap!$L$1,F63-1,0)) -> 126 | I63: EFBE9B | R63: 9
A64: EFBCBF | B64: 0C | D64: 43 | E64: 108 | F64: 116 | G64: =IF(E64=0,1,OFFSET(fontmap!$L$1,E64-1,0)) -> 48 | H64: =IF(F64=0,1,OFFSET(fontmap!$L$1,F64-1,0)) -> 56 | I64: EFBF8A | R64: l | S64: t
A65: EFBD80 | B65: 0D | D65: 40 | E65: 108 | F65: 117 | G65: =IF(E65=0,1,OFFSET(fontmap!$L$1,E65-1,0)) -> 48 | H65: =IF(F65=0,1,OFFSET(fontmap!$L$1,F65-1,0)) -> 57 | I65: EFBF8B | R65: l | S65: u
A66: EFBD81 | B66: 08 | D66: 40 | E66: 102 | F66: 114 | G66: =IF(E66=0,1,OFFSET(fontmap!$L$1,E66-1,0)) -> 42 | H66: =IF(F66=0,1,OFFSET(fontmap!$L$1,F66-1,0)) -> 54 | I66: EFBF8C | R66: f | S66: r
A67: EFBD82 | B67: 08 | D67: 40 | E67: 46 | F67: 46 | G67: =IF(E67=0,1,OFFSET(fontmap!$L$1,E67-1,0)) -> 132 | H67: =IF(F67=0,1,OFFSET(fontmap!$L$1,F67-1,0)) -> 132 | I67: EFBF8D | R67: . | S67: .
A68: EFBD83 | B68: 08 | D68: 38 | E68: 119 | F68: 32 | G68: =IF(E68=0,1,OFFSET(fontmap!$L$1,E68-1,0)) -> 59 | H68: =IF(F68=0,1,OFFSET(fontmap!$L$1,F68-1,0)) -> 126 | I68: EFBF8E | R68: w
A69: EFBD84 | B69: 08 | D69: 37 | E69: 116 | F69: 108 | G69: =IF(E69=0,1,OFFSET(fontmap!$L$1,E69-1,0)) -> 56 | H69: =IF(F69=0,1,OFFSET(fontmap!$L$1,F69-1,0)) -> 48 | I69: EFBF8F | R69: t | S69: l
A70: EFBD85 | B70: 08 | D70: 37 | E70: 97 | F70: 39 | G70: =IF(E70=0,1,OFFSET(fontmap!$L$1,E70-1,0)) -> 37 | H70: =IF(F70=0,1,OFFSET(fontmap!$L$1,F70-1,0)) -> 140 | I70: EFBF90 | R70: a | S70: '
A71: EFBD86 | B71: 06 | D71: 36 | E71: 112 | F71: 32 | G71: =IF(E71=0,1,OFFSET(fontmap!$L$1,E71-1,0)) -> 52 | H71: =IF(F71=0,1,OFFSET(fontmap!$L$1,F71-1,0)) -> 126 | I71: EFBF91 | R71: p
A72: EFBD87 | B72: 07 | D72: 36 | E72: 105 | F72: 39 | G72: =IF(E72=0,1,OFFSET(fontmap!$L$1,E72-1,0)) -> 45 | H72: =IF(F72=0,1,OFFSET(fontmap!$L$1,F72-1,0)) -> 140 | I72: EFBF92 | R72: i | S72: '
A73: EFBD88 | B73: 08 | D73: 36 | E73: 102 | F73: 116 | G73: =IF(E73=0,1,OFFSET(fontmap!$L$1,E73-1,0)) -> 42 | H73: =IF(F73=0,1,OFFSET(fontmap!$L$1,F73-1,0)) -> 56 | I73: EFBF93 | R73: f | S73: t
A74: EFBD89 | B74: 04 | D74: 33 | E74: 102 | F74: 108 | G74: =IF(E74=0,1,OFFSET(fontmap!$L$1,E74-1,0)) -> 42 | H74: =IF(F74=0,1,OFFSET(fontmap!$L$1,F74-1,0)) -> 48 | I74: EFBF94 | R74: =CHAR(E74) -> f | S74: =CHAR(F74) -> l
A75: EFBD8A | B75: 05 | D75: 32 | E75: 117 | F75: 105 | G75: =IF(E75=0,1,OFFSET(fontmap!$L$1,E75-1,0)) -> 57 | H75: =IF(F75=0,1,OFFSET(fontmap!$L$1,F75-1,0)) -> 45 | I75: EFBF95 | R75: u | S75: i
A76: EFBD8B | B76: 07 | D76: 32 | E76: 116 | F76: 39 | G76: =IF(E76=0,1,OFFSET(fontmap!$L$1,E76-1,0)) -> 56 | H76: =IF(F76=0,1,OFFSET(fontmap!$L$1,F76-1,0)) -> 140 | I76: EFBF96 | R76: t | S76: '
A77: EFBD8C | B77: 04 | D77: 32 | E77: 111 | F77: 39 | G77: =IF(E77=0,1,OFFSET(fontmap!$L$1,E77-1,0)) -> 51 | H77: =IF(F77=0,1,OFFSET(fontmap!$L$1,F77-1,0)) -> 140 | I77: EFBF97 | R77: o | S77: '
A78: EFBD8D | B78: 0B | D78: 31 | E78: 56 | F78: 32 | G78: =IF(E78=0,1,OFFSET(fontmap!$L$1,E78-1,0)) -> 8 | H78: =IF(F78=0,1,OFFSET(fontmap!$L$1,F78-1,0)) -> 126 | I78: EFBF98 | R78: 8
A79: EFBD8E | B79: 08 | D79: 30 | E79: 107 | F79: 46 | G79: =IF(E79=0,1,OFFSET(fontmap!$L$1,E79-1,0)) -> 47 | H79: =IF(F79=0,1,OFFSET(fontmap!$L$1,F79-1,0)) -> 132 | I79: EFBF99 | R79: k | S79: .
A80: EFBD8F | B80: 08 | D80: 29 | E80: 117 | F80: 39 | G80: =IF(E80=0,1,OFFSET(fontmap!$L$1,E80-1,0)) -> 57 | H80: =IF(F80=0,1,OFFSET(fontmap!$L$1,F80-1,0)) -> 140 | I80: EFBF9A | R80: u | S80: '
A81: EFBD90 | B81: 08 | D81: 28 | E81: 65 | F81: 32 | G81: =IF(E81=0,1,OFFSET(fontmap!$L$1,E81-1,0)) -> 10 | H81: =IF(F81=0,1,OFFSET(fontmap!$L$1,F81-1,0)) -> 126 | I81: EFBF9B | R81: A
A82: EFBD91 | B82: 08 | D82: 26 | E82: 108 | F82: 46 | G82: =IF(E82=0,1,OFFSET(fontmap!$L$1,E82-1,0)) -> 48 | H82: =IF(F82=0,1,OFFSET(fontmap!$L$1,F82-1,0)) -> 132 | I82: EFBF9C | R82: l | S82: .
A83: EFBD92 | B83: 05 | D83: 26 | E83: 108 | F83: 44 | G83: =IF(E83=0,1,OFFSET(fontmap!$L$1,E83-1,0)) -> 48 | H83: =IF(F83=0,1,OFFSET(fontmap!$L$1,F83-1,0)) -> 131 | I83: EFBF9D | R83: l | S83: ,
A84: EFBD93 | B84: 07 | D84: 24 | E84: 103 | F84: 46 | G84: =IF(E84=0,1,OFFSET(fontmap!$L$1,E84-1,0)) -> 43 | H84: =IF(F84=0,1,OFFSET(fontmap!$L$1,F84-1,0)) -> 132 | I84: EFBF9E | R84: g | S84: .
A85: EFBD94 | B85: 05 | D85: 24 | E85: 37 | F85: 32 | G85: =IF(E85=0,1,OFFSET(fontmap!$L$1,E85-1,0)) -> 163 | H85: =IF(F85=0,1,OFFSET(fontmap!$L$1,F85-1,0)) -> 126 | I85: EFBF9F | R85: %
A86: EFBD95 | B86: 07 | D86: 23 | E86: 101 | F86: 39 | G86: =IF(E86=0,1,OFFSET(fontmap!$L$1,E86-1,0)) -> 41 | H86: =IF(F86=0,1,OFFSET(fontmap!$L$1,F86-1,0)) -> 140 | I86: EFBFA0 | R86: e | S86: '
A87: EFBD96 | B87: 08 | D87: 22 | E87: 108 | F87: 115 | G87: =IF(E87=0,1,OFFSET(fontmap!$L$1,E87-1,0)) -> 48 | H87: =IF(F87=0,1,OFFSET(fontmap!$L$1,F87-1,0)) -> 55 | I87: EFBFA1 | R87: l | S87: s
A88: EFBD97 | B88: 0B | D88: 22 | E88: 32 | F88: 74 | G88: =IF(E88=0,1,OFFSET(fontmap!$L$1,E88-1,0)) -> 126 | H88: =IF(F88=0,1,OFFSET(fontmap!$L$1,F88-1,0)) -> 19 | I88: EFBFA2 | J88: 9 | K88: 7 | S88: J
A89: EFBD98 | B89: 08 | D89: 21 | E89: 108 | F89: 103 | G89: =IF(E89=0,1,OFFSET(fontmap!$L$1,E89-1,0)) -> 48 | H89: =IF(F89=0,1,OFFSET(fontmap!$L$1,F89-1,0)) -> 43 | I89: EFBFA3 | J89: 22 | K89: 16 | R89: l | S89: g | W89: 0
A90: EFBD99 | B90: 08 | D90: 21 | E90: 73 | F90: 122 | G90: =IF(E90=0,1,OFFSET(fontmap!$L$1,E90-1,0)) -> 18 | H90: =IF(F90=0,1,OFFSET(fontmap!$L$1,F90-1,0)) -> 62 | I90: EFBFA4 | J90: 11 | K90: 10 | R90: I | S90: z | W90: 0
A91: EFBD9A | B91: 07 | D91: 21 | E91: 39 | F91: 114 | G91: =IF(E91=0,1,OFFSET(fontmap!$L$1,E91-1,0)) -> 140 | H91: =IF(F91=0,1,OFFSET(fontmap!$L$1,F91-1,0)) -> 54 | I91: EFBFA5 | J91: 9 | K91: 8 | R91: ' | S91: r | W91: 0
A92: EFBD9B | B92: 04 | D92: 19 | E92: 121 | F92: 39 | G92: =IF(E92=0,1,OFFSET(fontmap!$L$1,E92-1,0)) -> 61 | H92: =IF(F92=0,1,OFFSET(fontmap!$L$1,F92-1,0)) -> 140 | I92: EFBFA6 | J92: 9 | K92: 8 | R92: y | S92: ' | W92: 0
A93: EFBD9C | B93: 0D | D93: 17 | E93: 105 | F93: 32 | G93: =IF(E93=0,1,OFFSET(fontmap!$L$1,E93-1,0)) -> 45 | H93: =IF(F93=0,1,OFFSET(fontmap!$L$1,F93-1,0)) -> 126 | I93: EFBFA7 | J93: 3 | K93: 3 | R93: i | W93: 0
A94: EFBD9D | B94: 04 | D94: 16 | E94: 116 | F94: 44 | G94: =IF(E94=0,1,OFFSET(fontmap!$L$1,E94-1,0)) -> 56 | H94: =IF(F94=0,1,OFFSET(fontmap!$L$1,F94-1,0)) -> 131 | I94: EFBFA8 | J94: 9 | K94: 8 | R94: t | S94: , | W94: 0
A95: EFBD9E | B95: 0B | D95: 16 | E95: 110 | F95: 39 | G95: =IF(E95=0,1,OFFSET(fontmap!$L$1,E95-1,0)) -> 50 | H95: =IF(F95=0,1,OFFSET(fontmap!$L$1,F95-1,0)) -> 140 | I95: EFBFA9 | J95: 6 | K95: 5 | R95: n | S95: ' | W95: 0
A96: EFBD9F | B96: 0C | D96: 15 | E96: 110 | F96: 44 | G96: =IF(E96=0,1,OFFSET(fontmap!$L$1,E96-1,0)) -> 50 | H96: =IF(F96=0,1,OFFSET(fontmap!$L$1,F96-1,0)) -> 131 | I96: EFBFAA | J96: 12 | K96: 9 | R96: n | S96: , | W96: 0
A97: EFBDA0 | B97: 0A | D97: 15 | E97: 107 | F97: 108 | G97: =IF(E97=0,1,OFFSET(fontmap!$L$1,E97-1,0)) -> 47 | H97: =IF(F97=0,1,OFFSET(fontmap!$L$1,F97-1,0)) -> 48 | I97: EFBFAB | J97: 7 | K97: 7 | R97: k | S97: l | W97: 0
A98: EFBDA1 | B98: 0D | D98: 14 | E98: 102 | F98: 46 | G98: =IF(E98=0,1,OFFSET(fontmap!$L$1,E98-1,0)) -> 42 | H98: =IF(F98=0,1,OFFSET(fontmap!$L$1,F98-1,0)) -> 132 | I98: EFBFAC | J98: 12 | K98: 9 | R98: f | S98: . | W98: 0
A99: EFBDA2 | B99: 0D | D99: 13 | E99: 39 | F99: 118 | G99: =IF(E99=0,1,OFFSET(fontmap!$L$1,E99-1,0)) -> 140 | H99: =IF(F99=0,1,OFFSET(fontmap!$L$1,F99-1,0)) -> 58 | I99: EFBFAD | J99: 12 | K99: 9 | R99: ' | S99: v | W99: 0
A100: EFBDA3 | B100: 0D | D100: 12 | E100: 108 | F100: 107 | G100: =IF(E100=0,1,OFFSET(fontmap!$L$1,E100-1,0)) -> 48 | H100: =IF(F100=0,1,OFFSET(fontmap!$L$1,F100-1,0)) -> 47 | I100: EFBFAE | J100: 11 | K100: 9 | R100: l | S100: k | W100: 0
A101: EFBDA4 | B101: 0C | D101: 10185 | E101: 108 | F101: 97 | G101: =IF(E101=0,1,OFFSET(fontmap!$L$1,E101-1,0)) -> 48 | H101: =IF(F101=0,1,OFFSET(fontmap!$L$1,F101-1,0)) -> 37 | I101: EDBC80 | J101: 11 | K101: 10 | R101: l | S101: a | W101: 0
A102: EFBDA5 | B102: 0D | D102: 611 | E102: 105 | F102: 110 | G102: =IF(E102=0,1,OFFSET(fontmap!$L$1,E102-1,0)) -> 45 | H102: =IF(F102=0,1,OFFSET(fontmap!$L$1,F102-1,0)) -> 50 | I102: EDBC81 | J102: 5 | K102: 4 | R102: i | S102: n | W102: 0
A103: EFBDA6 | B103: 0D | D103: 580 | E103: 115 | F103: 32 | G103: =IF(E103=0,1,OFFSET(fontmap!$L$1,E103-1,0)) -> 55 | H103: =IF(F103=0,1,OFFSET(fontmap!$L$1,F103-1,0)) -> 126 | I103: EDBC82 | J103: 11 | K103: 10 | R103: s | W103: 0
A104: EFBDA7 | B104: 0D | D104: 446 | E104: 115 | F104: 116 | G104: =IF(E104=0,1,OFFSET(fontmap!$L$1,E104-1,0)) -> 55 | H104: =IF(F104=0,1,OFFSET(fontmap!$L$1,F104-1,0)) -> 56 | I104: EDBC83 | J104: 11 | K104: 9 | R104: s | S104: t | W104: 0
A105: EFBDA8 | B105: 0D | D105: 379 | E105: 97 | F105: 108 | G105: =IF(E105=0,1,OFFSET(fontmap!$L$1,E105-1,0)) -> 37 | H105: =IF(F105=0,1,OFFSET(fontmap!$L$1,F105-1,0)) -> 48 | I105: EDBC84 | J105: 16 | K105: 12 | R105: a | S105: l | W105: 0
A106: EFBDA9 | B106: 0A | D106: 283 | E106: 105 | F106: 101 | G106: =IF(E106=0,1,OFFSET(fontmap!$L$1,E106-1,0)) -> 45 | H106: =IF(F106=0,1,OFFSET(fontmap!$L$1,F106-1,0)) -> 41 | I106: EDBC85 | J106: 9 | K106: 7 | R106: i | S106: e | W106: 0
A107: EFBDAA | B107: 09 | D107: 270 | E107: 32 | F107: 115 | G107: =IF(E107=0,1,OFFSET(fontmap!$L$1,E107-1,0)) -> 126 | H107: =IF(F107=0,1,OFFSET(fontmap!$L$1,F107-1,0)) -> 55 | I107: EDBC86 | J107: 12 | K107: 10 | S107: s | W107: 0
A108: EFBDAB | B108: 0D | D108: 269 | E108: 105 | F108: 99 | G108: =IF(E108=0,1,OFFSET(fontmap!$L$1,E108-1,0)) -> 45 | H108: =IF(F108=0,1,OFFSET(fontmap!$L$1,F108-1,0)) -> 39 | I108: EDBC87 | J108: 13 | K108: 11 | R108: i | S108: c | W108: 0
A109: EFBDAC | B109: 0D | D109: 260 | E109: 108 | F109: 101 | G109: =IF(E109=0,1,OFFSET(fontmap!$L$1,E109-1,0)) -> 48 | H109: =IF(F109=0,1,OFFSET(fontmap!$L$1,F109-1,0)) -> 41 | I109: EDBC88 | J109: 9 | K109: 9 | R109: l | S109: e | W109: 0
A110: EFBDAD | B110: 09 | D110: 254 | E110: 103 | F110: 32 | G110: =IF(E110=0,1,OFFSET(fontmap!$L$1,E110-1,0)) -> 43 | H110: =IF(F110=0,1,OFFSET(fontmap!$L$1,F110-1,0)) -> 126 | I110: EDBC89 | J110: 11 | K110: 8 | R110: g | W110: 0
A111: EFBDAE | B111: 0D | D111: 202 | E111: 104 | F111: 105 | G111: =IF(E111=0,1,OFFSET(fontmap!$L$1,E111-1,0)) -> 44 | H111: =IF(F111=0,1,OFFSET(fontmap!$L$1,F111-1,0)) -> 45 | I111: EDBC8A | J111: 6 | K111: 6 | R111: h | S111: i | W111: 0
A112: EFBDAF | B112: 08 | D112: 183 | E112: 117 | F112: 114 | G112: =IF(E112=0,1,OFFSET(fontmap!$L$1,E112-1,0)) -> 57 | H112: =IF(F112=0,1,OFFSET(fontmap!$L$1,F112-1,0)) -> 54 | I112: EDBC8B | J112: 8 | K112: 6 | R112: u | S112: r | W112: 0
A113: EFBDB0 | B113: 09 | D113: 172 | E113: 108 | F113: 111 | G113: =IF(E113=0,1,OFFSET(fontmap!$L$1,E113-1,0)) -> 48 | H113: =IF(F113=0,1,OFFSET(fontmap!$L$1,F113-1,0)) -> 51 | I113: EDBC8C | J113: 10 | K113: 10 | R113: l | S113: o | W113: 0
A114: EFBDB1 | B114: 0D | D114: 166 | E114: 97 | F114: 105 | G114: =IF(E114=0,1,OFFSET(fontmap!$L$1,E114-1,0)) -> 37 | H114: =IF(F114=0,1,OFFSET(fontmap!$L$1,F114-1,0)) -> 45 | I114: EDBC8D | J114: 8 | K114: 5 | R114: a | S114: i | W114: 0
A115: EFBDB2 | B115: 0A | D115: 160 | E115: 102 | F115: 102 | G115: =IF(E115=0,1,OFFSET(fontmap!$L$1,E115-1,0)) -> 42 | H115: =IF(F115=0,1,OFFSET(fontmap!$L$1,F115-1,0)) -> 42 | I115: EDBC8E | J115: 9 | K115: 8 | R115: f | S115: f | W115: 0
A116: EFBDB3 | B116: 0E | D116: 156 | E116: 111 | F116: 108 | G116: =IF(E116=0,1,OFFSET(fontmap!$L$1,E116-1,0)) -> 51 | H116: =IF(F116=0,1,OFFSET(fontmap!$L$1,F116-1,0)) -> 48 | I116: EDBC8F | J116: 5 | K116: 4 | R116: o | S116: l | W116: 0
A117: EFBDB4 | B117: 09 | D117: 155 | E117: 108 | F117: 100 | G117: =IF(E117=0,1,OFFSET(fontmap!$L$1,E117-1,0)) -> 48 | H117: =IF(F117=0,1,OFFSET(fontmap!$L$1,F117-1,0)) -> 40 | I117: EDBC90 | J117: 6 | K117: 5 | R117: l | S117: d | W117: 0
A118: EFBDB5 | B118: 0D | D118: 153 | E118: 105 | F118: 100 | G118: =IF(E118=0,1,OFFSET(fontmap!$L$1,E118-1,0)) -> 45 | H118: =IF(F118=0,1,OFFSET(fontmap!$L$1,F118-1,0)) -> 40 | I118: EDBC91 | J118: 7 | K118: 7 | R118: i | S118: d | W118: 0
A119: EFBDB6 | B119: 0C | D119: 150 | E119: 101 | F119: 108 | G119: =IF(E119=0,1,OFFSET(fontmap!$L$1,E119-1,0)) -> 41 | H119: =IF(F119=0,1,OFFSET(fontmap!$L$1,F119-1,0)) -> 48 | I119: EDBC92 | J119: 4 | K119: 4 | R119: e | S119: l | W119: 0
A120: EFBDB7 | B120: 0A | D120: 148 | E120: 108 | F120: 121 | G120: =IF(E120=0,1,OFFSET(fontmap!$L$1,E120-1,0)) -> 48 | H120: =IF(F120=0,1,OFFSET(fontmap!$L$1,F120-1,0)) -> 61 | I120: EDBC93 | J120: 4 | K120: 4 | R120: l | S120: y | W120: 0
A121: EFBDB8 | B121: 08 | D121: 132 | E121: 110 | F121: 105 | G121: =IF(E121=0,1,OFFSET(fontmap!$L$1,E121-1,0)) -> 50 | H121: =IF(F121=0,1,OFFSET(fontmap!$L$1,F121-1,0)) -> 45 | I121: EDBC94 | J121: 15 | K121: 11 | R121: n | S121: i | W121: 0
A122: EFBDB9 | B122: 0D | D122: 129 | E122: 117 | F122: 116 | G122: =IF(E122=0,1,OFFSET(fontmap!$L$1,E122-1,0)) -> 57 | H122: =IF(F122=0,1,OFFSET(fontmap!$L$1,F122-1,0)) -> 56 | I122: EDBC95 | J122: 8 | K122: 7 | R122: u | S122: t | W122: 0
A123: EFBDBA | B123: 09 | D123: 126 | E123: 105 | F123: 118 | G123: =IF(E123=0,1,OFFSET(fontmap!$L$1,E123-1,0)) -> 45 | H123: =IF(F123=0,1,OFFSET(fontmap!$L$1,F123-1,0)) -> 58 | I123: EDBC96 | J123: 6 | K123: 6 | R123: i | S123: v | W123: 0
A124: EFBDBB | B124: 0D | D124: 126 | E124: 101 | F124: 46 | G124: =IF(E124=0,1,OFFSET(fontmap!$L$1,E124-1,0)) -> 41 | H124: =IF(F124=0,1,OFFSET(fontmap!$L$1,F124-1,0)) -> 132 | I124: EDBC97 | J124: 5 | K124: 4 | R124: e | S124: . | W124: 0
A125: EFBDBC | B125: 09 | D125: 120 | E125: 116 | F125: 117 | G125: =IF(E125=0,1,OFFSET(fontmap!$L$1,E125-1,0)) -> 56 | H125: =IF(F125=0,1,OFFSET(fontmap!$L$1,F125-1,0)) -> 57 | I125: EDBC98 | J125: 10 | K125: 8 | R125: t | S125: u | W125: 0
A126: EFBDBD | B126: 0D | D126: 112 | E126: 100 | F126: 105 | G126: =IF(E126=0,1,OFFSET(fontmap!$L$1,E126-1,0)) -> 40 | H126: =IF(F126=0,1,OFFSET(fontmap!$L$1,F126-1,0)) -> 45 | I126: EDBC99 | J126: 4 | K126: 3 | R126: d | S126: i | W126: 0
A127: EFBDBE | B127: 0B | D127: 88 | E127: 98 | F127: 108 | G127: =IF(E127=0,1,OFFSET(fontmap!$L$1,E127-1,0)) -> 38 | H127: =IF(F127=0,1,OFFSET(fontmap!$L$1,F127-1,0)) -> 48 | I127: EDBC9A | J127: 4 | K127: 4 | R127: b | S127: l | W127: 0
A128: EFBDBF | B128: 08 | D128: 88 | E128: 32 | F128: 103 | G128: =IF(E128=0,1,OFFSET(fontmap!$L$1,E128-1,0)) -> 126 | H128: =IF(F128=0,1,OFFSET(fontmap!$L$1,F128-1,0)) -> 43 | I128: EDBC9B | J128: 9 | K128: 8 | S128: g | W128: 0
A129: EFBE80 | B129: 0D | D129: 87 | E129: 112 | F129: 108 | G129: =IF(E129=0,1,OFFSET(fontmap!$L$1,E129-1,0)) -> 52 | H129: =IF(F129=0,1,OFFSET(fontmap!$L$1,F129-1,0)) -> 48 | I129: EDBC9C | J129: 6 | K129: 5 | R129: p | S129: l | W129: 0
A130: EFBE81 | B130: 0B | D130: 86 | E130: 121 | F130: 46 | G130: =IF(E130=0,1,OFFSET(fontmap!$L$1,E130-1,0)) -> 61 | H130: =IF(F130=0,1,OFFSET(fontmap!$L$1,F130-1,0)) -> 132 | I130: EDBC9D | J130: 6 | K130: 6 | R130: y | S130: . | W130: 0
A131: EFBE82 | B131: 0D | D131: 83 | E131: 107 | F131: 32 | G131: =IF(E131=0,1,OFFSET(fontmap!$L$1,E131-1,0)) -> 47 | H131: =IF(F131=0,1,OFFSET(fontmap!$L$1,F131-1,0)) -> 126 | I131: EDBC9E | J131: 3 | K131: 3 | R131: k | W131: 0
A132: EFBE83 | B132: 0D | D132: 82 | E132: 114 | F132: 117 | G132: =IF(E132=0,1,OFFSET(fontmap!$L$1,E132-1,0)) -> 54 | H132: =IF(F132=0,1,OFFSET(fontmap!$L$1,F132-1,0)) -> 57 | I132: EDBC9F | J132: 6 | K132: 6 | R132: r | S132: u | W132: 0
A133: EFBE84 | B133: 0D | D133: 73 | E133: 73 | F133: 110 | G133: =IF(E133=0,1,OFFSET(fontmap!$L$1,E133-1,0)) -> 18 | H133: =IF(F133=0,1,OFFSET(fontmap!$L$1,F133-1,0)) -> 50 | I133: EDBCA0 | J133: 12 | K133: 10 | R133: I | S133: n | W133: 0
A134: EFBE85 | B134: 0A | D134: 62 | E134: 101 | F134: 105 | G134: =IF(E134=0,1,OFFSET(fontmap!$L$1,E134-1,0)) -> 41 | H134: =IF(F134=0,1,OFFSET(fontmap!$L$1,F134-1,0)) -> 45 | I134: EDBCA1 | J134: 3 | K134: 2 | R134: e | S134: i | W134: 0
A135: EFBE86 | B135: 09 | D135: 61 | E135: 111 | F135: 105 | G135: =IF(E135=0,1,OFFSET(fontmap!$L$1,E135-1,0)) -> 51 | H135: =IF(F135=0,1,OFFSET(fontmap!$L$1,F135-1,0)) -> 45 | I135: EDBCA2 | J135: 5 | K135: 4 | R135: o | S135: i | W135: 0
A136: EFBE87 | B136: 0D | D136: 60 | E136: 99 | F136: 105 | G136: =IF(E136=0,1,OFFSET(fontmap!$L$1,E136-1,0)) -> 39 | H136: =IF(F136=0,1,OFFSET(fontmap!$L$1,F136-1,0)) -> 45 | I136: EDBCA3 | J136: 3 | K136: 3 | R136: c | S136: i | W136: 0
A137: EFBE88 | B137: 0D | D137: 59 | E137: 105 | F137: 111 | G137: =IF(E137=0,1,OFFSET(fontmap!$L$1,E137-1,0)) -> 45 | H137: =IF(F137=0,1,OFFSET(fontmap!$L$1,F137-1,0)) -> 51 | I137: EDBCA4 | J137: 5 | K137: 4 | R137: i | S137: o | W137: 0
A138: EFBE89 | B138: 0D | D138: 59 | E138: 80 | F138: 105 | G138: =IF(E138=0,1,OFFSET(fontmap!$L$1,E138-1,0)) -> 25 | H138: =IF(F138=0,1,OFFSET(fontmap!$L$1,F138-1,0)) -> 45 | I138: EDBCA5 | J138: 8 | K138: 7 | R138: =CHAR(E138) -> P | S138: =CHAR(F138) -> i | W138: 0
A139: EFBE8A | B139: 08 | D139: 58 | E139: 103 | F139: 114 | G139: =IF(E139=0,1,OFFSET(fontmap!$L$1,E139-1,0)) -> 43 | H139: =IF(F139=0,1,OFFSET(fontmap!$L$1,F139-1,0)) -> 54 | I139: EDBCA6 | J139: 14 | K139: 12 | R139: g | S139: r | W139: 0
A140: EFBE8B | B140: 0B | D140: 55 | E140: 76 | F140: 105 | G140: =IF(E140=0,1,OFFSET(fontmap!$L$1,E140-1,0)) -> 21 | H140: =IF(F140=0,1,OFFSET(fontmap!$L$1,F140-1,0)) -> 45 | I140: EDBCA7 | J140: 13 | K140: 11 | R140: L | S140: i | W140: 0
A141: EFBE8C | B141: 0B | D141: 54 | E141: 118 | F141: 105 | G141: =IF(E141=0,1,OFFSET(fontmap!$L$1,E141-1,0)) -> 58 | H141: =IF(F141=0,1,OFFSET(fontmap!$L$1,F141-1,0)) -> 45 | I141: EDBCA8 | J141: 14 | K141: 12 | R141: v | S141: i | W141: 0
A142: EFBE8D | B142: 0A | D142: 54 | E142: 116 | F142: 115 | G142: =IF(E142=0,1,OFFSET(fontmap!$L$1,E142-1,0)) -> 56 | H142: =IF(F142=0,1,OFFSET(fontmap!$L$1,F142-1,0)) -> 55 | I142: EDBCA9 | J142: 15 | K142: 12 | R142: t | S142: s | W142: 0
A143: EFBE8E | B143: 0D | D143: 51 | E143: 114 | F143: 115 | G143: =IF(E143=0,1,OFFSET(fontmap!$L$1,E143-1,0)) -> 54 | H143: =IF(F143=0,1,OFFSET(fontmap!$L$1,F143-1,0)) -> 55 | I143: EDBCAA | J143: 14 | K143: 11 | R143: r | S143: s | W143: 0
A144: EFBE8F | B144: 0D | D144: 51 | E144: 110 | F144: 46 | G144: =IF(E144=0,1,OFFSET(fontmap!$L$1,E144-1,0)) -> 50 | H144: =IF(F144=0,1,OFFSET(fontmap!$L$1,F144-1,0)) -> 132 | I144: EDBCAB | J144: 6 | K144: 6 | R144: n | S144: . | W144: 0
A145: EFBE90 | B145: 0B | D145: 50 | E145: 32 | F145: 107 | G145: =IF(E145=0,1,OFFSET(fontmap!$L$1,E145-1,0)) -> 126 | H145: =IF(F145=0,1,OFFSET(fontmap!$L$1,F145-1,0)) -> 47 | I145: EDBCAC | J145: 11 | K145: 8 | S145: k | W145: 0
A146: EFBE91 | B146: 0D | D146: 49 | E146: 111 | F146: 46 | G146: =IF(E146=0,1,OFFSET(fontmap!$L$1,E146-1,0)) -> 51 | H146: =IF(F146=0,1,OFFSET(fontmap!$L$1,F146-1,0)) -> 132 | I146: EDBCAD | J146: 8 | K146: 8 | R146: o | S146: . | W146: 0
A147: EFBE92 | B147: 0B | D147: 48 | E147: 49 | F147: 49 | G147: =IF(E147=0,1,OFFSET(fontmap!$L$1,E147-1,0)) -> 1 | H147: =IF(F147=0,1,OFFSET(fontmap!$L$1,F147-1,0)) -> 1 | I147: EDBCAE | J147: 15 | K147: 13 | R147: 1 | S147: 1 | W147: 0
A148: EFBE93 | B148: 0B | D148: 47 | E148: 66 | F148: 108 | G148: =IF(E148=0,1,OFFSET(fontmap!$L$1,E148-1,0)) -> 11 | H148: =IF(F148=0,1,OFFSET(fontmap!$L$1,F148-1,0)) -> 48 | I148: EDBCAF | J148: 9 | K148: 9 | R148: B | S148: l | W148: 0
A149: EFBE94 | B149: 0B | D149: 45 | E149: 112 | F149: 105 | G149: =IF(E149=0,1,OFFSET(fontmap!$L$1,E149-1,0)) -> 52 | H149: =IF(F149=0,1,OFFSET(fontmap!$L$1,F149-1,0)) -> 45 | I149: EDBCB0 | J149: 11 | K149: 9 | R149: p | S149: i | W149: 0
A150: EFBE95 | B150: 0D | D150: 38 | E150: 117 | F150: 32 | G150: =IF(E150=0,1,OFFSET(fontmap!$L$1,E150-1,0)) -> 57 | H150: =IF(F150=0,1,OFFSET(fontmap!$L$1,F150-1,0)) -> 126 | I150: EDBCB1 | J150: 16 | K150: 12 | R150: u | W150: 0
A151: EFBE96 | B151: 09 | D151: 37 | E151: 105 | F151: 97 | G151: =IF(E151=0,1,OFFSET(fontmap!$L$1,E151-1,0)) -> 45 | H151: =IF(F151=0,1,OFFSET(fontmap!$L$1,F151-1,0)) -> 37 | I151: EDBCB2 | J151: 12 | K151: 8 | R151: i | S151: a | W151: 0
A152: EFBE97 | B152: 0D | D152: 37 | E152: 100 | F152: 46 | G152: =IF(E152=0,1,OFFSET(fontmap!$L$1,E152-1,0)) -> 40 | H152: =IF(F152=0,1,OFFSET(fontmap!$L$1,F152-1,0)) -> 132 | I152: EDBCB3 | J152: 13 | K152: 9 | R152: d | S152: . | W152: 0
A153: EFBE98 | B153: 0D | D153: 34 | E153: 114 | F153: 103 | G153: =IF(E153=0,1,OFFSET(fontmap!$L$1,E153-1,0)) -> 54 | H153: =IF(F153=0,1,OFFSET(fontmap!$L$1,F153-1,0)) -> 43 | I153: EDBCB4 | J153: 15 | K153: 11 | R153: r | S153: g | W153: 0
A154: EFBE99 | B154: 0D | D154: 34 | E154: 99 | F154: 108 | G154: =IF(E154=0,1,OFFSET(fontmap!$L$1,E154-1,0)) -> 39 | H154: =IF(F154=0,1,OFFSET(fontmap!$L$1,F154-1,0)) -> 48 | I154: EDBCB5 | J154: 13 | K154: 10 | R154: c | S154: l | W154: 0
A155: EFBE9A | B155: 0D | D155: 34 | E155: 32 | F155: 117 | G155: =IF(E155=0,1,OFFSET(fontmap!$L$1,E155-1,0)) -> 126 | H155: =IF(F155=0,1,OFFSET(fontmap!$L$1,F155-1,0)) -> 57 | I155: EDBCB6 | J155: 15 | K155: 11 | S155: u | W155: 0
A156: EFBE9B | B156: 09 | D156: 25 | E156: 105 | F156: 121 | G156: =IF(E156=0,1,OFFSET(fontmap!$L$1,E156-1,0)) -> 45 | H156: =IF(F156=0,1,OFFSET(fontmap!$L$1,F156-1,0)) -> 61 | I156: EDBCB7 | J156: 11 | K156: 8 | R156: i | S156: y | W156: 0
A157: EFBE9C | B157: 05 | D157: 25 | E157: 85 | F157: 108 | G157: =IF(E157=0,1,OFFSET(fontmap!$L$1,E157-1,0)) -> 30 | H157: =IF(F157=0,1,OFFSET(fontmap!$L$1,F157-1,0)) -> 48 | I157: EDBCB8 | J157: 11 | K157: 9 | R157: U | S157: l | W157: 0
A158: EFBE9D | B158: 0A | D158: 25 | E158: 84 | F158: 105 | G158: =IF(E158=0,1,OFFSET(fontmap!$L$1,E158-1,0)) -> 29 | H158: =IF(F158=0,1,OFFSET(fontmap!$L$1,F158-1,0)) -> 45 | I158: EDBCB9 | J158: 12 | K158: 11 | R158: T | S158: i | W158: 0
A159: EFBE9E | B159: 05 | D159: 23 | E159: 100 | F159: 108 | G159: =IF(E159=0,1,OFFSET(fontmap!$L$1,E159-1,0)) -> 40 | H159: =IF(F159=0,1,OFFSET(fontmap!$L$1,F159-1,0)) -> 48 | I159: EDBCBA | J159: 13 | K159: 9 | R159: d | S159: l | W159: 0
A160: EFBE9F | B160: 06 | D160: 23 | E160: 83 | F160: 108 | G160: =IF(E160=0,1,OFFSET(fontmap!$L$1,E160-1,0)) -> 28 | H160: =IF(F160=0,1,OFFSET(fontmap!$L$1,F160-1,0)) -> 48 | I160: EDBCBB | J160: 16 | K160: 11 | R160: S | S160: l | W160: 0
A161: EFBEA0 | B161: 08 | D161: 22 | E161: 114 | F161: 107 | G161: =IF(E161=0,1,OFFSET(fontmap!$L$1,E161-1,0)) -> 54 | H161: =IF(F161=0,1,OFFSET(fontmap!$L$1,F161-1,0)) -> 47 | I161: EDBCBC | J161: 13 | K161: 9 | R161: r | S161: k | W161: 0
A162: EFBEA1 | B162: 05 | D162: 22 | E162: 104 | F162: 46 | G162: =IF(E162=0,1,OFFSET(fontmap!$L$1,E162-1,0)) -> 44 | H162: =IF(F162=0,1,OFFSET(fontmap!$L$1,F162-1,0)) -> 132 | I162: EDBCBD | J162: 11 | K162: 8 | R162: h | S162: . | W162: 0
A163: EFBEA2 | B163: 0A | D163: 20 | E163: 80 | F163: 108 | G163: =IF(E163=0,1,OFFSET(fontmap!$L$1,E163-1,0)) -> 25 | H163: =IF(F163=0,1,OFFSET(fontmap!$L$1,F163-1,0)) -> 48 | I163: EDBCBE | J163: 9 | K163: 7 | R163: P | S163: l | W163: 0
A164: EFBEA3 | B164: 0A | D164: 16 | E164: 121 | F164: 105 | G164: =IF(E164=0,1,OFFSET(fontmap!$L$1,E164-1,0)) -> 61 | H164: =IF(F164=0,1,OFFSET(fontmap!$L$1,F164-1,0)) -> 45 | I164: EDBCBF | J164: 9 | K164: 7 | R164: y | S164: i | W164: 0
A165: EFBEA4 | B165: 0B | D165: 16 | E165: 102 | F165: 45 | G165: =IF(E165=0,1,OFFSET(fontmap!$L$1,E165-1,0)) -> 42 | H165: =IF(F165=0,1,OFFSET(fontmap!$L$1,F165-1,0)) -> 142 | I165: EDBD80 | J165: 11 | K165: 9 | R165: f | S165: - | W165: 0
A166: EFBEA5 | B166: 0B | D166: 15 | E166: 105 | F166: 113 | G166: =IF(E166=0,1,OFFSET(fontmap!$L$1,E166-1,0)) -> 45 | H166: =IF(F166=0,1,OFFSET(fontmap!$L$1,F166-1,0)) -> 53 | I166: EDBD81 | J166: 11 | K166: 9 | R166: i | S166: q | W166: 0
A167: EFBEA6 | B167: 0B | D167: 15 | E167: 97 | F167: 46 | G167: =IF(E167=0,1,OFFSET(fontmap!$L$1,E167-1,0)) -> 37 | H167: =IF(F167=0,1,OFFSET(fontmap!$L$1,F167-1,0)) -> 132 | I167: EDBD82 | J167: 15 | K167: 13 | R167: a | S167: . | W167: 0
A168: EFBEA7 | B168: 0B | D168: 15 | E168: 70 | F168: 105 | G168: =IF(E168=0,1,OFFSET(fontmap!$L$1,E168-1,0)) -> 15 | H168: =IF(F168=0,1,OFFSET(fontmap!$L$1,F168-1,0)) -> 45 | I168: EDBD83 | J168: 12 | K168: 10 | R168: F | S168: i | W168: 0
A169: EFBEA8 | B169: 0B | D169: 14 | E169: 105 | F169: 112 | G169: =IF(E169=0,1,OFFSET(fontmap!$L$1,E169-1,0)) -> 45 | H169: =IF(F169=0,1,OFFSET(fontmap!$L$1,F169-1,0)) -> 52 | I169: EDBD84 | J169: 15 | K169: 11 | R169: i | S169: p | W169: 0
A170: EFBEA9 | B170: 0B | D170: 12 | E170: 101 | F170: 33 | G170: =IF(E170=0,1,OFFSET(fontmap!$L$1,E170-1,0)) -> 41 | H170: =IF(F170=0,1,OFFSET(fontmap!$L$1,F170-1,0)) -> 137 | I170: EDBD85 | J170: 15 | K170: 13 | R170: e | S170: ! | W170: 0
A171: EFBEAA | B171: 0C | D171: 11 | E171: 112 | F171: 46 | G171: =IF(E171=0,1,OFFSET(fontmap!$L$1,E171-1,0)) -> 52 | H171: =IF(F171=0,1,OFFSET(fontmap!$L$1,F171-1,0)) -> 132 | I171: EDBD86 | J171: 13 | K171: 12 | R171: p | S171: . | W171: 0
A172: EFBEAB | B172: 0C | D172: 9 | E172: 99 | F172: 46 | G172: =IF(E172=0,1,OFFSET(fontmap!$L$1,E172-1,0)) -> 39 | H172: =IF(F172=0,1,OFFSET(fontmap!$L$1,F172-1,0)) -> 132 | I172: EDBD87 | J172: 17 | K172: 13 | R172: c | S172: . | W172: 0
A173: EFBEAC | B173: 0C | D173: 8 | E173: 117 | F173: 106 | G173: =IF(E173=0,1,OFFSET(fontmap!$L$1,E173-1,0)) -> 57 | H173: =IF(F173=0,1,OFFSET(fontmap!$L$1,F173-1,0)) -> 46 | I173: EDBD88 | J173: 12 | K173: 10 | R173: u | S173: j | W173: 0
A174: EFBEAD | B174: 0A | D174: 8 | E174: 105 | F174: 98 | G174: =IF(E174=0,1,OFFSET(fontmap!$L$1,E174-1,0)) -> 45 | H174: =IF(F174=0,1,OFFSET(fontmap!$L$1,F174-1,0)) -> 38 | I174: EDBD89 | J174: 7 | K174: 4 | R174: i | S174: b | W174: 0
A175: EFBEAE | B175: 0A | D175: 7 | E175: 70 | F175: 108 | G175: =IF(E175=0,1,OFFSET(fontmap!$L$1,E175-1,0)) -> 15 | H175: =IF(F175=0,1,OFFSET(fontmap!$L$1,F175-1,0)) -> 48 | I175: EDBD8A | J175: 11 | K175: 8 | R175: F | S175: l | W175: 0
A176: EFBEAF | B176: 0B | D176: 7 | E176: 66 | F176: 105 | G176: =IF(E176=0,1,OFFSET(fontmap!$L$1,E176-1,0)) -> 11 | H176: =IF(F176=0,1,OFFSET(fontmap!$L$1,F176-1,0)) -> 45 | I176: EDBD8B | J176: 3 | K176: 3 | R176: B | S176: i | W176: 0
A177: EFBEB0 | B177: 0A | D177: 6 | E177: 120 | F177: 105 | G177: =IF(E177=0,1,OFFSET(fontmap!$L$1,E177-1,0)) -> 60 | H177: =IF(F177=0,1,OFFSET(fontmap!$L$1,F177-1,0)) -> 45 | I177: EDBD8C | J177: 7 | K177: 6 | R177: x | S177: i | W177: 0
A178: EFBEB1 | B178: 0A | D178: 6 | E178: 108 | F178: 99 | G178: =IF(E178=0,1,OFFSET(fontmap!$L$1,E178-1,0)) -> 48 | H178: =IF(F178=0,1,OFFSET(fontmap!$L$1,F178-1,0)) -> 39 | I178: EDBD8D | J178: 4 | K178: 4 | R178: l | S178: c | W178: 0
A179: EFBEB2 | B179: 0B | D179: 6 | E179: 105 | F179: 120 | G179: =IF(E179=0,1,OFFSET(fontmap!$L$1,E179-1,0)) -> 45 | H179: =IF(F179=0,1,OFFSET(fontmap!$L$1,F179-1,0)) -> 60 | I179: EDBD8E | J179: 7 | K179: 6 | R179: i | S179: x | W179: 0
A180: EFBEB3 | B180: 0A | D180: 6 | E180: 83 | F180: 105 | G180: =IF(E180=0,1,OFFSET(fontmap!$L$1,E180-1,0)) -> 28 | H180: =IF(F180=0,1,OFFSET(fontmap!$L$1,F180-1,0)) -> 45 | I180: EDBD8F | J180: 4 | K180: 4 | R180: S | S180: i | W180: 0
A181: EFBEB4 | B181: 0A | D181: 5 | E181: 120 | F181: 46 | G181: =IF(E181=0,1,OFFSET(fontmap!$L$1,E181-1,0)) -> 60 | H181: =IF(F181=0,1,OFFSET(fontmap!$L$1,F181-1,0)) -> 132 | I181: EDBD90 | J181: 7 | K181: 6 | R181: x | S181: . | W181: 0
A182: EFBEB5 | B182: 0B | D182: 5 | E182: 108 | F182: 112 | G182: =IF(E182=0,1,OFFSET(fontmap!$L$1,E182-1,0)) -> 48 | H182: =IF(F182=0,1,OFFSET(fontmap!$L$1,F182-1,0)) -> 52 | I182: EDBD91 | J182: 12 | K182: 9 | R182: l | S182: p | W182: 0
A183: EFBEB6 | B183: 0A | D183: 5 | E183: 73 | F183: 97 | G183: =IF(E183=0,1,OFFSET(fontmap!$L$1,E183-1,0)) -> 18 | H183: =IF(F183=0,1,OFFSET(fontmap!$L$1,F183-1,0)) -> 37 | I183: EDBD92 | J183: 14 | K183: 10 | R183: I | S183: a | W183: 0
A184: EFBEB7 | B184: 09 | D184: 4 | E184: 110 | F184: 108 | G184: =IF(E184=0,1,OFFSET(fontmap!$L$1,E184-1,0)) -> 50 | H184: =IF(F184=0,1,OFFSET(fontmap!$L$1,F184-1,0)) -> 48 | I184: EDBD93 | J184: 8 | K184: 7 | R184: n | S184: l | W184: 0
A185: EFBEB8 | B185: 0D | D185: 4 | E185: 107 | F185: 114 | G185: =IF(E185=0,1,OFFSET(fontmap!$L$1,E185-1,0)) -> 47 | H185: =IF(F185=0,1,OFFSET(fontmap!$L$1,F185-1,0)) -> 54 | I185: EDBD94 | J185: 4 | K185: 3 | R185: k | S185: r | W185: 0
A186: EFBEB9 | B186: 0D | D186: 4 | E186: 76 | F186: 46 | G186: =IF(E186=0,1,OFFSET(fontmap!$L$1,E186-1,0)) -> 21 | H186: =IF(F186=0,1,OFFSET(fontmap!$L$1,F186-1,0)) -> 132 | I186: EDBD95 | J186: 4 | K186: 4 | R186: L | S186: . | W186: 0
A187: EFBEBA | B187: 0C | D187: 3 | E187: 111 | F187: 33 | G187: =IF(E187=0,1,OFFSET(fontmap!$L$1,E187-1,0)) -> 51 | H187: =IF(F187=0,1,OFFSET(fontmap!$L$1,F187-1,0)) -> 137 | I187: EDBD96 | J187: 13 | K187: 10 | R187: o | S187: ! | W187: 0
A188: EFBEBB | B188: 0C | D188: 3 | E188: 98 | F188: 105 | G188: =IF(E188=0,1,OFFSET(fontmap!$L$1,E188-1,0)) -> 38 | H188: =IF(F188=0,1,OFFSET(fontmap!$L$1,F188-1,0)) -> 45 | I188: EDBD97 | J188: 10 | K188: 9 | R188: b | S188: i | W188: 0
A189: EFBEBC | B189: 0C | D189: 3 | E189: 76 | F189: 73 | G189: =IF(E189=0,1,OFFSET(fontmap!$L$1,E189-1,0)) -> 21 | H189: =IF(F189=0,1,OFFSET(fontmap!$L$1,F189-1,0)) -> 18 | I189: EDBD98 | J189: 11 | K189: 11 | R189: L | S189: I | W189: 0
A190: EFBEBD | B190: 0D | D190: 3 | E190: 73 | F190: 70 | G190: =IF(E190=0,1,OFFSET(fontmap!$L$1,E190-1,0)) -> 18 | H190: =IF(F190=0,1,OFFSET(fontmap!$L$1,F190-1,0)) -> 15 | I190: EDBD99 | J190: 13 | K190: 13 | R190: I | S190: F | W190: 0
A191: EFBEBE | B191: 0D | D191: 3 | E191: 69 | F191: 46 | G191: =IF(E191=0,1,OFFSET(fontmap!$L$1,E191-1,0)) -> 14 | H191: =IF(F191=0,1,OFFSET(fontmap!$L$1,F191-1,0)) -> 132 | I191: EDBD9A | J191: 12 | K191: 10 | R191: E | S191: . | W191: 0
A192: EFBEBF | B192: 0C | D192: 2 | E192: 108 | F192: 118 | G192: =IF(E192=0,1,OFFSET(fontmap!$L$1,E192-1,0)) -> 48 | H192: =IF(F192=0,1,OFFSET(fontmap!$L$1,F192-1,0)) -> 58 | I192: EDBD9B | J192: 12 | K192: 9 | R192: l | S192: v | W192: 0
A193: EFBF80 | B193: 0C | D193: 2 | E193: 73 | F193: 84 | G193: =IF(E193=0,1,OFFSET(fontmap!$L$1,E193-1,0)) -> 18 | H193: =IF(F193=0,1,OFFSET(fontmap!$L$1,F193-1,0)) -> 29 | I193: EDBD9C | J193: 9 | K193: 7 | R193: I | S193: T | W193: 0
A194: EFBF81 | B194: 0D | D194: 1 | E194: 83 | F194: 46 | G194: =IF(E194=0,1,OFFSET(fontmap!$L$1,E194-1,0)) -> 28 | H194: =IF(F194=0,1,OFFSET(fontmap!$L$1,F194-1,0)) -> 132 | I194: EDBD9D | J194: 10 | K194: 8 | R194: S | S194: . | W194: 0
A195: EFBF82 | B195: 0D | D195: 1 | E195: 55 | F195: 39 | G195: =IF(E195=0,1,OFFSET(fontmap!$L$1,E195-1,0)) -> 7 | H195: =IF(F195=0,1,OFFSET(fontmap!$L$1,F195-1,0)) -> 140 | I195: EDBD9E | J195: 10 | K195: 9 | R195: 7 | S195: ' | W195: 0
A196: EFBF83 | B196: 0C | D196: 1 | E196: 54 | F196: 39 | G196: =IF(E196=0,1,OFFSET(fontmap!$L$1,E196-1,0)) -> 6 | H196: =IF(F196=0,1,OFFSET(fontmap!$L$1,F196-1,0)) -> 140 | I196: EDBD9F | J196: 5 | K196: 5 | R196: 6 | S196: ' | W196: 0
A197: EFBF84 | B197: 0C | D197: 0 | E197: 0 | F197: 0 | G197: =IF(E197=0,1,OFFSET(fontmap!$L$1,E197-1,0)) -> 1 | H197: =IF(F197=0,1,OFFSET(fontmap!$L$1,F197-1,0)) -> 1 | I197: EDBDA0 | J197: 9 | K197: 6 | W197: 0
A198: EFBF85 | B198: 0C | D198: 0 | E198: 0 | F198: 0 | G198: =IF(E198=0,1,OFFSET(fontmap!$L$1,E198-1,0)) -> 1 | H198: =IF(F198=0,1,OFFSET(fontmap!$L$1,F198-1,0)) -> 1 | I198: EDBDA1 | J198: 14 | K198: 11 | W198: 0
A199: EFBF86 | B199: 05 | D199: 0 | E199: 0 | F199: 0 | G199: =IF(E199=0,1,OFFSET(fontmap!$L$1,E199-1,0)) -> 1 | H199: =IF(F199=0,1,OFFSET(fontmap!$L$1,F199-1,0)) -> 1 | I199: EDBDA2 | J199: 14 | K199: 11 | W199: 0
A200: EFBF87 | B200: 05 | D200: 0 | E200: 0 | F200: 0 | G200: =IF(E200=0,1,OFFSET(fontmap!$L$1,E200-1,0)) -> 1 | H200: =IF(F200=0,1,OFFSET(fontmap!$L$1,F200-1,0)) -> 1 | I200: EDBDA3 | J200: 12 | K200: 10 | W200: 0
... 323 more rows

Sheet LUB
A1: event | B1: 00000000.lub
A2: event | B2: d_kbj_000.lub
A3: event | B3: d_kbj_001.lub
A4: event | B4: d_kbj_002.lub
A5: event | B5: d_kbj_003.lub
A6: event | B6: d_kbj_004.lub
A7: event | B7: d_kbj_005.lub
A8: event | B8: d_kbj_006.lub
A9: event | B9: d_kbj_007.lub
A10: event | B10: d_kbj_008.lub
A11: event | B11: d_kbj_009.lub
A12: event | B12: d_kbj_010.lub
A13: event | B13: d_kbj_011.lub
A14: event | B14: d_kbj_012.lub
A15: event | B15: d_kbj_013.lub
A16: event | B16: d_kbj_014.lub
A17: event | B17: d_kbj_100.lub
A18: event | B18: d_kbj_101.lub
A19: event | B19: d_kbj_102.lub
A20: event | B20: d_mtr_000.lub
A21: event | B21: d_mtr_001.lub
A22: event | B22: d_mtr_002.lub
A23: event | B23: d_mtr_003.lub
A24: event | B24: d_mtr_004.lub
A25: event | B25: d_mtr_005.lub
A26: event | B26: d_mtr_006.lub
A27: event | B27: d_mtr_007.lub
A28: event | B28: d_mtr_010.lub
A29: event | B29: d_mtr_020.lub
A30: event | B30: d_mtr_100.lub
A31: event | B31: d_mtr_101.lub
A32: event | B32: d_rpg_000.lub
A33: event | B33: d_rpg_001.lub
A34: event | B34: d_rpg_002.lub
A35: event | B35: d_rpg_003.lub
A36: event | B36: d_rpg_004.lub
A37: event | B37: d_rpg_005.lub
A38: event | B38: d_rpg_006.lub
A39: event | B39: d_rpg_007.lub
A40: event | B40: d_rpg_100.lub
A41: event | B41: d_rpg_101.lub
A42: event | B42: d_sby_000.lub
A43: event | B43: d_sby_001.lub
A44: event | B44: d_sby_002.lub
A45: event | B45: d_sby_003.lub
A46: event | B46: d_sby_004.lub
A47: event | B47: d_sby_005.lub
A48: event | B48: d_sby_006.lub
A49: event | B49: d_sby_007.lub
A50: event | B50: d_sby_008.lub
A51: event | B51: d_sby_009.lub
A52: event | B52: d_sby_010.lub
A53: event | B53: d_sby_011.lub
A54: event | B54: d_sby_100.lub
A55: event | B55: d_sby_101.lub
A56: event | B56: d_stk_000.lub
A57: event | B57: d_stk_001.lub
A58: event | B58: d_stk_002.lub
A59: event | B59: d_stk_003.lub
A60: event | B60: d_stk_004.lub
A61: event | B61: d_stk_005.lub
A62: event | B62: d_stk_006.lub
A63: event | B63: d_stk_007.lub
A64: event | B64: d_stk_100.lub
A65: event | B65: d_stk_101.lub
A66: event | B66: d_tch_000.lub
A67: event | B67: d_tch_001.lub
A68: event | B68: d_tch_002.lub
A69: event | B69: d_tch_003.lub
A70: event | B70: d_tch_004.lub
A71: event | B71: d_tch_005.lub
A72: event | B72: d_tch_100.lub
A73: event | B73: d_tch_101.lub
A74: event | B74: d_tky_000.lub
A75: event | B75: d_tky_001.lub
A76: event | B76: d_tky_002.lub
A77: event | B77: d_tky_003.lub
A78: event | B78: d_tky_004.lub
A79: event | B79: d_tky_005.lub
A80: event | B80: d_tky_006.lub
A81: event | B81: d_tky_007.lub
A82: event | B82: d_tky_100.lub
A83: event | B83: d_tky_101.lub
A84: event | B84: d_tra_000.lub
A85: event | B85: d_tra_001.lub
A86: event | B86: d_tra_002.lub
A87: event | B87: d_tra_003.lub
A88: event | B88: d_tra_100.lub
A89: event | B89: d_tra_101.lub
A90: event | B90: d_trb_000.lub
A91: event | B91: d_trb_001.lub
A92: event | B92: d_trb_002.lub
A93: event | B93: d_trb_003.lub
A94: event | B94: d_trb_004.lub
A95: event | B95: d_trb_005.lub
A96: event | B96: d_trb_006.lub
A97: event | B97: d_trb_007.lub
A98: event | B98: d_trb_100.lub
A99: event | B99: d_trb_101.lub
A100: event | B100: d_trb_102.lub
A101: event | B101: d_urd_000.lub
A102: event | B102: d_urd_001.lub
A103: event | B103: d_urd_002.lub
A104: event | B104: d_urd_003.lub
A105: event | B105: d_urd_004.lub
A106: event | B106: d_urd_005.lub
A107: event | B107: d_urd_006.lub
A108: event | B108: d_urd_007.lub
A109: event | B109: d_urd_008.lub
A110: event | B110: d_urd_009.lub
A111: event | B111: d_urd_010.lub
A112: event | B112: d_urd_011.lub
A113: event | B113: d_urd_012.lub
A114: event | B114: d_urd_013.lub
A115: event | B115: d_urd_014.lub
A116: event | B116: d_urd_015.lub
A117: event | B117: d_urd_016.lub
A118: event | B118: d_urd_017.lub
A119: event | B119: d_urd_018.lub
A120: event | B120: d_ymn_000.lub
A121: event | B121: d_ymn_001.lub
A122: event | B122: d_ymn_002.lub
A123: event | B123: d_ymn_003.lub
A124: event | B124: d_ymn_004.lub
A125: event | B125: d_ymn_005.lub
A126: event | B126: d_ymn_006.lub
A127: event | B127: d_ymn_007.lub
A128: event | B128: d_ymn_100.lub
A129: event | B129: d_ymn_101.lub
A130: event | B130: EV05_03_0500B.lub
A131: event | B131: e_evt_000.lub
A132: event | B132: e_evt_001.lub
A133: event | B133: e_evt_002.lub
A134: event | B134: e_evt_003.lub
A135: event | B135: i_gzd_000.lub
A136: event | B136: i_gzd_001.lub
A137: event | B137: i_gzd_002.lub
A138: event | B138: i_gzd_003.lub
A139: event | B139: i_gzd_004.lub
A140: event | B140: i_gzd_005.lub
A141: event | B141: i_gzd_006.lub
A142: event | B142: i_gzd_007.lub
A143: event | B143: i_gzd_008.lub
A144: event | B144: i_gzd_009.lub
A145: event | B145: i_gzd_010.lub
A146: event | B146: i_gzd_011.lub
A147: event | B147: i_gzd_012.lub
A148: event | B148: i_gzd_013.lub
A149: event | B149: i_gzd_014.lub
A150: event | B150: i_gzd_015.lub
A151: event | B151: i_gzd_016.lub
A152: event | B152: i_gzd_017.lub
A153: event | B153: i_gzd_018.lub
A154: event | B154: i_gzd_019.lub
A155: event | B155: i_gzd_020.lub
A156: event | B156: t_gzd_000.lub
A157: event | B157: t_gzd_001.lub
A158: event | B158: t_gzd_002.lub
A159: event | B159: t_gzd_003.lub
A160: event | B160: t_gzd_004.lub
A161: event | B161: t_gzd_005.lub
A162: event | B162: t_gzd_006.lub
A163: event | B163: t_gzd_007.lub
A164: event | B164: t_gzd_008.lub
A165: event | B165: t_gzd_009.lub
A166: event | B166: t_gzd_010.lub
A167: event | B167: t_gzd_011.lub
A168: event | B168: t_gzd_012.lub
A169: event | B169: t_gzd_013.lub
A170: event | B170: t_gzd_014.lub
A171: event | B171: t_gzd_015.lub
A172: event | B172: t_gzd_016.lub
A173: event | B173: t_gzd_017.lub
A174: event | B174: t_gzd_018.lub
A175: event | B175: t_gzd_019.lub
A176: event | B176: t_gzd_100.lub
A177: event | B177: t_gzd_101.lub
A178: event | B178: t_gzd_102.lub
A179: event | B179: w_wld_000.lub

Sheet NON-LUB
A1: init\init | B1: B_BATTLE1.BIN
A2: init\init | B2: COMMON1.BIN
A3: init\init | B3: CUSTOMMENUTEXT.BIN
A4: init\init | B4: ENEMY_LIST.BIN
A5: init\init | B5: ITEMDATA.BIN
A6: init\init | B6: TOWNTEXT.BIN
A7: init\init | B7: UICOMMONTEXT.BIN
A8: ui\quest | B8: QUESTTEXT1.BIN
A9: worldmap\WorldMap | B9: WORLD1.BIN
A10: worldmap\WorldModel | B10: WORLD1.BIN

Sheet event
A1: event | B1: 00000000.lub | C1: 173 | F1: メッセージテスト中
A2: event | B2: 00000000.lub | C2: 206 | F2: 乱入やっつけたイベント成功っぽいよ
A3: event | B3: 00000000.lub | C3: 263 | F3: テスト太郎
A4: event | B4: 00000000.lub | C4: 819 | D4: 4556454E543A696E69742074657374303030302A2A2A2A2A2A2A2A2A2A | E4: EVENT:init test0000********** | F4: 議員宿舎・（小会議室）
A5: event | B5: 00000000.lub | C5: 1039 | F5: あ
A6: event | B6: 00000000.lub | C6: 1058 | F6: い
A7: event | B7: 00000000.lub | C7: 1072 | F7: う
A8: event | B8: 00000000.lub | C8: 1988 | F8: テスト太郎
A9: event | B9: 00000000.lub | C9: 6706 | D9: 20 | F9: ハンドル重複
D10: 20
A11: event | B11: 00000000.lub | C11: 7987 | F11: ●エンティティがいません
D12: 203A2053657449636F6E205B | E12: : SetIcon [
A13: event | B13: 00000000.lub | C13: 8437 | F13: ●エンティティがいません
D14: 203A20436872446973704F6666205B | E14: : ChrDispOff [
A15: event | B15: 00000000.lub | C15: 8711 | F15: ●エンティティがいません
D16: 203A20436872446973704F6E205B | E16: : ChrDispOn [
A17: event | B17: 00000000.lub | C17: 8939 | F17: ●●●自衛隊の銃を非表示にしました●●●
D18: 205B | E18: [
A19: event | B19: 00000000.lub | C19: 9862 | F19: ●エンティティがいません
D20: 203A20436872536574506F73205B | E20: : ChrSetPos [
A21: event | B21: 00000000.lub | C21: 12250 | D21: 20 | F21: ハンドル重複
D22: 20
A23: event | B23: 00000000.lub | C23: 14717 | D23: 20 | F23: モーション名作る
D24: 20
A25: event | B25: 00000000.lub | C25: 14817
A26: event | B26: 00000000.lub | C26: 14956 | D26: 20 | F26: フルネーム？
D27: 20
A28: event | B28: 00000000.lub | C28: 16529 | F28: ●アタッチするエンティティがいません
D29: 203A20417474616368456E74697479205B | E29: : AttachEntity [
A30: event | B30: 00000000.lub | C30: 16613 | F30: ●エンティティがいません
D31: 203A20417474616368456E74697479205B | E31: : AttachEntity [
A32: event | B32: 00000000.lub | C32: 17085 | F32: ●●●●
D33: 204576656E7443616D65726144656C65746564212120 | E33: EventCameraDeleted!! | F33: ●●●●
A34: event | B34: 00000000.lub | C34: 17795 | F34: ★★★★
D35: 20 | F35: ムラクモ会議 キートリガー『自衛隊からの要請』を入手しました
D36: 205B436865636B466C61674E6F203A20 | E36: [CheckFlagNo :
A37: event | B37: 00000000.lub | C37: 17920 | D37: 5D20 | E37: ] | F37: ★★★★
A38: event | B38: 00000000.lub | C38: 17950 | F38: ★★★★
D39: 20 | F39: ムラクモ会議 キートリガー『エメルからの要請』を入手しました
D40: 205B436865636B466C61674E6F203A20 | E40: [CheckFlagNo :
A41: event | B41: 00000000.lub | C41: 18085 | F41: ★★★★
D42: 20 | F42: ムラクモ会議 キートリガー『ＳＫＹの合流』を入手しました
D43: 205B436865636B466C61674E6F203A20 | E43: [CheckFlagNo :
A44: event | B44: 00000000.lub | C44: 18724 | F44: ★★★★
D45: 20 | F45: ムラクモ会議 改修＆開発メニューを追加しました。現在の改修レベル
D46: 203A204C563031205B436865636B466C61674E6F203A20 | E46: : LV01 [CheckFlagNo :
A47: event | B47: 00000000.lub | C47: 18862 | D47: 5D20 | E47: ] | F47: ★★★★
A48: event | B48: 00000000.lub | C48: 18892 | F48: ★★★★
D49: 20 | F49: ムラクモ会議 改修＆開発メニューを追加しました。現在の改修レベル
D50: 203A204C563032205B436865636B466C61674E6F203A20 | E50: : LV02 [CheckFlagNo :
A51: event | B51: 00000000.lub | C51: 19040 | F51: ★★★★
D52: 20 | F52: ムラクモ会議 改修＆開発メニューを追加しました。現在の改修レベル
D53: 203A204C563033205B436865636B466C61674E6F203A20 | E53: : LV03 [CheckFlagNo :
A54: event | B54: 00000000.lub | C54: 19188 | F54: ★★★★
D55: 20 | F55: ムラクモ会議 改修＆開発メニューを追加しました。現在の改修レベル
D56: 203A204C563034205B436865636B466C61674E6F203A20 | E56: : LV04 [CheckFlagNo :
A57: event | B57: 00000000.lub | C57: 19336 | F57: ★★★★
D58: 20 | F58: ムラクモ会議 改修＆開発メニューを追加しました。現在の改修レベル
D59: 203A204C563035205B436865636B466C61674E6F203A20 | E59: : LV05 [CheckFlagNo :
A60: event | B60: 00000000.lub | C60: 19484 | F60: ★★★★
D61: 20 | F61: ムラクモ会議 改修＆開発メニューを追加しました。現在の改修レベル
D62: 203A204C563036205B436865636B466C61674E6F203A20 | E62: : LV06 [CheckFlagNo :
A63: event | B63: 00000000.lub | C63: 19632 | F63: ★★★★
D64: 20 | F64: ムラクモ会議 改修＆開発メニューを追加しました。現在の改修レベル
D65: 203A204C563037205B436865636B466C61674E6F203A20 | E65: : LV07 [CheckFlagNo :
A66: event | B66: 00000000.lub | C66: 19780 | F66: ★★★★
D67: 20 | F67: ムラクモ会議 改修＆開発メニューを追加しました。現在の改修レベル
D68: 203A204C563038205B436865636B466C61674E6F203A20 | E68: : LV08 [CheckFlagNo :
A69: event | B69: 00000000.lub | C69: 19928 | F69: ★★★★
D70: 20 | F70: ムラクモ会議 改修＆開発メニューを追加しました。現在の改修レベル
D71: 203A204C563039205B436865636B466C61674E6F203A20 | E71: : LV09 [CheckFlagNo :
A72: event | B72: 00000000.lub | C72: 22112 | F72: ★★★★ＮＰＣ会話切り替え
D73: 4E4F2E203A20 | E73: NO. :
A74: event | B74: 00000000.lub | C74: 22187 | D74: 20 | F74: に移行しました
D75: 205B436865636B466C61674E6F203A20 | E75: [CheckFlagNo :
A76: event | B76: 00000000.lub | C76: 22231 | D76: 5D20 | E76: ] | F76: ★★★★
A77: event | B77: 00000000.lub | C77: 25507 | F77: ★★★★１章：セクション０
D78: 20 | F78: ＰＣフリー区間
D79: 203A20 | E79: :
A80: event | B80: 00000000.lub | C80: 25596 | D80: 20 | F80: に移行しました
D81: 205B436865636B466C61674E6F203A20 | E81: [CheckFlagNo :
A82: event | B82: 00000000.lub | C82: 25640 | D82: 5D20 | E82: ] | F82: ★★★★
A83: event | B83: 00000000.lub | C83: 25700 | F83: ★★★★１章：セクション２
D84: 20 | F84: ＰＣフリー区間
D85: 203A20 | E85: :
A86: event | B86: 00000000.lub | C86: 25795 | F86: ★★★★１章：セクション３
D87: 20 | F87: ＰＣフリー区間
D88: 203A20 | E88: :
A89: event | B89: 00000000.lub | C89: 25870 | F89: ★★★★１章：セクション４
D90: 20 | F90: ＰＣフリー区間
D91: 203A20 | E91: :
A92: event | B92: 00000000.lub | C92: 25955 | F92: ★★★★１章：セクション５
D93: 20 | F93: ＰＣフリー区間
D94: 203A20 | E94: :
A95: event | B95: 00000000.lub | C95: 26030 | F95: ★★★★１章：セクション６
D96: 20 | F96: ＰＣフリー区間
D97: 203A20 | E97: :
A98: event | B98: 00000000.lub | C98: 26120 | F98: ★★★★２章：セクション０
D99: 20 | F99: ＰＣフリー区間
D100: 203A20 | E100: :
A101: event | B101: 00000000.lub | C101: 26210 | F101: ★★★★２章：セクション２
D102: 20 | F102: ＰＣフリー区間
D103: 203A20 | E103: :
A104: event | B104: 00000000.lub | C104: 26295 | F104: ★★★★２章：セクション３
D105: 20 | F105: ＰＣフリー区間
D106: 203A20 | E106: :
A107: event | B107: 00000000.lub | C107: 26385 | F107: ★★★★２章：セクション４
D108: 20 | F108: ＰＣフリー区間
D109: 203A20 | E109: :
A110: event | B110: 00000000.lub | C110: 26465 | F110: ★★★★２章：セクション５
D111: 20 | F111: ＰＣフリー区間
D112: 203A20 | E112: :
A113: event | B113: 00000000.lub | C113: 26565 | F113: ★★★★３章：セクション０
D114: 20 | F114: ＰＣフリー区間
D115: 203A20 | E115: :
A116: event | B116: 00000000.lub | C116: 26660 | F116: ★★★★３章：セクション２
D117: 20 | F117: ＰＣフリー区間
D118: 203A20 | E118: :
A119: event | B119: 00000000.lub | C119: 26755 | F119: ★★★★３章：セクション３
D120: 20 | F120: ＰＣフリー区間
D121: 203A20 | E121: :
A122: event | B122: 00000000.lub | C122: 26855 | F122: ★★★★３章：セクション４
D123: 20 | F123: ＰＣフリー区間
D124: 203A20 | E124: :
A125: event | B125: 00000000.lub | C125: 26940 | F125: ★★★★４章：セクション０
D126: 20 | F126: ＰＣフリー区間
D127: 203A20 | E127: :
A128: event | B128: 00000000.lub | C128: 27045 | F128: ★★★★４章：セクション２
D129: 20 | F129: ＰＣフリー区間
D130: 203A20 | E130: :
A131: event | B131: 00000000.lub | C131: 27125 | F131: ★★★★４章：セクション３
D132: 20 | F132: ＰＣフリー区間
D133: 203A20 | E133: :
A134: event | B134: 00000000.lub | C134: 27205 | F134: ★★★★４章：セクション４
D135: 20 | F135: ＰＣフリー区間
D136: 203A20 | E136: :
A137: event | B137: 00000000.lub | C137: 27285 | F137: ★★★★４章：セクション５
D138: 20 | F138: ＰＣフリー区間
D139: 203A20 | E139: :
A140: event | B140: 00000000.lub | C140: 27365 | F140: ★★★★４章：セクション７
D141: 20 | F141: ＰＣフリー区間
D142: 203A20 | E142: :
A143: event | B143: 00000000.lub | C143: 27450 | F143: ★★★★４章：セクション８
D144: 20 | F144: ＰＣフリー区間
D145: 203A20 | E145: :
A146: event | B146: 00000000.lub | C146: 27535 | F146: ★★★★５章：セクション０
D147: 20 | F147: ＰＣフリー区間
D148: 203A20 | E148: :
A149: event | B149: 00000000.lub | C149: 27655 | F149: ★★★★５章：セクション２
D150: 20 | F150: ＰＣフリー区間
D151: 203A20 | E151: :
A152: event | B152: 00000000.lub | C152: 27770 | F152: ★★★★５章：セクション３
D153: 20 | F153: ＰＣフリー区間
D154: 203A20 | E154: :
A155: event | B155: 00000000.lub | C155: 27875 | F155: ★★★★６章：セクション０
D156: 20 | F156: ＰＣフリー区間
D157: 203A20 | E157: :
A158: event | B158: 00000000.lub | C158: 27960 | F158: ★★★★６章：セクション１
D159: 20 | F159: ＰＣフリー区間
D160: 203A20 | E160: :
A161: event | B161: 00000000.lub | C161: 28050 | F161: ★★★★７章：セクション０
D162: 20 | F162: ＰＣフリー区間
D163: 203A20 | E163: :
A164: event | B164: 00000000.lub | C164: 28170 | F164: ★★★★７章：セクション１
D165: 20 | F165: ＰＣフリー区間
D166: 203A20 | E166: :
A167: event | B167: 00000000.lub | C167: 28260 | F167: ★★★★
D168: 3130 | E168: 10 | F168: 章：セクション１
D169: 20 | F169: ＰＣフリー区間
D170: 203A20 | E170: :
A171: event | B171: 00000000.lub | C171: 28384 | F171: ★★★★
D172: 3130 | E172: 10 | F172: 章：セクション２
D173: 20 | F173: ＰＣフリー区間
D174: 203A20 | E174: :
A175: event | B175: 00000000.lub | C175: 28458 | F175: ★★★★
D176: 3130 | E176: 10 | F176: 章：セクション３
D177: 20 | F177: ＰＣフリー区間
D178: 203A20 | E178: :
A179: event | B179: 00000000.lub | C179: 28532 | F179: ★★★★
D180: 3130 | E180: 10 | F180: 章：最終ＰＣフリー区間
D181: 203A20 | E181: :
A182: event | B182: 00000000.lub | C182: 28918 | F182: ★★★★ あらすじを更新しました。現在のあらすじ番号
D183: 203A20 | E183: :
A184: event | B184: 00000000.lub | C184: 29045 | D184: 5D20 | E184: ] | F184: ★★★★
A185: event | B185: 00000000.lub | C185: 29493
A186: event | B186: 00000000.lub | C186: 32907
A187: event | B187: 00000000.lub | C187: 34606
A188: event | B188: 00000000.lub | C188: 34716 | F188: ●●●●●●●● エネミー出現ジェネレーションを更新しました。現在のエネミージェネレーション
D189: 203A20 | E189: :
A190: event | B190: 00000000.lub | C190: 34908
A191: event | B191: 00000000.lub | C191: 35019 | D191: 6465627567206F6E | E191: debug on
A193: event | B193: d_kbj_000.lub | C193: 505 | F193: ■■■■■■■■
D194: 204669656C6420496E6974203A20645F6B626A5F30303020 | E194: Field Init : d_kbj_000 | F194: ■■■■■■■■
D195: 20 | F195: 工場内１
A196: event | B196: d_kbj_000.lub | C196: 1475 | F196: ◆
D197: 20506C6179657220436F6E74726F6C202D3E20456E61626C65203A20645F6B626A5F303030 | E197: Player Control -> Enable : d_kbj_000
A198: event | B198: d_kbj_000.lub | C198: 6605 | F198: 終了演出
A199: event | B199: d_kbj_000.lub | C199: 6709 | F199: クエストを達成しました！
A200: event | B200: d_kbj_000.lub | C200: 6991 | D200: 2353434C28373120313636203235352032353529236974656D2345434C | E200: #SCL(71 166 255 255)#item#ECL | F200: を手に入れた！
A201: event | B201: d_kbj_000.lub | C201: 7066 | D201: 2353434C28373120313636203235352032353529236974656D2345434C | E201: #SCL(71 166 255 255)#item#ECL | F201: を
... 4290 more rows

Sheet eventslim
A1: event | B1: 00000000.lub | C1: 173 | F1: メッセージテスト中 | M1: Testing | Y1: EFBCB4EFBD85EDBC83EDBC81EFBD87
A2: event | B2: 00000000.lub | C2: 206 | F2: 乱入やっつけたイベント成功っぽいよ | M2: Testing | Y2: EFBCB4EFBD85EDBC83EDBC81EFBD87
A3: event | B3: 00000000.lub | C3: 263 | F3: テスト太郎 | M3: Testing | Y3: EFBCB4EFBD85EDBC83EDBC81EFBD87
A4: event | B4: 00000000.lub | C4: 819 | D4: 4556454E543A696E69742074657374303030302A2A2A2A2A2A2A2A2A2A | E4: EVENT:init test0000********** | F4: 議員宿舎・（小会議室） | L4: 4556454E543A696E69742074657374303030302A2A2A2A2A2A2A2A2A2A | M4: Testing | Y4: 4556454E543A696E69742074657374303030302A2A2A2A2A2A2A2A2A2AEFBCB4EFBD85EDBC83EDBC81EFBD87
A5: event | B5: 00000000.lub | C5: 1039 | F5: あ | M5: Testing | Y5: EFBCB4EFBD85EDBC83EDBC81EFBD87
A6: event | B6: 00000000.lub | C6: 1058 | F6: い | M6: Testing | Y6: EFBCB4EFBD85EDBC83EDBC81EFBD87
A7: event | B7: 00000000.lub | C7: 1072 | F7: う | M7: Testing | Y7: EFBCB4EFBD85EDBC83EDBC81EFBD87
A8: event | B8: 00000000.lub | C8: 1988 | F8: テスト太郎 | M8: Testing | Y8: EFBCB4EFBD85EDBC83EDBC81EFBD87
A9: event | B9: 00000000.lub | C9: 14717 | D9: 20 | F9: モーション名作る | L9: 20 | M9: Testing | Y9: 20EFBCB4EFBD85EDBC83EDBC81EFBD87
D10: 20 | L10: 20 | Y10: 20
A11: event | B11: 00000000.lub | C11: 14956 | D11: 20 | F11: フルネーム？ | L11: 20 | Y11: 20
D12: 20 | L12: 20 | M12: Testing | Y12: 20EFBCB4EFBD85EDBC83EDBC81EFBD87
A13: event | B13: 00000000.lub | C13: 22187 | D13: 20 | F13: に移行しました | L13: 20 | Y13: 20
D14: 205B436865636B466C61674E6F203A20 | E14: [CheckFlagNo : | L14: 205B436865636B466C61674E6F203A20 | M14: Testing | Y14: 205B436865636B466C61674E6F203A20EFBCB4EFBD85EDBC83EDBC81EFBD87
A15: event | B15: 00000000.lub | C15: 25596 | D15: 20 | F15: に移行しました | L15: 20 | Y15: 20
D16: 205B436865636B466C61674E6F203A20 | E16: [CheckFlagNo : | L16: 205B436865636B466C61674E6F203A20 | M16: Testing | Y16: 205B436865636B466C61674E6F203A20EFBCB4EFBD85EDBC83EDBC81EFBD87
A17: event | B17: 00000000.lub | C17: 35019 | D17: 6465627567206F6E | E17: debug on | L17: 6465627567206F6E | Y17: 6465627567206F6E
A19: event | B19: d_kbj_000.lub | C19: 6605 | F19: 終了演出 | M19: The End | Y19: EFBCB4EFBD88EFBD9FEFBCA5EFBD8EEFBD84
A20: event | B20: d_kbj_000.lub | C20: 6709 | F20: クエストを達成しました！ | M20: Quest complete! | Y20: EFBCB1EFBD95EFBD85EDBC83EFBE9CEFBD83EFBD8FEFBD8DEDBC9CEFBD85EFBD94EDBD85
A21: event | B21: d_kbj_000.lub | C21: 6991 | D21: 2353434C28373120313636203235352032353529236974656D2345434C | E21: #SCL(71 166 255 255)#item#ECL | F21: を手に入れた！ | L21: 2353434C28373120313636203235352032353529236974656D2345434C | M21: received! | Y21: 2353434C28373120313636203235352032353529236974656D2345434CEFBE80EFBD85EFBD83EDBCA1EFBD96EFBD85EFBD84EFBC81
A22: event | B22: d_kbj_000.lub | C22: 7066 | D22: 2353434C28373120313636203235352032353529236974656D2345434C | E22: #SCL(71 166 255 255)#item#ECL | F22: を | L22: 2353434C28373120313636203235352032353529236974656D2345434C | M22: x | Y22: 2353434C28373120313636203235352032353529236974656D2345434CEFBE9CEFBD98
D23: 2353434C28373120313636203235352032353529236E756D2345434C | E23: #SCL(71 166 255 255)#num#ECL | F23: 個取得した | L23: 2353434C28373120313636203235352032353529236E756D2345434C | M23: received. | Y23: 2353434C28373120313636203235352032353529236E756D2345434CEFBE80EFBD85EFBD83EDBCA1EFBD96EFBD85EDBCB3
A24: event | B24: d_kbj_000.lub | C24: 29092 | D24: 20 | F24: モーション名作る | L24: 20 | Y24: 20
D25: 20 | L25: 20 | Y25: 20
A26: event | B26: d_kbj_000.lub | C26: 29493 | D26: 20 | F26: フルネーム？ | L26: 20 | Y26: 20
D27: 20 | L27: 20 | Y27: 20
A28: event | B28: d_kbj_000.lub | C28: 38423 | F28: キートリガー『 | M28: The Key Trigger | Y28: EFBCB4EFBD88EFBD9FEFBCABEFBD85EFBDA6EFBCB4EFBDA5EFBD87EFBD87EFBD85EFBDB4
D29: 2353434C28373120313636203235352032353529 | E29: #SCL(71 166 255 255) | F29: 初音ミク救出 | L29: 2353434C28373120313636203235352032353529 | M29: Miku Rescue | Y29: 2353434C28373120313636203235352032353529EFBCADEFBE98EDBCB2EFBCB2EFBD85EFBD93EFBD83EFBD95EFBD85
D30: 2345434C | E30: #ECL | F30: 』を達成した！ | L30: 2345434C | M30: is now unlocked! | Y30: 2345434CEFBDAFEDBC82EFBD8EEFBD8FEFBF8EEFBD95EDBD94EFBD8FEFBD83EFBD8BEFBD85EFBD84EFBC81
A31: event | B31: d_kbj_000.lub | C31: 45134 | D31: 20 | F31: に移行しました | L31: 20 | Y31: 20
D32: 205B436865636B466C61674E6F203A20 | E32: [CheckFlagNo : | L32: 205B436865636B466C61674E6F203A20 | Y32: 205B436865636B466C61674E6F203A20
A33: event | B33: d_kbj_000.lub | C33: 52638 | F33: イベントをスキップしますか？ | M33: Skip this event? | Y33: EFBCB3EFBDBEEFBF91EFBD94EDBC8AEDBC82EFBD85EFBD96EFBD85EFBD8EEFBD94EFBC9F
A34: event | B34: d_kbj_000.lub | C34: 57728 | D34: 534520 | E34: SE | F34: なかった！ | L34: 534520 | M34: is gone! | Y34: 534520EFBDAFEDBC82EFBD87EFBD8FEFBD8EEDBD85
A35: event | B35: d_kbj_000.lub | C35: 75849 | F35: システム | M35: System | Y35: EFBCB3EFBD99EDBC83EFBD85EFBD8D
A36: event | B36: d_kbj_000.lub | C36: 75872 | F36: このエレベータは、動いていない。 | M36: This elevator isn't working. | Y36: EFBCB4EDBC8AEDBC82EDBC91EFBD85EFBD96EFBD81EFBD94EFBD8FEFBDB4EFBDB8EFBFA9EFBD9CEFBD97EFBD8FEDBCB7EDBC81EFBF9F
A37: event | B37: d_kbj_000.lub | C37: 83329 | F37: ▼▼▼▼▼
D38: 204576656E745374617274203A20455630355F30325F303630304320 | E38: EventStart : EV05_02_0600C | F38: ▼▼▼▼▼ | L38: 204576656E745374617274203A20455630355F30325F303630304320 | Y38: 204576656E745374617274203A20455630355F30325F303630304320
A39: event | B39: d_kbj_000.lub | C39: 83503 | D39: 2353434C28323535203136302037312032353529 | E39: #SCL(255 160 71 255) | F39: マリナ | L39: 2353434C28323535203136302037312032353529 | M39: Marina's | Y39: 2353434C28323535203136302037312032353529EFBCADEFBD81EFBDA5EFBD8EEFBD81
D40: 2345434C | E40: #ECL | F40: の反応が近づいてきてる。 | L40: 2345434C | M40: reading is getting stronger. | Y40: 2345434CEFBDB1EFBE80EFBD85EFBD81EDBC99EFBD8EEDBC89EFBDB8EDBC9BEFBD85EFBDBAEDBC81EDBC89EDBC83EFBD92EFBD8FEFBD8EEFBD87EFBD85EFBE96
D41: 0A0D | F41: このまま奥に進んでくれ！ | L41: 0A0D | M41: Keep going deeper in! | Y41: 0A0DEFBCABEFBD85EFBD85EFBF91EFBD87EDBCA2EFBD8EEDBC89EFBD84EFBD85EFBD85EFBD90EFBD85EFBDB4EDBC81EFBC81
A42: event | B42: d_kbj_000.lub | C42: 83626 | D42: 2353434C28323535203136302037312032353529 | E42: #SCL(255 160 71 255) | F42: マリナ | L42: 2353434C28323535203136302037312032353529 | M42: Marina's | Y42: 2353434C28323535203136302037312032353529EFBCADEFBD81EFBDA5EFBD8EEFBD81
D43: 2345434C | E43: #ECL | F43: の反応、近づいてきています。 | L43: 2345434C | M43: reading is getting stronger. | Y43: 2345434CEFBDB1EFBE80EFBD85EFBD81EDBC99EFBD8EEDBC89EFBDB8EDBC9BEFBD85EFBDBAEDBC81EDBC89EDBC83EFBD92EFBD8FEFBD8EEFBD87EFBD85EFBE96
D44: 0A0D | F44: このまま奥に進んで下さい！ | L44: 0A0D | M44: Please, keep going deeper in! | Y44: 0A0DEDBCBEEFBD85EFBD81EFBD93EFBE8EEDBCACEFBD85EFBD85EFBF91EFBD87EDBCA2EFBD8EEDBC89EFBD84EFBD85EFBD85EFBD90EFBD85EFBDB4EDBC81EFBC81
A45: event | B45: d_kbj_000.lub | C45: 83759 | F45: ▲▲▲▲▲
D46: 204576656E74456E64203A20455630355F30325F303630304320 | E46: EventEnd : EV05_02_0600C | F46: ▲▲▲▲▲ | L46: 204576656E74456E64203A20455630355F30325F303630304320 | Y46: 204576656E74456E64203A20455630355F30325F303630304320
A47: event | B47: d_kbj_000.lub | C47: 84387 | F47: ▼▼▼▼▼
D48: 204576656E745374617274203A20455630355F30325F303730304320 | E48: EventStart : EV05_02_0700C | F48: ▼▼▼▼▼ | L48: 204576656E745374617274203A20455630355F30325F303730304320 | Y48: 204576656E745374617274203A20455630355F30325F303730304320
A49: event | B49: d_kbj_000.lub | C49: 84609 | F49: 律儀なＳＥＣＴ１１ | K49: x | M49: Faithful SECT11 | Y49: EFBCA6EDBC8DEFBD94EFBD88EFBD86EFBE82EFBE9CEFBCB3EFBCA5EFBCA3EFBCB4EDBCAE
A50: event | B50: d_kbj_000.lub | C50: 84647 | F50: ソーリー。 | M50: Sorry. | Y50: EFBCB3EFBD8FEFBE99EDBC9D
D51: 0A0D | F51: ここを通すことはできません。 | L51: 0A0D | M51: Further passage is prohibited. | Y51: 0A0DEFBCA6EDBC8BEFBD94EFBD88EFBD85EFBDB4EFBD90EFBD81EFBD93EFBD93EFBD81EFBD87EFBD9FEFBDB8EFBE9CEFBD90EFBD92EFBD8FEDBC8AEDBD98EFBD94EFBD85EDBCB3
D52: 0A0D | F52: このまま後ろに引き返しなさい。 | L52: 0A0D | M52: Please go back where you came. | Y52: 0A0DEDBCBEEFBD85EFBD81EFBD93EFBD9FEFBD87EFBDBCEFBD82EFBD81EFBD83EDBC9EEFBD97EFBD88EFBD85EFBD92EFBD9FEFBD99EFBD8FEDBCB2EFBD83EFBD81EFBD8DEDBC97
A53: event | B53: d_kbj_000.lub | C53: 84776 | F53: それはできない | M53: I can't do that | Y53: EFBCA9EFBE9CEFBD83EFBD81EFBFA9EFBD9CEFBD84EFBDBCEFBD94EFBD88EFBD81EFBD94
A54: event | B54: d_kbj_000.lub | C54: 84803 | F54: いいから黙って通してくれ | M54: Cram it and let me through | Y54: EFBCA3EFBD92EFBD81EFBE8DEFBDA1EFBE9CEFBD81EFBD8EEFBDA2EDBC88EFBD9CEFBD8DEFBD9FEFBD94EFBD88EFBD92EFBD8FEFBD95EFBD87EFBD88
A55: event | B55: d_kbj_000.lub | C55: 84950 | F55: 分からない人たちですね… | M55: You people don't get it, huh? | Y55: EFBCB9EFBD8FEDBCB2EFBD90EFBD85EFBD8FEDBC9CEFBD9FEFBD84EFBD8FEFBFA9EFBD9CEFBD87EFBD85EFBD9CEFBDA1EFBDA9EFBD88EFBD95EFBD88EFBC9F
D56: 0A0D | F56: ここから先は立入禁止だと言いました。 | L56: 0A0D | M56: I said there's no entry permitted. | Y56: 0A0DEFBCA9EDBC86EDBC8DEFBDA2EFBD94EFBD88EFBD85EFBD92EFBFA1EDBC82EFBD8EEFBDBCEFBD85EFBD8EEFBDB7EFBDA6EFBD90EFBD85EFBD92EFBD8DEFBDA1EFBD94EFBD85EDBCB3
D57: 0A0D0A0D | F57: 無理にというなら… | L57: 0A0D0A0D | M57: You can whine about it however you want. | Y57: 0A0D0A0DEFBCB9EFBD8FEDBCB2EFBD83EFBD81EFBDA7EFBD97EDBC8AEFBD8EEFBD9FEFBD81EFBD82EFBD8FEDBC95EFBDAFEFBD9CEFBD88EFBD8FEFBD97EFBD85EFBD96EFBD85EFBDB4EFBD99EFBD8FEDBCB2EFBD97EFBD81EFBD8EEFBDBD
D58: 0A0D | F58: 容赦はしません！ | L58: 0A0D | M58: I don't give a damn! | Y58: 0A0DEFBCA9EFBE9CEFBD84EFBD8FEFBFA9EFBD9CEFBE85EFBD96EFBD9FEFBDACEFBD84EFBD81EFBD8DEFBD8EEFBC81
A59: event | B59: d_kbj_000.lub | C59: 85129 | F59: ▲▲▲▲▲
D60: 204576656E74456E64203A20455630355F30325F303730304320 | E60: EventEnd : EV05_02_0700C | F60: ▲▲▲▲▲ | L60: 204576656E74456E64203A20455630355F30325F303730304320 | Y60: 204576656E74456E64203A20455630355F30325F303730304320
A61: event | B61: d_kbj_000.lub | C61: 85883 | F61: ▼▼▼▼▼
D62: 204576656E745374617274203A20455630355F30325F303930304320 | E62: EventStart : EV05_02_0900C | F62: ▼▼▼▼▼ | L62: 204576656E745374617274203A20455630355F30325F303930304320 | Y62: 204576656E745374617274203A20455630355F30325F303930304320
A63: event | B63: d_kbj_000.lub | C63: 86150 | F63: 律儀なＳＥＣＴ１１ | K63: x | M63: Faithful SECT11 | Y63: EFBCA6EDBC8DEFBD94EFBD88EFBD86EFBE82EFBE9CEFBCB3EFBCA5EFBCA3EFBCB4EDBCAE
A64: event | B64: d_kbj_000.lub | C64: 86188 | F64: くっ… | M64: Damn... | Y64: EFBCA4EFBD81EFBD8DEDBCAAEFBF8D
D65: 0A0D | F65: いつの間にそこまで……！ | L65: 0A0D | M65: You don't waste any time, huh? | Y65: 0A0DEFBCB9EFBD8FEDBCB2EFBD84EFBD8FEFBFA9EFBD9CEFBD97EFBD81EDBC83EFBD9FEFBD81EFBD8EEFBDA6EFBDB3EFBD8DEFBE8EEFBE9CEFBD88EFBD95EFBD88EFBC9F
A66: event | B66: d_kbj_000.lub | C66: 86319 | F66: エメル | K66: x | M66: Emille | Y66: EFBCA5EFBD8DEFBDAAEDBC88
A67: event | B67: d_kbj_000.lub | C67: 86344 | F67: ＳＥＣＴ１１め… | M67: SECT11... | Y67: EFBCB3EFBCA5EFBCA3EFBCB4EDBCAEEFBF8DEFBC8E
D68: 0A0D | F68: かなり先行しているらしいな。 | L68: 0A0D | M68: Sounds like they're still further in. | Y68: 0A0DEFBCB3EFBD8FEFBD95EFBD8EEFBD84EDBC82EFBDB2EFBD8BEFBD9FEFBD94EFBD88EFBD85EFBFA6EFBD92EFBD9FEDBC83EFBDAAEFBDADEFBD86EDBC8BEFBD94EFBD88EFBD85EFBDB4EDBC81EFBC8E
D69: 0A0D | F69: 急がねば… | L69: 0A0D | M69: We'd better hurry. | Y69: 0A0DEFBCB7EFBFA1EFBDA2EFBD82EFBD85EFBDBAEFBD85EFBDB4EFBD88EDBC8BEFBD92EDBC9D
A70: event | B70: d_kbj_000.lub | C70: 86486 | D70: 2353434C28323033203235352038352032353529 | E70: #SCL(203 255 85 255) | F70: １３班 | L70: 2353434C28323033203235352038352032353529 | M70: Unit 13 | Y70: 2353434C28323033203235352038352032353529EFBCB5EDBC94EFBD9CEFBC91EFBC93
D71: 2345434C | E71: #ECL | F71: 、通信傍受に成功した！ | L71: 2345434C | M71: , I've accessed their comms! | Y71: 2345434CEFBDA9EFBCA9EFBFAEEFBD9FEFBD81EFBD83EFBD83EFBD85EFBD93EFBD93EFBD85EFBDA2EFBD94EFBD88EDBCA1EFBDB4EFBD83EFBD8FEFBD8DEFBD8DEFBD93EFBC81
D72: 0A0D | F72: つなぐぞ！ | L72: 0A0D | M72: Patching you in! | Y72: 0A0DEFBCB0EFBD81EFBD94EFBD83EDBC8AEFBD8EEDBC89EFBD99EFBD8FEDBCB2EDBC81EFBC81
A73: event | B73: d_kbj_000.lub | C73: 86585 | D73: 2353434C28323033203235352038352032353529 | E73: #SCL(203 255 85 255) | F73: １３班 | L73: 2353434C28323033203235352038352032353529 | M73: Unit 13 | Y73: 2353434C28323033203235352038352032353529EFBCB5EDBC94EFBD9CEFBC91EFBC93
D74: 2345434C | E74: #ECL | F74: 、通信傍受に成功しました！ | L74: 2345434C | M74: , I've accessed their comms! | Y74: 2345434CEFBDA9EFBCA9EFBFAEEFBD9FEFBD81EFBD83EFBD83EFBD85EFBD93EFBD93EFBD85EFBDA2EFBD94EFBD88EDBCA1EFBDB4EFBD83EFBD8FEFBD8DEFBD8DEFBD93EFBC81
D75: 0A0D | F75: つなぎます！ | L75: 0A0D | M75: I'm patching you in! | Y75: 0A0DEFBCA9EFBC87EFBE8DEFBD90EFBD81EFBD94EFBD83EDBC8AEFBD8EEDBC89EFBD99EFBD8FEDBCB2EDBC81EFBC81
A76: event | B76: d_kbj_000.lub | C76: 86683 | F76: ショウジ | M76: Shouji | Y76: EFBCB3EFBD88EFBD8FEDBD88EFBD89
A77: event | B77: d_kbj_000.lub | C77: 86706 | F77: チッ… | M77: Tch! | Y77: EFBCB4EFBD83EFBD88EFBC81
D78: 0A0D | F78: ちょろちょろとすばしっこいヤツだ！ | L78: 0A0D | M78: This kid's pretty slippery! | Y78: 0A0DEFBCB4EDBC8AEDBC82EFBD87EFBD95EFBFA6EDBC82EFBD90EFBD92EFBD85EFBDBAEFBDA6EFBD80EDBD84EFBD90EFBD85EFBD92EFBD99EFBC81
A79: event | B79: d_kbj_000.lub | C79: 86774 | F79: イズミ | M79: Izumi | Y79: EFBFA4EFBD95EFBD8DEFBD89
A80: event | B80: d_kbj_000.lub | C80: 86789 | D80: 2353434C28323535203136302037312032353529 | E80: #SCL(255 160 71 255) | F80: ショー兄 | L80: 2353434C28323535203136302037312032353529 | M80: Shouji | Y80: 2353434C28323535203136302037312032353529EFBCB3EFBD88EFBD8FEDBD88EFBD89
D81: 2345434C | E81: #ECL | F81: 、あっち！ | L81: 2345434C | M81: , there! | Y81: 2345434CEFBDA9EFBD94EFBD88EFBD85EFBD92EDBD85
A82: event | B82: d_kbj_000.lub | C82: 86846 | F82: エレベーターか！ | M82: By the elevator?! | Y82: EFBCA1EFBDA7EDBC91EFBD85EFBD96EFBD81EFBD94EFBD8FEFBD92EFBC9FEFBC81
A83: event | B83: d_kbj_000.lub | C83: 86892 | F83: ▲▲▲▲▲
D84: 204576656E74456E64203A20455630355F30325F303930304320 | E84: EventEnd : EV05_02_0900C | F84: ▲▲▲▲▲ | L84: 204576656E74456E64203A20455630355F30325F303930304320 | Y84: 204576656E74456E64203A20455630355F30325F303930304320
A85: event | B85: d_kbj_000.lub | C85: 98405 | F85: 報酬 | M85: Reward | Y85: EFBCB2EFBD85EFBD97EFBD81EFBD92EFBD84
A86: event | B86: d_kbj_000.lub | C86: 118926 | D86: 64656275675F7072696E74 | E86: debug_print | L86: 64656275675F7072696E74 | Y86: 64656275675F7072696E74
A88: event | B88: d_kbj_001.lub | C88: 6019 | F88: 終了演出 | M88: The End | Y88: EFBCB4EFBD88EFBD9FEFBCA5EFBD8EEFBD84
A89: event | B89: d_kbj_001.lub | C89: 6123 | F89: クエストを達成しました！ | M89: Quest complete! | Y89: EFBCB1EFBD95EFBD85EDBC83EFBE9CEFBD83EFBD8FEFBD8DEDBC9CEFBD85EFBD94EDBD85
A90: event | B90: d_kbj_001.lub | C90: 6405 | D90: 2353434C28373120313636203235352032353529236974656D2345434C | E90: #SCL(71 166 255 255)#item#ECL | F90: を手に入れた！ | L90: 2353434C28373120313636203235352032353529236974656D2345434C | M90: received! | Y90: 2353434C28373120313636203235352032353529236974656D2345434CEFBE80EFBD85EFBD83EDBCA1EFBD96EFBD85EFBD84EFBC81
A91: event | B91: d_kbj_001.lub | C91: 6480 | D91: 2353434C28373120313636203235352032353529236974656D2345434C | E91: #SCL(71 166 255 255)#item#ECL | F91: を | L91: 2353434C28373120313636203235352032353529236974656D2345434C | M91: x | Y91: 2353434C28373120313636203235352032353529236974656D2345434CEFBD98
D92: 2353434C28373120313636203235352032353529236E756D2345434C | E92: #SCL(71 166 255 255)#num#ECL | F92: 個取得した | L92: 2353434C28373120313636203235352032353529236E756D2345434C | M92: received. | Y92: 2353434C28373120313636203235352032353529236E756D2345434CEFBE80EFBD85EFBD83EDBCA1EFBD96EFBD85EDBCB3
A93: event | B93: d_kbj_001.lub | C93: 25752 | D93: 20 | F93: モーション名作る | L93: 20 | M93: Leave the area? | Y93: 20EFBCACEFBD85EFBD81EFBD96EFBD9FEFBD94EFBD88EFBD9FEFBD81EFBD92EFBD85EFBD81EFBC9F
D94: 20 | L94: 20 | Y94: 20
A95: event | B95: d_kbj_001.lub | C95: 26153 | D95: 20 | F95: フルネーム？ | L95: 20 | M95: Full name? | Y95: 20EFBCA6EFBE82EFBDADEFBD8EEFBD81EFBD8DEFBD85EFBC9F
D96: 20 | L96: 20 | Y96: 20
A97: event | B97: d_kbj_001.lub | C97: 34975 | F97: キートリガー『 | M97: The Key Trigger | Y97: EFBCB4EFBD88EFBD9FEFBCABEFBD85EFBDA6EFBCB4EFBDA5EFBD87EFBD87EFBD85EFBDB4
D98: 2353434C28373120313636203235352032353529 | E98: #SCL(71 166 255 255) | F98: 初音ミク救出 | L98: 2353434C28373120313636203235352032353529 | M98: Miku Rescue | Y98: 2353434C28373120313636203235352032353529EFBCADEFBE98EDBCB2EFBCB2EFBD85EFBD93EFBD83EFBD95EFBD85
D99: 2345434C | E99: #ECL | F99: 』を達成した！ | L99: 2345434C | M99: is now unlocked! | Y99: 2345434CEFBDAFEDBC82EFBD8EEFBD8FEFBF8EEFBD95EDBD94EFBD8FEFBD83EFBD8BEFBD85EFBD84EFBC81
A100: event | B100: d_kbj_001.lub | C100: 41686 | D100: 20 | F100: に移行しました | L100: 20 | M100: In motion. | Y100: 20EDBCA0EFBE9CEFBD8DEFBD8FEFBDB3EFBD8FEDBCAA
D101: 205B436865636B466C61674E6F203A20 | E101: [CheckFlagNo : | L101: 205B436865636B466C61674E6F203A20 | Y101: 205B436865636B466C61674E6F203A20
A102: event | B102: d_kbj_001.lub | C102: 49190 | F102: イベントをスキップしますか？ | M102: Skip event? | Y102: EFBCB3EFBDBEEFBF91EFBD85EFBD96EFBD85EFBD8EEFBD94EFBC9F
A103: event | B103: d_kbj_001.lub | C103: 54280 | D103: 534520 | E103: SE | F103: なかった！ | L103: 534520 | M103: is gone! | Y103: 534520EFBDAFEDBC82EFBD87EFBD8FEFBD8EEDBD85
A104: event | B104: d_kbj_001.lub | C104: 74598 | F104: ▼▼▼▼▼
D105: 204576656E745374617274203A20455630355F30325F303530304320 | E105: EventStart : EV05_02_0500C | F105: ▼▼▼▼▼ | L105: 204576656E745374617274203A20455630355F30325F303530304320 | Y105: 204576656E745374617274203A20455630355F30325F303530304320
A106: event | B106: d_kbj_001.lub | C106: 74772 | F106: 生体反応は複数、工場内に点在してる。 | M106: Getting a bunch of lifesigns in the Factory. | Y106: EFBCA7EFBD85EFBDBAEDBC81EDBC89EFBDACEFBD82EFBD95EFBD8EEFBD83EFBE8CEFBD8FEFBDABEFBDB2EFBD86EFBD85EFBDAEEFBD87EFBD8EEDBC82EDBC81EFBDA0EFBD88EFBD9FEFBCA6EFBD81EFBD83EFBD94EFBD8FEFBD92EDBC9D
D107: 0A0D | F107: 奴らもまだ | L107: 0A0D | M107: Guess those guys haven't found | Y107: 0A0DEFBCA7EFBD95EFBD85EFBD93EDBC82EFBD94EFBD88EFBD8FEFBD93EFBD9FEFBD87EFBD95EFBD99EDBC82EFBD88EFBD81EFBD96EFBD85EFBFA9EFBD9CEFBD86EFBD8FEFBD95EFBD8EEFBDA2
D108: 2353434C28323535203136302037312032353529 | E108: #SCL(255 160 71 255) | F108: マリナ | L108: 2353434C28323535203136302037312032353529 | M108: Marina | Y108: 2353434C28323535203136302037312032353529EFBCADEFBD81EFBDA5EFBD8EEFBD81
D109: 2345434C | E109: #ECL | F109: を見つけ出してないみたいだ。 | L109: 2345434C | M109: yet. | Y109: 2345434CEFBE9CEFBD99EFBD85EFBDBD
D110: 0A0D | F110: 急ぐぞ！ | L110: 0A0D | M110: Let's move! | Y110: 0A0DEFBCACEFBD85EFBF96EDBC82EFBD8DEFBD8FEFBD96EDBD85
A111: event | B111: d_kbj_001.lub | C111: 74948 | F111: 生体反応は複数、工場内に点在しています。 | M111: I see a bunch of lifesigns in the Factory. | Y111: EFBCA9EDBC86EFBD85EFBD9FEFBDACEFBD82EFBD95EFBD8EEFBD83EFBE8CEFBD8FEFBDABEFBDB2EFBD86EFBD85EFBDAEEFBD87EFBD8EEDBC82EDBC81EFBDA0EFBD88EFBD9FEFBCA6EFBD81EFBD83EFBD94EFBD8FEFBD92EDBC9D
D112: 0A0D | F112: 彼らもまだ | L112: 0A0D | M112: Guess those guys haven't found | Y112: 0A0DEFBCA7EFBD95EFBD85EFBD93EDBC82EFBD94EFBD88EFBD8FEFBD93EFBD9FEFBD87EFBD95EFBD99EDBC82EFBD88EFBD81EFBD96EFBD85EFBFA9EFBD9CEFBD86EFBD8FEFBD95EFBD8EEFBDA2
D113: 2353434C28323535203136302037312032353529 | E113: #SCL(255 160 71 255) | F113: マリナ | L113: 2353434C28323535203136302037312032353529 | M113: Marina | Y113: 2353434C28323535203136302037312032353529EFBCADEFBD81EFBDA5EFBD8EEFBD81
D114: 2345434C | E114: #ECL | F114: を見つけ出してないみたい… | L114: 2345434C | M114: either... | Y114: 2345434CEFBE9CEDBCA1EFBD94EFBD88EFBD85EFBE96EFBF8D
D115: 0A0D | F115: 急ぎましょう！ | L115: 0A0D | M115: Let's hurry! | Y115: 0A0DEFBCACEFBD85EFBF96EDBC82EFBD88EDBC8BEFBD92EFBD99EFBC81
A116: event | B116: d_kbj_001.lub | C116: 75137 | F116: ▲▲▲▲▲
D117: 204576656E74456E64203A20455630355F30325F303530304320 | E117: EventEnd : EV05_02_0500C | F117: ▲▲▲▲▲ | L117: 204576656E74456E64203A20455630355F30325F303530304320 | Y117: 204576656E74456E64203A20455630355F30325F303530304320
A118: event | B118: d_kbj_001.lub | C118: 83027 | F118: 報酬 | M118: Reward | Y118: EFBCB2EFBD85EFBD97EFBD81EFBD92EFBD84
A119: event | B119: d_kbj_001.lub | C119: 103548 | D119: 64656275675F7072696E74 | E119: debug_print | L119: 64656275675F7072696E74 | Y119: 64656275675F7072696E74
A121: event | B121: d_kbj_002.lub | C121: 6130 | F121: 終了演出 | M121: The End | Y121: EFBCB4EFBD88EFBD9FEFBCA5EFBD8EEFBD84
A122: event | B122: d_kbj_002.lub | C122: 6234 | F122: クエストを達成しました！ | M122: Quest complete! | Y122: EFBCB1EFBD95EFBD85EDBC83EFBE9CEFBD83EFBD8FEFBD8DEDBC9CEFBD85EFBD94EDBD85
A123: event | B123: d_kbj_002.lub | C123: 6726 | F123: 救助人数が１５人に達した！ | M123: You've rescued 15 people! | Y123: EFBCB9EFBD8FEFBF9AEFBD96EFBD9FEFBD92EFBD85EFBD93EFBD83EFBD95EFBD85EFBDA2EFBC91EFBE84EFBD90EFBD85EFBD8FEDBC9CEDBD85
A124: event | B124: d_kbj_002.lub | C124: 6776 | F124: 救助人数が３０人に達した！ | M124: You've rescued 30 people! | Y124: EFBCB9EFBD8FEFBF9AEFBD96EFBD9FEFBD92EFBD85EFBD93EFBD83EFBD95EFBD85EFBDA2EFBC93EFBE88EFBD90EFBD85EFBD8FEDBC9CEDBD85
A125: event | B125: d_kbj_002.lub | C125: 6826 | F125: 救助人数が４５人に達した！ | M125: You've rescued 45 people! | Y125: EFBCB9EFBD8FEFBF9AEFBD96EFBD9FEFBD92EFBD85EFBD93EFBD83EFBD95EFBD85EFBDA2EFBC94EFBE84EFBD90EFBD85EFBD8FEDBC9CEDBD85
A126: event | B126: d_kbj_002.lub | C126: 6876 | F126: 救助人数が６０人に達した！ | M126: You've rescued 60 people! | Y126: EFBCB9EFBD8FEFBF9AEFBD96EFBD9FEFBD92EFBD85EFBD93EFBD83EFBD95EFBD85EFBDA2EFBC96EFBE88EFBD90EFBD85EFBD8FEDBC9CEDBD85
A127: event | B127: d_kbj_002.lub | C127: 6926 | F127: 救助人数が７５人に達した！ | M127: You've rescued 75 people! | Y127: EFBCB9EFBD8FEFBF9AEFBD96EFBD9FEFBD92EFBD85EFBD93EFBD83EFBD95EFBD85EFBDA2EFBC97EFBE84EFBD90EFBD85EFBD8FEDBC9CEDBD85
A128: event | B128: d_kbj_002.lub | C128: 7192 | D128: 2353434C28373120313636203235352032353529236974656D2345434C | E128: #SCL(71 166 255 255)#item#ECL | F128: を手に入れた！ | L128: 2353434C28373120313636203235352032353529236974656D2345434C | M128: received! | Y128: 2353434C28373120313636203235352032353529236974656D2345434CEFBE80EFBD85EFBD83EDBCA1EFBD96EFBD85EFBD84EFBC81
A129: event | B129: d_kbj_002.lub | C129: 7267 | D129: 2353434C28373120313636203235352032353529236974656D2345434C | E129: #SCL(71 166 255 255)#item#ECL | F129: を | L129: 2353434C28373120313636203235352032353529236974656D2345434C | M129: x | Y129: 2353434C28373120313636203235352032353529236974656D2345434CEFBD98
D130: 2353434C28373120313636203235352032353529236E756D2345434C | E130: #SCL(71 166 255 255)#num#ECL | F130: 個取得した | L130: 2353434C28373120313636203235352032353529236E756D2345434C | M130: received. | Y130: 2353434C28373120313636203235352032353529236E756D2345434CEFBE80EFBD85EFBD83EDBCA1EFBD96EFBD85EDBCB3
A131: event | B131: d_kbj_002.lub | C131: 27742 | D131: 20 | F131: モーション名作る | L131: 20 | M131: Leave the area? | Y131: 20EFBCACEFBD85EFBD81EFBD96EFBD9FEFBD94EFBD88EFBD9FEFBD81EFBD92EFBD85EFBD81EFBC9F
D132: 20 | L132: 20 | Y132: 20
A133: event | B133: d_kbj_002.lub | C133: 28143 | D133: 20 | F133: フルネーム？ | L133: 20 | M133: Full name? | Y133: 20EFBCA6EFBE82EFBDADEFBD8EEFBD81EFBD8DEFBD85EFBC9F
D134: 20 | L134: 20 | Y134: 20
A135: event | B135: d_kbj_002.lub | C135: 36648 | F135: キートリガー『 | M135: The Key Trigger | Y135: EFBCB4EFBD88EFBD9FEFBCABEFBD85EFBDA6EFBCB4EFBDA5EFBD87EFBD87EFBD85EFBDB4
D136: 2353434C28373120313636203235352032353529 | E136: #SCL(71 166 255 255) | F136: 初音ミク救出 | L136: 2353434C28373120313636203235352032353529 | M136: Miku Rescue | Y136: 2353434C28373120313636203235352032353529EFBCADEFBE98EDBCB2EFBCB2EFBD85EFBD93EFBD83EFBD95EFBD85
D137: 2345434C | E137: #ECL | F137: 』を達成した！ | L137: 2345434C | M137: is now unlocked! | Y137: 2345434CEFBDAFEDBC82EFBD8EEFBD8FEFBF8EEFBD95EDBD94EFBD8FEFBD83EFBD8BEFBD85EFBD84EFBC81
A138: event | B138: d_kbj_002.lub | C138: 43359 | D138: 20 | F138: に移行しました | L138: 20 | M138: In motion. | Y138: 20EDBCA0EFBE9CEFBD8DEFBD8FEFBDB3EFBD8FEDBCAA
D139: 205B436865636B466C61674E6F203A20 | E139: [CheckFlagNo : | L139: 205B436865636B466C61674E6F203A20 | Y139: 205B436865636B466C61674E6F203A20
A140: event | B140: d_kbj_002.lub | C140: 53951 | D140: 534520 | E140: SE | F140: なかった！ | L140: 534520 | M140: is gone! | Y140: 534520EFBDAFEDBC82EFBD87EFBD8FEFBD8EEDBD85
A141: event | B141: d_kbj_002.lub | C141: 77067 | F141: キツい作業員 | K141: x | M141: Intense Worker | Y141: EDBCA0EFBD94EFBD85EFBD8EEFBD93EFBD9FEFBCB7EFBD8FEDBCB7EFBD85EFBD92
A142: event | B142: d_kbj_002.lub | C142: 77101 | F142: 新人がここで訓練してるって聞いて… | M142: I heard the rookies were sent here. | Y142: EFBCA9EFBE9CEFBD88EFBD85EFBD81EFBD92EFBDA2EFBD94EFBD88EFBD9FEFBD92EFBD8FEFBD8FEFBDBEEFBD85EDBC82EFBD97EFBD85EFBD92EFBD9FEFBD93EFBD85EFBD8EEFBD9CEFBD88EFBD85EFBD92EDBC97
D143: 0A0D | F143: 様子を見に来たら…この様よ… | L143: 0A0D | M143: I came to check... then things went south. | Y143: 0A0DEFBCA9EFBE9CEFBD83EFBD81EFBD8DEFBD9FEFBD94EFBDBCEFBD83EFBD88EFBD85EFBD83EFBF98EFBF8DEFBDA0EFBD88EFBD85EFBDA7EFBD94EDBC8AEFBD8EEFBD87EDBC82EFBD97EFBD85EFBD8EEFBD9CEFBD93EFBD8FEDBC95EDBCBD
D144: 0A0D0A0D | F144: 昔の… | L144: 0A0D0A0D | M144: A long time ago... | Y144: 0A0D0A0DEFBF9CEDBC8CEFBD8EEDBC89EFBDB3EFBD8DEFBD9FEFBD81EFBD87EDBCADEFBF8D
D145: 0A0D | F145: 知り合いに、よく、似ているの… | L145: 0A0D | M145: I had a friend who was just like them. | Y145: 0A0DEFBCA9EFBE9CEFBD88EFBD81EFBDA2EFBDACEFBF8BEDBC85EFBD8EEFBDA2EFBD97EFBD88EFBDBCEFBD97EFBD81EDBC82EFBD8AEFBD95EDBC83EFBE8BEFBE98EFBD9FEFBD94EFBD88EFBD85EFBD8DEFBC8E
A146: event | B146: d_kbj_002.lub | C146: 77282 | F146: 『 | M146: You rescued an | Y146: EFBCB9EFBD8FEDBCB2EFBD92EFBD85EFBD93EFBD83EFBD95EFBD85EFBDA2EFBD81EFBDA7
D147: 2353434C28373120313636203235352032353529 | E147: #SCL(71 166 255 255) | F147: キツい作業員 | L147: 2353434C28373120313636203235352032353529 | M147: Intense Worker | Y147: EEBC80EEBC81EEBC82EEBC83EEBC84EEBC85EEBC86EEBC87EEBC88
D148: 2345434C | E148: #ECL | F148: 』を救助した！ | L148: 2345434C | M148: ! | Y148: 2345434CEFBC81
A149: event | B149: d_kbj_002.lub | C149: 88377 | F149: 報酬 | M149: Reward | Y149: EFBCB2EFBD85EFBD97EFBD81EFBD92EFBD84
A150: event | B150: d_kbj_002.lub | C150: 108898 | D150: 64656275675F7072696E74 | E150: debug_print | L150: 64656275675F7072696E74 | Y150: 64656275675F7072696E74
A152: event | B152: d_kbj_003.lub | C152: 1756 | F152: 脱出ポイント『 | M152: You opened an exit at | Y152: EFBCB9EFBD8FEDBCB2EFBD8FEFBD90EFBD85EFBD8EEFBD85EFBDA2EFBD81EFBDA7EFBD85EDBD8CEFBD9CEFBD81EFBD9C
D153: 2353434C28373120313636203235352032353529 | E153: #SCL(71 166 255 255) | F153: 工場エリア２ | L153: 2353434C28373120313636203235352032353529 | M153: Factory Area 2 | Y153: 2353434C28373120313636203235352032353529EFBCA6EFBD81EFBD83EFBD94EFBD8FEFBD92EFBDA6EFBCA1EFBD92EFBD85EFBDACEFBC92
D154: 2345434C | E154: #ECL | F154: 』が開通した！ | L154: 2345434C | M154: ! | Y154: 2345434CEFBC81
A155: event | B155: d_kbj_003.lub | C155: 6518 | F155: 終了演出 | M155: The End | Y155: EFBCB4EFBD88EFBD9FEFBCA5EFBD8EEFBD84
A156: event | B156: d_kbj_003.lub | C156: 6622 | F156: クエストを達成しました！ | M156: Quest complete! | Y156: EFBCB1EFBD95EFBD85EDBC83EFBE9CEFBD83EFBD8FEFBD8DEDBC9CEFBD85EFBD94EDBD85
A157: event | B157: d_kbj_003.lub | C157: 7114 | F157: 救助人数が１５人に達した！ | M157: You've rescued 15 people! | Y157: EFBCB9EFBD8FEFBF9AEFBD96EFBD9FEFBD92EFBD85EFBD93EFBD83EFBD95EFBD85EFBDA2EFBC91EFBE84EFBD90EFBD85EFBD8FEDBC9CEDBD85
A158: event | B158: d_kbj_003.lub | C158: 7164 | F158: 救助人数が３０人に達した！ | M158: You've rescued 30 people! | Y158: EFBCB9EFBD8FEFBF9AEFBD96EFBD9FEFBD92EFBD85EFBD93EFBD83EFBD95EFBD85EFBDA2EFBC93EFBE88EFBD90EFBD85EFBD8FEDBC9CEDBD85
A159: event | B159: d_kbj_003.lub | C159: 7214 | F159: 救助人数が４５人に達した！ | M159: You've rescued 45 people! | Y159: EFBCB9EFBD8FEFBF9AEFBD96EFBD9FEFBD92EFBD85EFBD93EFBD83EFBD95EFBD85EFBDA2EFBC94EFBE84EFBD90EFBD85EFBD8FEDBC9CEDBD85
A160: event | B160: d_kbj_003.lub | C160: 7264 | F160: 救助人数が６０人に達した！ | M160: You've rescued 60 people! | Y160: EFBCB9EFBD8FEFBF9AEFBD96EFBD9FEFBD92EFBD85EFBD93EFBD83EFBD95EFBD85EFBDA2EFBC96EFBE88EFBD90EFBD85EFBD8FEDBC9CEDBD85
A161: event | B161: d_kbj_003.lub | C161: 7314 | F161: 救助人数が７５人に達した！ | M161: You've rescued 75 people! | Y161: EFBCB9EFBD8FEFBF9AEFBD96EFBD9FEFBD92EFBD85EFBD93EFBD83EFBD95EFBD85EFBDA2EFBC97EFBE84EFBD90EFBD85EFBD8FEDBC9CEDBD85
A162: event | B162: d_kbj_003.lub | C162: 7580 | D162: 2353434C28373120313636203235352032353529236974656D2345434C | E162: #SCL(71 166 255 255)#item#ECL | F162: を手に入れた！ | L162: 2353434C28373120313636203235352032353529236974656D2345434C | M162: received! | Y162: 2353434C28373120313636203235352032353529236974656D2345434CEFBE80EFBD85EFBD83EDBCA1EFBD96EFBD85EFBD84EFBC81
A163: event | B163: d_kbj_003.lub | C163: 7655 | D163: 2353434C28373120313636203235352032353529236974656D2345434C | E163: #SCL(71 166 255 255)#item#ECL | F163: を | L163: 2353434C28373120313636203235352032353529236974656D2345434C | M163: x | Y163: 2353434C28373120313636203235352032353529236974656D2345434CEFBD98
D164: 2353434C28373120313636203235352032353529236E756D2345434C | E164: #SCL(71 166 255 255)#num#ECL | F164: 個取得した | L164: 2353434C28373120313636203235352032353529236E756D2345434C | M164: received. | Y164: 2353434C28373120313636203235352032353529236E756D2345434CEFBE80EFBD85EFBD83EDBCA1EFBD96EFBD85EDBCB3
A165: event | B165: d_kbj_003.lub | C165: 9196 | F165: 外に出ますか？ | M165: Leave the area? | Y165: EFBCACEFBD85EFBD81EFBD96EFBD9FEFBD94EFBD88EFBD9FEFBD81EFBD92EFBD85EFBD81EFBC9F
A166: event | B166: d_kbj_003.lub | C166: 28763 | D166: 20 | F166: モーション名作る | L166: 20 | Y166: 20
D167: 20 | L167: 20 | M167: Full name? | Y167: 20EFBCA6EFBE82EFBDADEFBD8EEFBD81EFBD8DEFBD85EFBC9F
A168: event | B168: d_kbj_003.lub | C168: 29164 | D168: 20 | F168: フルネーム？ | L168: 20 | Y168: 20
D169: 20 | L169: 20 | Y169: 20
A170: event | B170: d_kbj_003.lub | C170: 37961 | F170: キートリガー『 | M170: The Key Trigger | Y170: EFBCB4EFBD88EFBD9FEFBCABEFBD85EFBDA6EFBCB4EFBDA5EFBD87EFBD87EFBD85EFBDB4
D171: 2353434C28373120313636203235352032353529 | E171: #SCL(71 166 255 255) | F171: 初音ミク救出 | L171: 2353434C28373120313636203235352032353529 | M171: Miku Rescue | Y171: 2353434C28373120313636203235352032353529EFBCADEFBE98EDBCB2EFBCB2EFBD85EFBD93EFBD83EFBD95EFBD85
D172: 2345434C | E172: #ECL | F172: 』を達成した！ | L172: 2345434C | M172: is now unlocked! | Y172: 2345434CEFBDAFEDBC82EFBD8EEFBD8FEFBF8EEFBD95EDBD94EFBD8FEFBD83EFBD8BEFBD85EFBD84EFBC81
A173: event | B173: d_kbj_003.lub | C173: 44672 | D173: 20 | F173: に移行しました | L173: 20 | M173: In motion. | Y173: 20EDBCA0EFBE9CEFBD8DEFBD8FEFBDB3EFBD8FEDBCAA
D174: 205B436865636B466C61674E6F203A20 | E174: [CheckFlagNo : | L174: 205B436865636B466C61674E6F203A20 | Y174: 205B436865636B466C61674E6F203A20
A175: event | B175: d_kbj_003.lub | C175: 56150 | D175: 534520 | E175: SE | F175: なかった！ | L175: 534520 | M175: is gone! | Y175: 534520EFBDAFEDBC82EFBD87EFBD8FEFBD8EEDBD85
A176: event | B176: d_kbj_003.lub | C176: 74082 | F176: システム | M176: System | Y176: EFBCB3EFBD99EDBC83EFBD85EFBD8D
A177: event | B177: d_kbj_003.lub | C177: 74110 | F177: このエレベータは、動いていない。 | M177: This elevator isn't working. | Y177: EFBCB4EDBC8AEDBC82EDBC91EFBD85EFBD96EFBD81EFBD94EFBD8FEFBDB4EFBDB8EFBFA9EFBD9CEFBD97EFBD8FEDBCB7EDBC81EFBF9F
A178: event | B178: d_kbj_003.lub | C178: 74258 | F178: エメル | M178: Emille | Y178: EFBCA5EFBD8DEFBDAAEDBC88
A179: event | B179: d_kbj_003.lub | C179: 74283 | F179: 追跡を続行しろ！ 絶対に逃がすな！ | M179: Keep chasing them! Don't let them escape! | Y179: EFBCABEFBD85EFBD85EFBF91EFBD83EFBD88EFBD81EFBDAEEFBD8EEDBC89EFBD94EFBD88EFBD85EFBD8DEFBC81EFBE9CEFBCA4EFBD8FEFBFA9EFBD9CEDBC88EFBD9CEFBD94EFBD88EFBD85EFBE8DEFBD85EFBD93EFBD83EFBD81EFBD90EDBD85
A180: event | B180: d_kbj_003.lub | C180: 81237 | F180: ▼▼▼▼▼
D181: 204576656E745374617274203A20455630355F30325F303931304320 | E181: EventStart : EV05_02_0910C | F181: ▼▼▼▼▼ | L181: 204576656E745374617274203A20455630355F30325F303931304320 | Y181: 204576656E745374617274203A20455630355F30325F303931304320
A182: event | B182: d_kbj_003.lub | C182: 81464 | F182: マリナ | M182: Marina | Y182: EFBCADEFBD81EFBDA5EFBD8EEFBD81
A183: event | B183: d_kbj_003.lub | C183: 81489 | F183: ………… | M183: ... | Y183: EFBF8DEFBC8E
A184: event | B184: d_kbj_003.lub | C184: 81636 | F184: ショウジ | M184: Shouji | Y184: EFBCB3EFBD88EFBD8FEDBD88EFBD89
A185: event | B185: d_kbj_003.lub | C185: 81659 | F185: こっちだ！ | M185: Here! | Y185: EFBCA8EFBD85EFBD92EDBD85EFBE9C
D186: 2353434C28323535203136302037312032353529 | E186: #SCL(255 160 71 255) | F186: イズミ | L186: 2353434C28323535203136302037312032353529 | M186: Izumi | Y186: 2353434C28323535203136302037312032353529EFBFA4EFBD95EFBD8DEFBD89
D187: 2345434C | E187: #ECL | F187: ！ | L187: 2345434C | M187: ! | Y187: 2345434CEFBC81
A188: event | B188: d_kbj_003.lub | C188: 81752 | F188: イズミ | M188: Izumi | Y188: EFBFA4EFBD95EFBD8DEFBD89
A189: event | B189: d_kbj_003.lub | C189: 81772 | F189: 手間かけさせて……！ | M189: She's giving us a lot of trouble! | Y189: EFBCB3EFBD88EFBFA1EDBC82EFBE85EDBCA8EFBD8EEDBC89EFBD95EDBC82EFBDACEDBC8CEFBD9CEFBD8FEFBDABEFBDB7EFBD8FEFBD95EDBC9AEDBD85
A190: event | B190: d_kbj_003.lub | C190: 81862 | F190: ▲▲▲▲▲
D191: 204576656E74456E64203A20455630355F30325F303931304320 | E191: EventEnd : EV05_02_0910C | F191: ▲▲▲▲▲ | L191: 204576656E74456E64203A20455630355F30325F303931304320 | Y191: 204576656E74456E64203A20455630355F30325F303931304320
A192: event | B192: d_kbj_003.lub | C192: 82110 | F192: 補給部隊員 | K192: x | M192: Supply Corps | Y192: EFBCB3EFBD95EFBD90EDBC9CEFBDA6EFBCA3EFBD8FEFBD92EFBD90EFBD93
A193: event | B193: d_kbj_003.lub | C193: 82141 | F193: 水分補給が追いつかず、 | M193: I was getting so dehydrated at this point, | Y193: EFBCA9EFBE9CEFBD97EFBD81EDBC82EFBD87EFBD85EFBDBAEDBC81EDBC89EFBD93EFBDBCEFBD84EFBD85EFBD88EFBD99EFBD84EFBD92EFBD81EFBD94EFBD85EFBDA2EFBD81EFBD9CEFBD94EDBC8AEDBC82EFBD90EDBCA2EFBD8EEFBFA8
D194: 0A0D | F194: 干からびるかと思いました… | L194: 0A0D | M194: I thought I was going to shrivel up... | Y194: 0A0DEFBCA9EFBDA0EFBD88EFBD8FEFBD95EFBD87EFBD88EFBD9CEFBCA9EFBE9CEFBD97EFBD81EDBC82EFBD87EDBCA2EFBD8EEDBC89EFBD94EFBDBCEFBD93EFBD88EFBDA5EFBD96EDBC91EDBCB6EDBD86EFBF8D
D195: 0A0D0A0D | F195: 救助、感謝します！ | L195: 0A0D0A0D | M195: Thanks a lot for saving me! | Y195: 0A0D0A0DEFBCB4EFBD88EFBD81EFBD8EEFBD8BEDBC82EFBDACEDBC8CEFBD9CEFBD86EFBD8FEFBDB4EFBD93EFBD81EDBCA8EFBD8EEDBC89EFBD8DEDBD85
A196: event | B196: d_kbj_003.lub | C196: 82272 | F196: 『 | M196: You rescued a | Y196: EFBCB9EFBD8FEDBCB2EFBD92EFBD85EFBD93EFBD83EFBD95EFBD85EFBDA2EFBDAC
D197: 2353434C28373120313636203235352032353529 | E197: #SCL(71 166 255 255) | F197: 補給部隊員 | L197: 2353434C28373120313636203235352032353529 | M197: Supply Corps | Y197: 2353434C28373120313636203235352032353529EFBCB3EFBD95EFBD90EDBC9CEFBDA6EFBCA3EFBD8FEFBD92EFBD90EFBD93
D198: 2345434C | E198: #ECL | F198: 』を救助した！ | L198: 2345434C | M198: member! | Y198: 2345434CEFBE9CEFBD8DEFBD85EFBD8DEFBD82EFBD85EFBD92EFBC81
A199: event | B199: d_kbj_003.lub | C199: 90846 | F199: 報酬 | M199: Reward | Y199: EFBCB2EFBD85EFBD97EFBD81EFBD92EFBD84
A200: event | B200: d_kbj_003.lub | C200: 111367 | D200: 64656275675F7072696E74 | E200: debug_print | L200: 64656275675F7072696E74 | Y200: 64656275675F7072696E74
A202: event | B202: d_kbj_004.lub | C202: 6232 | F202: 終了演出 | M202: The End | Y202: EFBCB4EFBD88EFBD9FEFBCA5EFBD8EEFBD84
A203: event | B203: d_kbj_004.lub | C203: 6336 | F203: クエストを達成しました！ | M203: Quest complete! | Y203: EFBCB1EFBD95EFBD85EDBC83EFBE9CEFBD83EFBD8FEFBD8DEDBC9CEFBD85EFBD94EDBD85
A204: event | B204: d_kbj_004.lub | C204: 6828 | F204: 救助人数が１５人に達した！ | M204: You've rescued 15 people! | Y204: EFBCB9EFBD8FEFBF9AEFBD96EFBD9FEFBD92EFBD85EFBD93EFBD83EFBD95EFBD85EFBDA2EFBC91EFBE84EFBD90EFBD85EFBD8FEDBC9CEDBD85
A205: event | B205: d_kbj_004.lub | C205: 6878 | F205: 救助人数が３０人に達した！ | M205: You've rescued 30 people! | Y205: EFBCB9EFBD8FEFBF9AEFBD96EFBD9FEFBD92EFBD85EFBD93EFBD83EFBD95EFBD85EFBDA2EFBC93EFBE88EFBD90EFBD85EFBD8FEDBC9CEDBD85
... 2025 more rows

Sheet misc
A1: init\init | B1: B_BATTLE1.BIN | C1: 0 | D1: 0 | F1: ０ | M1: 0 | Y1: EFBC90
A2: init\init | B2: B_BATTLE1.BIN | C2: 1 | D2: 4 | F2: １ | M2: 1 | Y2: EFBC91
A3: init\init | B3: B_BATTLE1.BIN | C3: 2 | D3: 8 | F3: ２ | M3: 2 | Y3: EFBC92
A4: init\init | B4: B_BATTLE1.BIN | C4: 3 | D4: 12 | F4: ３ | M4: 3 | Y4: EFBC93
A5: init\init | B5: B_BATTLE1.BIN | C5: 4 | D5: 16 | F5: ４ | M5: 4 | Y5: EFBC94
A6: init\init | B6: B_BATTLE1.BIN | C6: 5 | D6: 20 | F6: ５ | M6: 5 | Y6: EFBC95
A7: init\init | B7: B_BATTLE1.BIN | C7: 6 | D7: 24 | F7: ６ | M7: 6 | Y7: EFBC96
A8: init\init | B8: B_BATTLE1.BIN | C8: 7 | D8: 28 | F8: ７ | M8: 7 | Y8: EFBC97
A9: init\init | B9: B_BATTLE1.BIN | C9: 8 | D9: 32 | F9: ８ | M9: 8 | Y9: EFBC98
A10: init\init | B10: B_BATTLE1.BIN | C10: 9 | D10: 36 | F10: ９ | M10: 9 | Y10: EFBC99
A11: init\init | B11: B_BATTLE1.BIN | C11: 10 | D11: 40 | F11: ＥＸＴＲＡ ＴＵＲＮ | M11: Extra Turn | Y11: EFBCA5EFBD98EFBDB7EFBDA4EFBCB4EDBC8BEFBD8E
A12: init\init | B12: B_BATTLE1.BIN | C12: 11 | D12: 71 | F12: ＡＵＴＯ | M12: Auto | Y12: EFBCA1EDBC96EFBD8F
A13: init\init | B13: B_BATTLE1.BIN | C13: 12 | D13: 84 | E13: 236964 | L13: 236964 | Y13: 236964
A14: init\init | B14: B_BATTLE1.BIN | C14: 13 | D14: 88 | F14: －－－－－－－－－ | M14: - | Y14: EFBC8D
A15: init\init | B15: B_BATTLE1.BIN | C15: 100 | D15: 116 | F15: ＬＩＦＥボーナス | M15: LIFE Bonus | Y15: EDBD9DEFBCA6EFBCA5EFBE9CEFBCA2EFBD8FEFBD8EEFBD95EFBD93
A16: init\init | B16: B_BATTLE1.BIN | C16: 110 | D16: 141 | F16: ＭＡＮＡボーナス | M16: MANA Bonus | Y16: EFBCADEFBCA1EFBCAEEFBFA5EFBCA2EFBD8FEFBD8EEFBD95EFBD93
A17: init\init | B17: B_BATTLE1.BIN | C17: 130 | D17: 166 | F17: 旋風巻き | M17: Whirlwind Roll | Y17: EFBCB7EDBC8DEFBF8CEFBD97EDBC81EFBD9FEFBCB2EDBC90EFBD8C
A18: init\init | B18: B_BATTLE1.BIN | C18: 140 | D18: 204 | F18: 金翅鳥王旋風 | M18: Garuda Whirlwind | Y18: EFBCA7EFBD81EDBC9FEFBD84EFBDA4EFBCB7EDBC8DEFBF8CEFBD97EDBC81EFBD84
A19: init\init | B19: B_BATTLE1.BIN | C19: 150 | D19: 223 | F19: 飛天斬り | M19: Flying Slash | Y19: EDBCA4EDBD81EFBD8EEDBC89EDBCB6EFBD81EFBD93EFBD88
A20: init\init | B20: B_BATTLE1.BIN | C20: 160 | D20: 236 | F20: 力閂オロシ | M20: Battering Gale | Y20: EFBCA2EFBD81EFBDB1EFBD85EFBDA3EFBD8EEDBC89EFBCA7EDBC83EFBD85
A21: init\init | B21: B_BATTLE1.BIN | C21: 170 | D21: 252 | F21: トンボ斬り | M21: Dragonfly Slash | Y21: EFBCA4EFBD92EFBD81EFBD87EFBD8FEFBD8EEFBF9BEFBDA5EDBCB6EFBD81EFBD93EFBD88
A22: init\init | B22: B_BATTLE1.BIN | C22: 180 | D22: 268 | F22: 影無し | M22: Shadowless | Y22: EFBCB3EFBD88EFBD81EFBD84EFBD8FEFBD97EDBC86EFBD93EFBD93
A23: init\init | B23: B_BATTLE1.BIN | C23: 190 | D23: 278 | F23: 収刀の紡ぎ | M23: Sheath Spin | Y23: EFBCB3EFBD88EFBD85EFBD81EFBD94EFBE8BEFBCB3EDBCACEFBD8E
A24: init\init | B24: B_BATTLE1.BIN | C24: 200 | D24: 294 | F24: 崩し払い | M24: Payback | Y24: EFBCB0EFBD81EFBD99EFBD82EFBD81EFBD83EFBD8B
A25: init\init | B25: B_BATTLE1.BIN | C25: 210 | D25: 307 | F25: モミジ討ち | M25: Maple Assault | Y25: EFBCADEFBD81EDBC9CEFBD9CEFBCA1EFBD93EFBD93EFBD81EFBDBAEFBD94
A26: init\init | B26: B_BATTLE1.BIN | C26: 220 | D26: 323 | F26: フブキ討ち | M26: Blizzard Assault | Y26: EDBCB8EFBFA1EFBD9AEFBD81EFBD92EFBD9FEFBCA1EFBD93EFBD93EFBD81EFBDBAEFBD94
A27: init\init | B27: B_BATTLE1.BIN | C27: 230 | D27: 339 | F27: 不動居 | M27: Motionless | Y27: EFBCADEFBD8FEFBDAEEFBD8FEDBD96EFBD85EFBD93EFBD93
A28: init\init | B28: B_BATTLE1.BIN | C28: 240 | D28: 349 | F28: 風林重ね | M28: Woodwind Duet | Y28: EFBCB7EFBD8FEFBD8FEFBD84EFBD97EDBC81EFBD9FEFBCA4EFBD95EFBD85EFBD94
A29: init\init | B29: B_BATTLE1.BIN | C29: 250 | D29: 362 | F29: 十六手詰め | M29: Mate in 16 | Y29: EFBCADEFBD81EFBD94EFBD9CEDBC81EFBE9CEFBC91EFBC96
A30: init\init | B30: B_BATTLE1.BIN | C30: 260 | D30: 378 | F30: 抜刀の紡ぎ | M30: Draw Spin | Y30: EFBCA4EFBD92EFBD81EFBE93EFBCB3EDBCACEFBD8E
A31: init\init | B31: B_BATTLE1.BIN | C31: 270 | D31: 394 | F31: 修羅の貫付け | M31: Carnage Strike | Y31: EFBCA3EFBD81EFBD92EFBD8EEFBD81EFBD87EFBD9CEFBCB3EFBDB7EFBE9AEFBD85
A32: init\init | B32: B_BATTLE1.BIN | C32: 280 | D32: 413 | F32: 刃下のリアクト | M32: Pain React | Y32: EFBCB0EDBC8FEFBDACEFBCB2EFBD85EFBD81EFBD83EFBD94
A33: init\init | B33: B_BATTLE1.BIN | C33: 290 | D33: 435 | F33: 練気手当 | M33: Renki First Aid | Y33: EFBCB2EFBD85EFBD8EEFBDBBEFBE9CEDBD88EDBCA0EFBD80EFBCA1EDBC8E
A34: init\init | B34: B_BATTLE1.BIN | C34: 300 | D34: 476 | F34: 赤火の呼気 | M34: Redfire Breath | Y34: EFBCB2EFBD85EFBD84EFBDBDEFBD92EFBD9CEFBCA2EFBD92EFBD85EFBD81EFBD94EFBD88
A35: init\init | B35: B_BATTLE1.BIN | C35: 310 | D35: 492 | F35: 黒鋼の吸気 | M35: Darksteel Breath | Y35: EFBCA4EFBD81EDBCAFEDBC82EFBD85EDBC8AEFBE9CEFBCA2EFBD92EFBD85EFBD81EFBD94EFBD88
A36: init\init | B36: B_BATTLE1.BIN | C36: 320 | D36: 508 | F36: 丹田法の訓 | M36: Regulated Breath | Y36: EFBCB2EFBD85EFBD87EFBDBAEFBD81EFBD94EFBD85EFBD9FEFBCA2EFBD92EFBD85EFBD81EFBD94EFBD88
A37: init\init | B37: B_BATTLE1.BIN | C37: 340 | D37: 524 | F37: 乱れ散々桜 | M37: Sakura Cyclone | Y37: EFBCB3EFBD81EFBD8BEDBC8BEFBDA4EFBCA3EFBD99EDBCA2EFBD8FEFBD8EEFBD85
A38: init\init | B38: B_BATTLE1.BIN | C38: 350 | D38: 540 | F38: 宵待ちの型 | M38: Sunset Kata | Y38: EFBCB3EFBD95EFBD8EEFBD93EFBD85EFBD80EFBCABEFBD81EFBD94EFBD81
A39: init\init | B39: B_BATTLE1.BIN | C39: 360 | D39: 556 | F39: 憤怒の刃 | M39: Blade of Rage | Y39: EDBCB8EFBD81EFBD84EFBD9CEFBD8FEFBDB2EFBCB2EFBD81EFBD87EFBD85
A40: init\init | B40: B_BATTLE1.BIN | C40: 370 | D40: 569 | F40: 抜刀の紡ぎ 転 | M40: Draw Whirl | Y40: EFBCA4EFBD92EFBD81EFBE93EFBCB7EDBC8DEFBF8C
A41: init\init | B41: B_BATTLE1.BIN | C41: 380 | D41: 591 | F41: 八双大蛇突き | M41: Serpent Thrust | Y41: EFBCB3EFBD85EFBD92EFBD90EFBD85EFBD8EEFBD80EFBCB4EFBD88EDBC9FEDBC82
A42: init\init | B42: B_BATTLE1.BIN | C42: 390 | D42: 610 | F42: 天地断ち | M42: Earth Splitter | Y42: EFBCA5EFBD81EFBE85EFBE8BEFBCB3EDBC9CEFBDA1EFBD94EFBD85EFBD92
A43: init\init | B43: B_BATTLE1.BIN | C43: 400 | D43: 623 | F43: 秘められた力『十六手詰め・マキシマム』を発動 | M43: hidden skill Checkmate in 16 | Y43: EDBC8DEFBD84EFBD84EFBD85EFBDACEFBD93EFBDBBEFBDA2EFBE9CEFBCA3EFBD88EFBD85EFBD83EFBD8BEFBD8DEFBD81EFBD94EFBD9CEDBC81EFBE9CEFBC91EFBC96
A44: init\init | B44: B_BATTLE1.BIN | C44: 410 | D44: 690 | F44: 秘められた力『八双大蛇突き・マキシマム』を発動 | M44: hidden skill Orochi Thrust | Y44: EDBC8DEFBD84EFBD84EFBD85EFBDACEFBD93EFBDBBEFBDA2EFBE9CEFBCAFEFBD92EFBD8FEFBD83EDBC8DEFBE9CEFBCB4EFBD88EDBC9FEDBC82
A45: init\init | B45: B_BATTLE1.BIN | C45: 420 | D45: 788 | F45: 収刀の紡ぎ 転 | M45: Sheath Whirl | Y45: EFBCB3EFBD88EFBD85EFBD81EFBD94EFBE8BEFBCB7EDBC8DEFBF8C
A46: init\init | B46: B_BATTLE1.BIN | C46: 500 | D46: 116 | F46: ＬＩＦＥボーナス | M46: LIFE Bonus | Y46: EDBD9DEFBCA6EFBCA5EFBE9CEFBCA2EFBD8FEFBD8EEFBD95EFBD93
A47: init\init | B47: B_BATTLE1.BIN | C47: 510 | D47: 141 | F47: ＭＡＮＡボーナス | M47: MANA Bonus | Y47: EFBCADEFBCA1EFBCAEEFBFA5EFBCA2EFBD8FEFBD8EEFBD95EFBD93
A48: init\init | B48: B_BATTLE1.BIN | C48: 530 | D48: 838 | F48: タランテラ | M48: Tarantella | Y48: EFBCB4EFBD81EFBD92EFBD81EFBD8EEFBD94EDBC8AEDBC84
A49: init\init | B49: B_BATTLE1.BIN | C49: 540 | D49: 854 | F49: スコルピオ | M49: Scorpio | Y49: EFBCB3EFBD83EFBD8FEFBD92EDBCACEFBD8F
A50: init\init | B50: B_BATTLE1.BIN | C50: 550 | D50: 870 | F50: ヴァンパイア | M50: Vampire | Y50: EFBCB6EFBD81EFBD8DEDBCACEFBD92EFBD85
A51: init\init | B51: B_BATTLE1.BIN | C51: 560 | D51: 889 | F51: フルムーンヴァンプ | M51: Fullmoon Vamp | Y51: EFBCA6EFBDBAEFBD8CEFBD8DEFBD8FEFBD8FEFBDACEFBCB6EFBD81EFBD8DEFBD90
A52: init\init | B52: B_BATTLE1.BIN | C52: 570 | D52: 917 | F52: ベノムアンプリフ | M52: Venom Boost | Y52: EFBCB6EFBD85EFBD8EEFBD8FEFBE88EFBCA2EFBD8FEFBD8FEDBC82
A53: init\init | B53: B_BATTLE1.BIN | C53: 580 | D53: 942 | F53: アサシンアイズ | M53: Assassin Eyes | Y53: EFBCA1EFBD93EFBD93EFBD81EFBD93EFBDAFEFBDACEFBCA5EFBD99EFBD85EFBD93
A54: init\init | B54: B_BATTLE1.BIN | C54: 590 | D54: 964 | F54: ベノムフェティシュ | M54: Stinger | Y54: EFBCB3EFBDAEEFBD8EEFBD87EFBD85EFBD92
A55: init\init | B55: B_BATTLE1.BIN | C55: 610 | D55: 992 | F55: ラッシュショット | M55: Rush Shot | Y55: EFBCB2EFBD95EFBD93EFBE8BEFBCB3EFBD88EFBD8FEFBD94
A56: init\init | B56: B_BATTLE1.BIN | C56: 620 | D56: 1017 | F56: エイミングショット | M56: Aimed Shot | Y56: EFBCA1EFBD89EFBD8DEFBD85EFBD9FEFBCB3EFBD88EFBD8FEFBD94
A57: init\init | B57: B_BATTLE1.BIN | C57: 630 | D57: 1045 | F57: エア・アサルト | M57: Air Assault | Y57: EFBCA1EFBDBCEFBE9CEFBCA1EFBD93EFBD93EFBD81EFBDBAEFBD94
A58: init\init | B58: B_BATTLE1.BIN | C58: 640 | D58: 1067 | F58: ジャンプショット | M58: Ricochet | Y58: EFBCB2EDBC87EFBD8FEFBD83EFBD88EFBD85EFBD94
A59: init\init | B59: B_BATTLE1.BIN | C59: 650 | D59: 1092 | F59: ハイディング | M59: Hiding | Y59: EFBCA8EDBC8EEDBC81EFBD87
A60: init\init | B60: B_BATTLE1.BIN | C60: 660 | D60: 1111 | F60: ブッシュトラップ | M60: Bush Trap | Y60: EFBCA2EFBD95EFBD93EFBE8BEFBCB4EFBD92EFBD81EFBD90
A61: init\init | B61: B_BATTLE1.BIN | C61: 670 | D61: 1136 | F61: チーターマン | M61: Cheetah Burst | Y61: EFBCA3EFBD88EFBD85EFBD85EFBD94EFBD81EFBE8BEFBCA2EDBC8BEDBC82
A62: init\init | B62: B_BATTLE1.BIN | C62: 680 | D62: 1155 | F62: アサシンズリアクト | M62: Assassin's React | Y62: EFBCA1EFBD93EFBD93EFBD81EFBD93EFBDAFEFBF9DEDBC80EFBCB2EFBD85EFBD81EFBD83EFBD94
A63: init\init | B63: B_BATTLE1.BIN | C63: 690 | D63: 1183 | F63: エスケイプスタンス | M63: Ready to Run | Y63: EFBCB2EFBD85EFBD81EFBD84EFBDA5EFBD94EFBDB6EFBCB2EFBD95EFBD8E
A64: init\init | B64: B_BATTLE1.BIN | C64: 700 | D64: 1211 | F64: サプライズハント | M64: Surprise Hunt | Y64: EFBCB3EDBC8BEFBD90EFBDA3EFBD93EFBD9CEFBCA8EFBD95EFBD8EEFBD94
A65: init\init | B65: B_BATTLE1.BIN | C65: 710 | D65: 1236 | F65: トリックハンド | M65: Trick Hand | Y65: EFBCB4EFBDA3EFBD83EDBC9BEFBCA8EFBD81EFBD8EEFBD84
A66: init\init | B66: B_BATTLE1.BIN | C66: 740 | D66: 1286 | F66: 狂咲きバッドヘヴン | M66: Ragweed Ammo | Y66: EFBCB2EFBD81EFBD87EFBD97EFBD85EFBD85EFBD9FEFBCA1EFBD8DEFBD8DEFBD8F
A67: init\init | B67: B_BATTLE1.BIN | C67: 750 | D67: 1314 | F67: ニーブレイク | M67: Knee Break | Y67: EFBCABEFBD8EEFBD85EFBD9CEFBCA2EFBD92EFBD85EFBD81EFBD8B
A68: init\init | B68: B_BATTLE1.BIN | C68: 760 | D68: 1333 | F68: クラーケン | M68: Kraken | Y68: EFBCABEFBD92EFBD81EFBD8BEFBD85EFBD8E
A69: init\init | B69: B_BATTLE1.BIN | C69: 770 | D69: 1349 | F69: ＴＮＴスロアー | M69: Dynamite Toss | Y69: EFBCA4EFBD99EFBD8EEFBD81EFBD8DEFBDA1EFBD9CEFBCB4EFBD8FEFBD93EFBD93
A70: init\init | B70: B_BATTLE1.BIN | C70: 780 | D70: 1402 | F70: ペインイーター | M70: Pain Eater | Y70: EFBCB0EDBC8FEFBDACEFBCA5EFBD81EFBD94EFBD85EFBD92
A71: init\init | B71: B_BATTLE1.BIN | C71: 790 | D71: 1424 | F71: ゼロレンジショット | M71: Point Blank | Y71: EFBCB0EDBCAAEFBD8EEFBD80EDBCB8EFBD81EFBD8EEFBD8B
A72: init\init | B72: B_BATTLE1.BIN | C72: 800 | D72: 1490 | F72: 磔刑ディアボリカ | M72: Dread Crucifixion | Y72: EFBCA4EFBD81EDBCAFEFBE9CEFBCA3EDBC9FEDBCADEFBDBDEDBD8EEFBD8FEFBD8E
A73: init\init | B73: B_BATTLE1.BIN | C73: 810 | D73: 1531 | F73: 秘められた力『フルムーンヴァンプ・マキシマム』を発動 | M73: hidden skill Solstice Vamp | Y73: EDBC8DEFBD84EFBD84EFBD85EFBDACEFBD93EFBDBBEFBDA2EFBE9CEFBCB3EDBC90EDBC82EDBC87EFBD9CEFBCB6EFBD81EFBD8DEFBD90
A74: init\init | B74: B_BATTLE1.BIN | C74: 820 | D74: 1610 | F74: 秘められた力『ゼロレンジショット・マキシマム』を発動 | M74: hidden skill Hollowpoint Blank | Y74: EDBC8DEFBD84EFBD84EFBD85EFBDACEFBD93EFBDBBEFBDA2EFBE9CEFBCA8EDBC90EDBC91EFBD97EFBD90EDBCAAEFBD8EEFBD80EDBCB8EFBD81EFBD8EEFBD8B
A75: init\init | B75: B_BATTLE1.BIN | C75: 830 | D75: 1689 | F75: マインスロアー | M75: Mine Toss | Y75: EFBCADEDBC81EFBD9CEFBCB4EFBD8FEFBD93EFBD93
A76: init\init | B76: B_BATTLE1.BIN | C76: 840 | D76: 1742 | F76: サクリファイス | M76: Sacrifice | Y76: EFBCB3EFBD81EFBD83EFBDA3EFBDBDEFBD83EFBD85
A77: init\init | B77: B_BATTLE1.BIN | C77: 1000 | D77: 116 | F77: ＬＩＦＥボーナス | M77: LIFE Bonus | Y77: EDBD9DEFBCA6EFBCA5EFBE9CEFBCA2EFBD8FEFBD8EEFBD95EFBD93
A78: init\init | B78: B_BATTLE1.BIN | C78: 1010 | D78: 141 | F78: ＭＡＮＡボーナス | M78: MANA Bonus | Y78: EFBCADEFBCA1EFBCAEEFBFA5EFBCA2EFBD8FEFBD8EEFBD95EFBD93
A79: init\init | B79: B_BATTLE1.BIN | C79: 1030 | D79: 1764 | F79: 正拳突き | M79: Forward Punch | Y79: EFBCA6EFBD8FEFBD92EFBD97EFBD81EFBD92EFBD9FEFBCB0EFBD95EFBD8EEFBD83EFBD88
A80: init\init | B80: B_BATTLE1.BIN | C80: 1040 | D80: 1777 | F80: デストロイチャージ | M80: Depth Charge | Y80: EFBCA4EFBD85EFBD90EFBD94EFBE8BEFBCA3EFBD88EFBD81EDBCB7EFBD85
A81: init\init | B81: B_BATTLE1.BIN | C81: 1050 | D81: 1805 | F81: ジャブ | M81: Jab | Y81: EFBCAAEFBD81EFBD82
A82: init\init | B82: B_BATTLE1.BIN | C82: 1060 | D82: 1815 | F82: ダブルフック | M82: Double Hook | Y82: EFBCA4EFBD8FEFBD95EDBC9DEFBD9CEFBCA8EFBD8FEFBD8FEFBD8B
A83: init\init | B83: B_BATTLE1.BIN | C83: 1070 | D83: 1834 | F83: スピネイジブロウ | M83: Spinedge Blow | Y83: EFBCB3EDBCACEFBD8EEFBD85EFBD84EFBD87EFBD9CEDBCB8EFBD8FEFBD97
A84: init\init | B84: B_BATTLE1.BIN | C84: 1080 | D84: 1872 | F84: 釣瓶マッハ | M84: Mach Drop | Y84: EFBCADEFBD81EFBD83EFBE8BEFBCA4EFBD92EFBD8FEFBD90
A85: init\init | B85: B_BATTLE1.BIN | C85: 1090 | D85: 1888 | F85: クインテッタ | M85: Quintet | Y85: EFBCB1EFBE91EFBD8EEFBD94EFBD85EFBD94
A86: init\init | B86: B_BATTLE1.BIN | C86: 1100 | D86: 1917 | F86: ドリルクロウラー | M86: Drill Crawler | Y86: EFBCA4EFBDA3EFBDA2EFBE9CEFBCA3EFBD92EFBD81EFBD97EDBC86EFBD92
A87: init\init | B87: B_BATTLE1.BIN | C87: 1110 | D87: 1942 | F87: 迎撃スタンス | M87: Counter Stance | Y87: EFBCA3EFBD8FEFBD95EFBD8EEFBD94EFBD85EFBDA7EFBCB3EFBD94EFBD81EFBD8EEFBD83EFBD85
A88: init\init | B88: B_BATTLE1.BIN | C88: 1120 | D88: 1961 | F88: 迎撃スタンス・重式 | M88: Hard Target | Y88: EFBCA8EFBD81EFBD92EFBD9FEFBCB4EFBD81EDBCB7EFBD85EFBD94
A89: init\init | B89: B_BATTLE1.BIN | C89: 1130 | D89: 1989 | F89: オトシ前上等！ | M89: Otoshi Mae Joto | Y89: EFBCAFEFBD94EFBD8FEFBD93EDBC8DEFBE9CEFBCADEFBD81EFBD9CEFBCAAEFBD8FEFBD94EFBD8F
A90: init\init | B90: B_BATTLE1.BIN | C90: 1140 | D90: 2033 | F90: 牙折る也 | M90: Fang Breaker | Y90: EFBCA6EFBD81EFBD8EEDBC89EFBCA2EFBD92EFBD85EFBD81EFBD8BEFBD85EFBD92
A91: init\init | B91: B_BATTLE1.BIN | C91: 1150 | D91: 2046 | F91: 爪砕く也 | M91: Claw Smasher | Y91: EFBCA3EDBC84EFBE93EFBCB3EFBD8DEFBD81EFBD93EFBD88EFBD85EFBD92
A92: init\init | B92: B_BATTLE1.BIN | C92: 1160 | D92: 2059 | F92: 吹裂く也 | M92: Breath Render | Y92: EFBCA2EFBD92EFBD85EFBD81EFBD94EFBE8BEFBCB2EFBD85EFBD8EEFBD84EFBD85EFBD92
A93: init\init | B93: B_BATTLE1.BIN | C93: 1170 | D93: 2072 | F93: 凶転ず也 | M93: Fiend Shifter | Y93: EDBD88EFBD85EFBD8EEFBD9FEFBCB3EDBC8DEFBF98EFBD85EFBD92
A94: init\init | B94: B_BATTLE1.BIN | C94: 1180 | D94: 2085 | F94: 怒りの重爆 | M94: Rage Bomber | Y94: EFBCB2EFBD81EFBD87EFBD9CEFBCA2EFBD8FEFBD8DEFBD82EFBD85EFBD92
A95: init\init | B95: B_BATTLE1.BIN | C95: 1190 | D95: 2101 | F95: デストロイリアクト | M95: Destroy React | Y95: EFBCA4EFBD85EDBC82EFBD92EFBD8FEFBDA5EFBCB2EFBD85EFBD81EFBD83EFBD94
A96: init\init | B96: B_BATTLE1.BIN | C96: 1200 | D96: 2129 | F96: 先制デストロイ | M96: Destroy On Sight | Y96: EFBCA4EFBD85EDBC82EFBD92EFBD8FEFBDA5EFBCAFEFBDACEDBD91EFBD87EFBD88EFBD94
A97: init\init | B97: B_BATTLE1.BIN | C97: 1210 | D97: 2151 | F97: 瀕死のド根性 | M97: Death's Door | Y97: EFBCA4EFBD85EFBD81EFBD94EFBD88EFBDAAEFBE9CEFBCA4EFBD8FEFBD8FEFBD92
A98: init\init | B98: B_BATTLE1.BIN | C98: 1220 | D98: 2170 | F98: パリングシールド | M98: Parry Shield | Y98: EFBCB0EFBD81EFBE8EEFBDA5EFBCB3EDBC8DEDBC8AEFBD84
A99: init\init | B99: B_BATTLE1.BIN | C99: 1240 | D99: 2195 | F99: スカイハイメテオ | M99: Skyhigh Meteor | Y99: EFBCB3EFBD8BEFBD99EDBC8DEFBD87EFBE8BEFBCADEFBD85EFBD94EFBD85EFBD8FEFBD92
A100: init\init | B100: B_BATTLE1.BIN | C100: 1250 | D100: 2220 | F100: ランドクラッシャー | M100: Earth Breaker | Y100: EFBCA5EFBD81EFBE85EFBE8BEFBCA2EFBD92EFBD85EFBD81EFBD8BEFBD85EFBD92
A101: init\init | B101: B_BATTLE1.BIN | C101: 1260 | D101: 2248 | F101: 崩伏連脚 | M101: Crippling Kicks | Y101: EFBCA3EFBDA3EFBD90EDBC9CEDBC81EDBC89EFBCABEDBC87EFBD8BEFBD93
A102: init\init | B102: B_BATTLE1.BIN | C102: 1270 | D102: 2261 | F102: ハンマーヘッド | M102: Hammerhead | Y102: EFBCA8EFBD81EFBD8DEFBD8DEFBD85EFBD92EFBD88EFBD85EFBD81EFBD84
A103: init\init | B103: B_BATTLE1.BIN | C103: 1280 | D103: 2283 | F103: 介錯クリンチ | M103: Homicide Hold | Y103: EFBCA8EFBD8FEFBD8DEDBC87EDBC8EEFBD9CEFBCA8EDBC90EFBD84
A104: init\init | B104: B_BATTLE1.BIN | C104: 1290 | D104: 2302 | F104: 最終承認Ｓバンカー | M104: Bunker Buster | Y104: EFBCA2EFBD95EFBD8EEFBD8BEFBD85EFBDA7EFBCA2EFBD95EDBC82EFBD85EFBD92
A105: init\init | B105: B_BATTLE1.BIN | C105: 1300 | D105: 2330 | F105: 秘められた力『クインテッタ・マキシマム』を発動 | M105: hidden skill Quintetto | Y105: EDBC8DEFBD84EFBD84EFBD85EFBDACEFBD93EFBDBBEFBDA2EFBE9CEFBCB1EFBE91EFBD8EEFBD94EFBD85EFBDB1EFBD8F
A106: init\init | B106: B_BATTLE1.BIN | C106: 1500 | D106: 116 | F106: ＬＩＦＥボーナス | M106: LIFE Bonus | Y106: EDBD9DEFBCA6EFBCA5EFBE9CEFBCA2EFBD8FEFBD8EEFBD95EFBD93
A107: init\init | B107: B_BATTLE1.BIN | C107: 1510 | D107: 141 | F107: ＭＡＮＡボーナス | M107: MANA Bonus | Y107: EFBCADEFBCA1EFBCAEEFBFA5EFBCA2EFBD8FEFBD8EEFBD95EFBD93
A108: init\init | B108: B_BATTLE1.BIN | C108: 1530 | D108: 2425 | F108: フレイム | M108: Flame | Y108: EDBCA4EFBD81EFBD8DEFBD85
A109: init\init | B109: B_BATTLE1.BIN | C109: 1540 | D109: 2438 | F109: イフリートベーン | M109: Ifritbane | Y109: EFBCA9EFBE95EFBDA1EFBD82EFBD81EFBD8EEFBD85
A110: init\init | B110: B_BATTLE1.BIN | C110: 1550 | D110: 2463 | F110: ヒートボディ | M110: Too Hot to Touch | Y110: EFBCB4EFBD8FEFBDB6EFBCA8EFBD8FEFBD80EFBD94EFBDB6EFBCB4EFBD8FEFBD95EFBD83EFBD88
A111: init\init | B111: B_BATTLE1.BIN | C111: 1560 | D111: 2482 | F111: フリーズ | M111: Freeze | Y111: EFBCA6EFBD92EFBD85EFBD85EFBD9AEFBD85
A112: init\init | B112: B_BATTLE1.BIN | C112: 1570 | D112: 2495 | F112: アイシクルエデン | M112: Icicle Eden | Y112: EFBCA9EDBCADEDBCA2EFBD9CEFBCA5EFBD84EFBD85EFBD8E
A113: init\init | B113: B_BATTLE1.BIN | C113: 1580 | D113: 2520 | F113: ゼロ℃ボディ | M113: Zero at the Bone | Y113: EFBCBAEFBD85EFBD92EFBDB6EFBD81EFBD80EFBD94EFBD88EFBD9CEFBCA2EFBD8FEFBD8EEFBD85
A114: init\init | B114: B_BATTLE1.BIN | C114: 1590 | D114: 2539 | F114: エレキ | M114: Shock | Y114: EFBCB3EFBD88EFBD8FEFBD83EFBD8B
A115: init\init | B115: B_BATTLE1.BIN | C115: 1600 | D115: 2549 | F115: ボルトアヴェンジ | M115: Bolt Avenge | Y115: EFBCA2EDBC90EFBD80EFBCA1EFBD96EFBD85EFBD8EEFBD87EFBD85
A116: init\init | B116: B_BATTLE1.BIN | C116: 1610 | D116: 2574 | F116: エナジーピラー | M116: Energy Pillar | Y116: EFBCA5EFBD8EEFBD85EDBCB7EFBDA5EDBCB2EFBDA2EFBD81EFBD92
A117: init\init | B117: B_BATTLE1.BIN | C117: 1620 | D117: 2596 | F117: デコイミラー | M117: Decoy Mirror | Y117: EFBCA4EFBD85EFBD83EFBD8FEFBDA5EFBCADEFBDBCEFBD92EFBD8FEFBD92
A118: init\init | B118: B_BATTLE1.BIN | C118: 1630 | D118: 2615 | F118: 半径５０ｍの支配者 | M118: Fantasy Zone | Y118: EFBCA6EFBD81EFBD8EEFBD94EFBD81EFBD93EFBDA5EFBCBAEFBD8FEFBD8EEFBD85
A119: init\init | B119: B_BATTLE1.BIN | C119: 1640 | D119: 2643 | F119: マイクロバースト | M119: Microburst | Y119: EFBCADEDBC87EFBD92EFBD8FEFBD82EDBC8BEDBC82
A120: init\init | B120: B_BATTLE1.BIN | C120: 1650 | D120: 2668 | F120: マナフローター | M120: Manafloat | Y120: EFBCADEFBD81EFBD8EEFBD81EFBF9BEFBD8FEFBD81EFBD94
A121: init\init | B121: B_BATTLE1.BIN | C121: 1660 | D121: 2690 | F121: コンセントレート | M121: Concentrate | Y121: EFBCA3EFBD8FEFBD8EEFBD83EFBD85EFBD8EEFBDB7EFBD81EFBD94EFBD85
A122: init\init | B122: B_BATTLE1.BIN | C122: 1670 | D122: 2715 | F122: キュア | M122: Cure | Y122: EFBCA3EDBC8BEFBD85
A123: init\init | B123: B_BATTLE1.BIN | C123: 1680 | D123: 2725 | F123: リカヴァ | M123: Recover | Y123: EFBCB2EFBD85EFBD83EFBD8FEFBD96EFBD85EFBD92
A124: init\init | B124: B_BATTLE1.BIN | C124: 1690 | D124: 2738 | F124: リザレクション | M124: Resurrection | Y124: EFBCB2EFBD85EFBD93EDBC8BEFBD92EFBD85EFBD83EFBDAEEFBD8FEFBD8E
A125: init\init | B125: B_BATTLE1.BIN | C125: 1700 | D125: 2760 | F125: デッドマンズリアクト | M125: Rescue React | Y125: EFBCB2EFBD85EFBD93EFBD83EFBD95EFBD9CEFBCB2EFBD85EFBD81EFBD83EFBD94
A126: init\init | B126: B_BATTLE1.BIN | C126: 1710 | D126: 2791 | F126: 魔力の湧水 | M126: Mana Spring | Y126: EFBCADEFBD81EFBD8EEFBDA4EFBCB3EFBD90EFBDA3EFBD8EEFBD87
A127: init\init | B127: B_BATTLE1.BIN | C127: 1720 | D127: 2807 | F127: オートリカヴァ | M127: Auto-Recover | Y127: EFBCA1EDBC96EFBD8FEFBC8DEFBCB2EFBD85EFBD83EFBD8FEFBD96EFBD85EFBD92
A128: init\init | B128: B_BATTLE1.BIN | C128: 1730 | D128: 2829 | F128: 黒のインヴェイジョン | M128: Dark Invasion | Y128: EFBCA4EFBD81EDBCAFEFBDA6EFBD8EEFBD96EFBD81EFBDAFEFBD8FEFBD8E
A129: init\init | B129: B_BATTLE1.BIN | C129: 1740 | D129: 2876 | F129: プレリザレクション | M129: Preresurrection | Y129: EFBCB0EFBD92EFBD85EFBD92EFBD85EFBD93EDBC8BEFBD92EFBD85EFBD83EFBDAEEFBD8FEFBD8E
A130: init\init | B130: B_BATTLE1.BIN | C130: 1790 | D130: 2955 | F130: フロストバーン | M130: Frostburn | Y130: EFBCA6EFBD92EFBD8FEDBC82EFBD82EDBC8BEFBD8E
A131: init\init | B131: B_BATTLE1.BIN | C131: 1800 | D131: 2977 | F131: エアスピアー | M131: Air Spear | Y131: EFBCA1EFBDBCEFBE9CEFBCB3EFBD90EFBD85EFBD81EFBD92
A132: init\init | B132: B_BATTLE1.BIN | C132: 1810 | D132: 2996 | F132: ヴォルテックス | M132: Vortex | Y132: EFBCB6EFBD8FEFBE85EFBD85EFBD98
A133: init\init | B133: B_BATTLE1.BIN | C133: 1820 | D133: 3031 | F133: キセキの代行者 | M133: Miracle Cure | Y133: EFBCADEFBDBCEFBD81EDBCA2EFBD9CEFBCA3EDBC8BEFBD85
A134: init\init | B134: B_BATTLE1.BIN | C134: 1830 | D134: 3085 | F134: 秘められた力『フロストバーン・マキシマム』を発動 | M134: hidden skill Frozenflame | Y134: EDBC8DEFBD84EFBD84EFBD85EFBDACEFBD93EFBDBBEFBDA2EFBE9CEFBCA6EFBD92EFBD8FEFBD9AEFBD85EFBD8EEFBF9BEFBD81EFBD8DEFBD85
A135: init\init | B135: B_BATTLE1.BIN | C135: 2000 | D135: 116 | F135: ＬＩＦＥボーナス | M135: LIFE Bonus | Y135: EDBD9DEFBCA6EFBCA5EFBE9CEFBCA2EFBD8FEFBD8EEFBD95EFBD93
A136: init\init | B136: B_BATTLE1.BIN | C136: 2010 | D136: 141 | F136: ＭＡＮＡボーナス | M136: MANA Bonus | Y136: EFBCADEFBCA1EFBCAEEFBFA5EFBCA2EFBD8FEFBD8EEFBD95EFBD93
A137: init\init | B137: B_BATTLE1.BIN | C137: 2030 | D137: 3754 | F137: アタックゲイン | M137: Attack Booster | Y137: EFBCA1EFBDB1EFBD81EFBD83EDBC9BEFBCA2EFBD8FEFBD8FEDBC82EFBD85EFBD92
A138: init\init | B138: B_BATTLE1.BIN | C138: 2040 | D138: 3783 | F138: ディフェンスゲイン | M138: Defense Booster | Y138: EFBCA4EFBD85EFBD86EFBD85EFBD8EEFBD93EFBD9CEFBCA2EFBD8FEFBD8FEDBC82EFBD85EFBD92
A139: init\init | B139: B_BATTLE1.BIN | C139: 2050 | D139: 3821 | F139: リジェネレーター | M139: Regenerator | Y139: EFBCB2EFBD85EFBD87EFBD85EFBD8EEFBD85EFBD92EFBD81EFBD94EFBD8FEFBD92
A140: init\init | B140: B_BATTLE1.BIN | C140: 2060 | D140: 3862 | F140: １１９ナノマシン | M140: Nanomachine 119 | Y140: EFBCAEEFBD81EFBD8EEFBD8FEFBD8DEFBD81EFBD83EDBC8DEFBD8EEFBD9CEDBCB4EFBC99
A141: init\init | B141: B_BATTLE1.BIN | C141: 2070 | D141: 3916 | F141: Ｂデータイレイザー | M141: Trash Pickup | Y141: EFBCB4EFBD92EFBD81EFBD93EFBE8BEDBCB2EFBD83EFBD8BEFBD95EFBD90
A142: init\init | B142: B_BATTLE1.BIN | C142: 2080 | D142: 3957 | F142: ファイアブレイク | M142: Firewall | Y142: EDBD88EFBD92EFBD85EFBD97EDBC83EFBD8C
A143: init\init | B143: B_BATTLE1.BIN | C143: 2090 | D143: 3995 | F143: アイスブレイク | M143: Icebreaker | Y143: EFBCA9EFBD83EFBD85EFBD82EFBD92EFBD85EFBD81EFBD8BEFBD85EFBD92
A144: init\init | B144: B_BATTLE1.BIN | C144: 2100 | D144: 4017 | F144: Ａスキルコーラー | M144: A-Skill Caller | Y144: EFBCA1EFBC8DEFBCB3EFBDBBEFBDA2EFBE9CEFBCA3EDBC83EDBC86EFBD92
A145: init\init | B145: B_BATTLE1.BIN | C145: 2110 | D145: 4042 | F145: ハッキングワン | M145: Hack | Y145: EFBCA8EFBD81EFBD83EFBD8B
A146: init\init | B146: B_BATTLE1.BIN | C146: 2120 | D146: 4083 | F146: ハッキングゼム | M146: Hack All | Y146: EFBCA8EFBD81EFBD83EDBC9BEFBCA1EFBDA2
A147: init\init | B147: B_BATTLE1.BIN | C147: 2130 | D147: 4124 | F147: マッドストライフ | M147: luvshock.exe | Y147: EFBE8CEFBD96EFBD93EFBD88EFBD8FEFBD83EFBFA9EFBD85EFBD98EFBD85
E148: 2E78
A149: init\init | B149: B_BATTLE1.BIN | C149: 2140 | D149: 4164 | F149: スケイプゴート | M149: noiztank.exe | Y149: EFBD8EEDBCAAEFBD9AEFBD94EFBD81EFBD8EEFBFA9EFBD85EFBD98EFBD85
E150: 2E78
A151: init\init | B151: B_BATTLE1.BIN | C151: 2150 | D151: 4188 | F151: ロストパワー | M151: poisnjam.exe | Y151: EFBD90EDBCAAEFBD93EFBD8EEFBD8AEFBD81EFBD8DEFBC8EEFBD85EFBD98EFBD85
E152: 2E78
A153: init\init | B153: B_BATTLE1.BIN | C153: 2160 | D153: 4219 | F153: バッドインバリッド | M153: Buffer Overrun | Y153: EFBCA2EFBD95EDBC95EFBD85EFBDA7EFBCAFEFBD96EFBD85EFBE8EEFBD95EFBD8E
A154: init\init | B154: B_BATTLE1.BIN | C154: 2170 | D154: 4297 | F154: スリープオール | M154: Shutdown | Y154: EFBCB3EFBD88EDBC96EFBD84EFBD8FEFBD97EFBD8E
A155: init\init | B155: B_BATTLE1.BIN | C155: 2180 | D155: 4329 | F155: カースオール | M155: Feedback | Y155: EFBCA6EFBD85EFBD85EFBD84EFBD82EFBD81EFBD83EFBD8B
A156: init\init | B156: B_BATTLE1.BIN | C156: 2190 | D156: 4361 | F156: ハッキングリアクト | M156: Hacking React | Y156: EFBCA8EFBD81EFBD83EFBDBBEFBD8EEDBC89EFBCB2EFBD85EFBD81EFBD83EFBD94
A157: init\init | B157: B_BATTLE1.BIN | C157: 2200 | D157: 4389 | F157: リアクターチアー | M157: Reactor Cheer | Y157: EFBCB2EFBD85EFBD81EFBD83EFBD94EFBD8FEFBDA7EFBCA3EFBD88EFBD85EFBD85EFBD92
A158: init\init | B158: B_BATTLE1.BIN | C158: 2210 | D158: 4439 | F158: クイックハック | M158: Quick Hack | Y158: EFBCB1EFBE91EFBD83EDBC9BEFBCA8EFBD81EFBD83EFBD8B
A159: init\init | B159: B_BATTLE1.BIN | C159: 2220 | D159: 4461 | F159: サバゲーナレッジ | M159: Airsoft Training | Y159: EFBCA1EFBDBCEFBD93EFBD8FEFBF98EFBE9CEFBCB4EFBD92EDBC8FEDBC94EFBD8EEFBD87
A160: init\init | B160: B_BATTLE1.BIN | C160: 2230 | D160: 4499 | F160: 禁断の秘技 | M160: gg.bat | Y160: EFBD87EFBFAAEFBD82EFBD81EFBD94
A161: init\init | B161: B_BATTLE1.BIN | C161: 2240 | D161: 4755 | F161: ファイア：ＴＲＯＹ | M161: TROY: Fire | Y161: EFBCB4EFBCB2EFBCAFEFBCB9EFBC9AEFBE9CEDBD88EFBD92EFBD85
A162: init\init | B162: B_BATTLE1.BIN | C162: 2250 | D162: 4830 | F162: アイス：ＴＲＯＹ | M162: TROY: Ice | Y162: EFBCB4EFBCB2EFBCAFEFBCB9EFBC9AEFBDA6EFBD83EFBD85
A163: init\init | B163: B_BATTLE1.BIN | C163: 2260 | D163: 4953 | F163: キュア：ＴＲＯＹ | M163: TROY: Cure | Y163: EFBCB4EFBCB2EFBCAFEFBCB9EFBC9AEFBE9CEFBCA3EDBC8BEFBD85
A164: init\init | B164: B_BATTLE1.BIN | C164: 2270 | D164: 5058 | F164: ラッキーゲイン | M164: Luck Booster | Y164: EFBCACEFBD95EFBD83EDBC9BEFBCA2EFBD8FEFBD8FEDBC82EFBD85EFBD92
A165: init\init | B165: B_BATTLE1.BIN | C165: 2290 | D165: 5232 | F165: 天罰ジャック２０２１ | M165: Heavenjack 2021 | Y165: EFBCA8EFBD85EFBD81EFBD96EFBD85EFBD8EEFBD8AEFBD81EFBD83EDBC9BEFBC92EFBC90EFBC92EFBC91
A166: init\init | B166: B_BATTLE1.BIN | C166: 2300 | D166: 5339 | F166: 秘められた力『スケイプゴート・マキシマム』を発動 | M166: hidden skill noiztank.max | Y166: EDBC8DEFBD84EFBD84EFBD85EFBDACEFBD93EFBDBBEFBDA2EFBE9CEFBD8EEDBCAAEFBD9AEFBD94EFBD81EFBD8EEFBFA9EFBD8DEFBD81EFBD98
A167: init\init | B167: B_BATTLE1.BIN | C167: 2310 | D167: 5412 | F167: エンチャントファイア | M167: Firebrand | Y167: EDBD88EFBD92EFBD85EFBD82EFBD92EFBD81EFBD8EEFBD84
A168: init\init | B168: B_BATTLE1.BIN | C168: 2320 | D168: 5443 | F168: エンチャントアイス | M168: Icebrand | Y168: EFBCA9EFBD83EFBD85EFBD82EFBD92EFBD81EFBD8EEFBD84
A169: init\init | B169: B_BATTLE1.BIN | C169: 2500 | D169: 116 | F169: ＬＩＦＥボーナス | M169: LIFE Bonus | Y169: EDBD9DEFBCA6EFBCA5EFBE9CEFBCA2EFBD8FEFBD8EEFBD95EFBD93
A170: init\init | B170: B_BATTLE1.BIN | C170: 2510 | D170: 141 | F170: ＭＡＮＡボーナス | M170: MANA Bonus | Y170: EFBCADEFBCA1EFBCAEEFBFA5EFBCA2EFBD8FEFBD8EEFBD95EFBD93
A171: init\init | B171: B_BATTLE1.BIN | C171: 2530 | D171: 38237 | F171: コール | M171: Shout | Y171: EFBCB3EFBD88EFBD8FEDBC96
A172: init\init | B172: B_BATTLE1.BIN | C172: 2540 | D172: 5871 | F172: 突撃グルーヴ | M172: Rush Groove | Y172: EFBCB2EFBD95EFBD93EFBE8BEFBCA7EFBD92EFBD8FEFBD8FEFBD96EFBD85
A173: init\init | B173: B_BATTLE1.BIN | C173: 2590 | D173: 5991 | F173: 進めロックンロール | M173: Rock n' Roll Out | Y173: EFBCB2EFBD8FEFBD83EDBC9BEFBF9DEFBE9CEFBCB2EDBC90EFBDA9EFBCAFEDBC96
A174: init\init | B174: B_BATTLE1.BIN | C174: 2600 | D174: 6041 | F174: 進め！ロックンロール | M174: Rock n' Roll Out! | Y174: EFBCB2EFBD8FEFBD83EDBC9BEFBF9DEFBE9CEFBCB2EDBC90EFBDA9EFBCAFEDBC96EFBC81
A175: init\init | B175: B_BATTLE1.BIN | C175: 2610 | D175: 6088 | F175: 伝説のロックンロール | M175: Rock Legend | Y175: EFBCB2EFBD8FEFBD83EDBC9BEFBCACEFBD85EFBD87EFBD85EFBD8EEFBD84
A176: init\init | B176: B_BATTLE1.BIN | C176: 2630 | D176: 6182 | F176: 癒しのバラード | M176: Soothing Song | Y176: EFBCB3EFBD8FEFBD8FEFBD94EDBC8DEFBD8EEDBC89EFBCB3EFBD8FEFBD8EEFBD87
A177: init\init | B177: B_BATTLE1.BIN | C177: 2640 | D177: 6204 | F177: オーバー・ミニッツ | M177: Overtime | Y177: EFBCAFEFBD96EFBD85EFBE85EFBD89EFBD8DEFBD85
A178: init\init | B178: B_BATTLE1.BIN | C178: 2650 | D178: 6248 | F178: ギフト・フォー・ユー | M178: Gift For You | Y178: EFBCA7EFBE82EFBD80EFBCA6EFBD8FEFBDA7EFBCB9EFBD8FEFBD95
A179: init\init | B179: B_BATTLE1.BIN | C179: 2670 | D179: 6279 | F179: 絶叫金切りＶ | M179: Glory Note | Y179: EFBCA7EDBC91EFBD92EFBDA5EFBCAEEFBD8FEFBD94EFBD85
A180: init\init | B180: B_BATTLE1.BIN | C180: 2680 | D180: 6298 | F180: モスキートＶ | M180: Mosquito Pitch | Y180: EFBCADEFBD8FEFBD93EFBD91EFBE91EFBD94EFBDB6EDBCB2EFBD94EFBD83EFBD88
A181: init\init | B181: B_BATTLE1.BIN | C181: 2690 | D181: 6317 | F181: アンゼリカＶ | M181: Angelic Pitch | Y181: EFBCA1EFBD8EEFBD87EDBC8AEDBC87EFBE9CEDBCB2EFBD94EFBD83EFBD88
A182: init\init | B182: B_BATTLE1.BIN | C182: 2700 | D182: 6374 | F182: シャッフルＶ | M182: Shuffle Pitch | Y182: EFBCB3EFBD88EFBD95EDBC95EDBC86EFBE9CEDBCB2EFBD94EFBD83EFBD88
A183: init\init | B183: B_BATTLE1.BIN | C183: 2710 | D183: 6393 | F183: ベルセルクＶ | M183: Berserk Pitch | Y183: EFBCA2EFBD85EDBCA0EFBD85EDBCAFEFBE9CEDBCB2EFBD94EFBD83EFBD88
A184: init\init | B184: B_BATTLE1.BIN | C184: 2720 | D184: 6412 | F184: ドライアイス | M184: Dry Ice | Y184: EFBCA4EFBD92EFBDA5EFBCA9EFBD83EFBD85
A185: init\init | B185: B_BATTLE1.BIN | C185: 2730 | D185: 6431 | F185: プロのド根性 | M185: True Pro | Y185: EFBCB4EDBC9FEFBD9CEFBCB0EFBD92EFBD8F
A186: init\init | B186: B_BATTLE1.BIN | C186: 2740 | D186: 6450 | F186: ロケットスターター↑ | M186: Rocket Start | Y186: EFBCB2EFBD8FEFBD83EFBD8BEFBD85EFBD80EFBCB3EFBD94EFBD81EFBE85
A187: init\init | B187: B_BATTLE1.BIN | C187: 2780 | D187: 448 | F187: ＸＸＸアクシデント | M187: Overexposed | Y187: EFBCAFEFBD96EFBD85EFBD92EFBD85EFBD98EFBD90EFBD8FEFBD93EFBD85EFBD84
A188: init\init | B188: B_BATTLE1.BIN | C188: 2790 | D188: 6494 | F188: スルーリアクト | M188: Miss React | Y188: EFBCADEFBDB9EDBC80EFBCB2EFBD85EFBD81EFBD83EFBD94
A189: init\init | B189: B_BATTLE1.BIN | C189: 2800 | D189: 760 | F189: ハイ・ギャランティ | M189: Gig Guarantee | Y189: EFBCA7EFBDB3EFBE9CEFBCA7EFBD95EFBD81EFBD92EFBD81EFBD8EEFBD94EFBD85EFBD85
A190: init\init | B190: B_BATTLE1.BIN | C190: 2810 | D190: 810 | F190: カラフル・ステージ | M190: Colorful Stage | Y190: EFBCA3EDBC90EFBD8FEFBD92EFBD86EFBDBAEFBE9CEFBCB3EFBD94EFBD81EFBD87EFBD85
A191: init\init | B191: B_BATTLE1.BIN | C191: 2850 | D191: 1258 | F191: ＴＯＫＹＯアリーナ | M191: Tokyo Arena | Y191: EFBCB4EFBD8FEFBD8BEFBD99EFBDB6EFBCA1EFBD92EFBD85EFBD8EEFBD81
A192: init\init | B192: B_BATTLE1.BIN | C192: 2860 | D192: 1371 | F192: ＴＯＫＹＯアリーナ極 | M192: Tokyo Arena Plus | Y192: EFBCB4EFBD8FEFBD8BEFBD99EFBDB6EFBCA1EFBD92EFBD85EFBD8EEFBDA4EDBCA9EFBD95EFBD93
A193: init\init | B193: B_BATTLE1.BIN | C193: 2870 | D193: 6856 | F193: 秘められた力『アンゼリカＶ・マキシマム』を発動 | M193: hidden skill Perfect Pitch | Y193: EDBC8DEFBD84EFBD84EFBD85EFBDACEFBD93EFBDBBEFBDA2EFBE9CEFBCB0EFBD85EFBD92EFBD86EFBD85EFBD83EFBD80EDBCB2EFBD94EFBD83EFBD88
A194: init\init | B194: B_BATTLE1.BIN | C194: 2880 | D194: 6964 | F194: ＡＴＫ☆フォーム | M194: Attack ~ Beat | Y194: EFBCA1EFBDB1EFBD81EFBD83EDBC9BEFBEB3EFBE9CEFBCA2EFBD85EFBD81EFBD94
A195: init\init | B195: B_BATTLE1.BIN | C195: 2890 | D195: 6989 | F195: ＤＥＦ☆フォーム | M195: Defense ~ Beat | Y195: EFBCA4EFBD85EFBD86EFBD85EFBD8EEFBD93EFBD9CEFBEB3EFBE9CEFBCA2EFBD85EFBD81EFBD94
A196: init\init | B196: B_BATTLE1.BIN | C196: 2900 | D196: 7014 | F196: ＳＰＤ☆フォーム | M196: Speed ~ Beat | Y196: EFBCB3EFBD90EFBD85EFBD85EFBD9FEFBEB3EFBE9CEFBCA2EFBD85EFBD81EFBD94
A197: init\init | B197: B_BATTLE1.BIN | C197: 2910 | D197: 7055 | F197: もっと突撃グルーヴ | M197: Big Rush Groove | Y197: EDBD8CEDBC89EFBCB2EFBD95EFBD93EFBE8BEFBCA7EFBD92EFBD8FEFBD8FEFBD96EFBD85
A198: init\init | B198: B_BATTLE1.BIN | C198: 2920 | D198: 7133 | F198: ＣＵＲＥ☆フォーム | M198: Cure ~ Beat | Y198: EFBCA3EDBC8BEFBD9CEFBEB3EFBE9CEFBCA2EFBD85EFBD81EFBD94
A199: init\init | B199: B_BATTLE1.BIN | C199: 2990 | D199: 7529 | F199: 気ままにオンロード | M199: Treat Yourself | Y199: EFBCB4EFBD92EFBD85EFBD81EFBD80EFBCB9EFBD8FEDBC8BEFBD93EDBC8AEFBD86
A200: init\init | B200: B_BATTLE1.BIN | C200: 3000 | D200: 7557 | F200: フォロー・ミー | M200: Follow Me | Y200: EFBCA6EDBC90EDBC91EFBE93EFBCADEFBD85
... 2049 more rows

Sheet enemy_list
A1: 9 | C1: 1 | D1: 39 | E1: 86 | F1: 272 | I1: 1 | T1: 222 names
A2: 14 | C2: =C1+1 -> 2 | D2: 226 | E2: 227 | I2: =I1+1 -> 2 | T2: 152 ??? data codes
A3: 92 | C3: =C2+1 -> 3 | D3: 195 | E3: 205 | F3: 207 | I3: =I2+1 -> 3 | T3: 281 monsters
A4: 25 | C4: 4 | D4: 145 | I4: 4
A5: 30 | C5: 5 | D5: 240 | E5: 250 | F5: 251 | G5: 252 | I5: 5
A6: 35 | C6: 6 | D6: 94 | I6: 6
A7: 42 | C7: 7 | D7: 51 | I7: 7
A8: 46 | C8: 8 | D8: 237 | I8: 8
A9: 50 | C9: 9 | D9: 1 | I9: 9
A10: 57 | C10: 10 | D10: 191 | E10: 196 | F10: 197 | I10: 10
A11: 60 | C11: 11 | D11: 146 | I11: 11
A12: 65 | C12: 12 | D12: 95 | I12: 12
A13: 70 | C13: 13 | D13: 52 | I13: 13
A14: 73 | C14: 14 | D14: 2 | E14: 78 | I14: 14
A15: 77 | C15: 15 | D15: 147 | I15: 15
A16: 86 | C16: 16 | D16: 235 | I16: 16
A17: 91 | C17: 17 | D17: 96 | I17: 17
A18: 97 | C18: 18 | D18: 53 | I18: 18
A19: 102 | C19: 19 | D19: 281 | I19: 19
A20: 106 | C20: 20 | D20: 49 | E20: 275 | I20: 20
A21: 112 | C21: 21 | D21: 192 | E21: 198 | F21: 199 | I21: 21
A22: 117 | C22: 22 | D22: 148 | I22: 22
A23: 121 | C23: 23 | D23: 97 | I23: 23
A24: 128 | C24: 24 | D24: 54 | I24: 24
A25: 133 | C25: 25 | D25: 4 | I25: 25
A26: 137 | C26: 26 | D26: 149 | I26: 26
A27: 143 | C27: 27 | D27: 98 | I27: 27
A28: 147 | C28: 28 | D28: 55 | I28: 28
A29: 151 | C29: 29 | D29: 236 | I29: 29
A30: 157 | C30: 30 | D30: 5 | E30: 82 | I30: 30
A31: 161 | C31: 31 | D31: 177 | E31: 231 | I31: 31
A32: 163 | C32: 32 | D32: 150 | I32: 32
A33: 166 | C33: 33 | D33: 99 | I33: 33
A34: 168 | C34: 34 | D34: 56 | I34: 34
A35: 171 | C35: 35 | D35: 6 | I35: 35
A36: 176 | C36: 36 | D36: 273 | I36: 36
A37: 179 | C37: 37 | D37: 200 | E37: 201 | I37: 37
A38: 184 | C38: 38 | D38: 151 | I38: 38
A39: 1 | C39: 39 | D39: 246 | E39: 253 | I39: 39
A40: 192 | C40: 40 | D40: 100 | I40: 40
A41: 195 | C41: 41 | D41: 238 | I41: 41
A42: 199 | C42: 42 | D42: 7 | I42: 42
A43: 204 | C43: 43 | D43: 244 | E43: 261 | I43: 43
A44: 208 | C44: 44 | D44: 152 | I44: 44
A45: 212 | C45: 45 | D45: 101 | I45: 45
A46: 122 | C46: 46 | D46: 8 | I46: 46
A47: 132 | C47: 47 | D47: 153 | I47: 47
A48: 218 | C48: 48 | D48: 102 | E48: 230 | I48: 48
A49: 20 | C49: 49 | D49: 57 | I49: 49
A50: 222 | C50: 50 | D50: 9 | I50: 50
A51: 7 | C51: 51 | D51: 202 | E51: 203 | I51: 51
A52: 13 | C52: 52 | D52: 154 | I52: 52
A53: 18 | C53: 53 | D53: 103 | I53: 53
A54: 24 | C54: 54 | D54: 245 | E54: 249 | I54: 54
A55: 28 | C55: 55 | D55: 58 | I55: 55
A56: 34 | C56: 56 | D56: 258 | I56: 56
A57: 49 | C57: 57 | D57: 10 | E57: 80 | I57: 57
A58: 55 | C58: 58 | D58: 155 | I58: 58
A59: 64 | C59: 59 | D59: 104 | I59: 59
A60: 76 | C60: 60 | D60: 11 | I60: 60
A61: 81 | C61: 61 | D61: 194 | E61: 204 | F61: 206 | I61: 61
A62: 85 | C62: 62 | D62: 156 | I62: 62
A63: 90 | C63: 63 | D63: 105 | I63: 63
A64: 96 | C64: 64 | D64: 59 | I64: 64
A65: 101 | C65: 65 | D65: 12 | I65: 65
A66: 105 | C66: 66 | D66: 274 | I66: 66
A67: 111 | C67: =C66+1 -> 67 | D67: 157 | I67: =I66+1 -> 67
A68: 116 | C68: 68 | D68: 106 | I68: 68
A69: 120 | C69: 69 | D69: 239 | I69: 69
A70: 126 | C70: 70 | D70: 13 | I70: 70
A71: 132 | C71: 71 | D71: 158 | I71: 71
A72: 136 | C72: 72 | D72: 107 | E72: 129 | F72: 135 | G72: 233 | I72: 72
A73: 142 | C73: 73 | D73: 14 | I73: 73
A74: 146 | C74: 74 | D74: 159 | I74: 74
A75: 150 | C75: 75 | D75: 108 | I75: 75
A76: 155 | C76: 76 | D76: 60 | I76: 76
A77: 160 | C77: 77 | D77: 15 | I77: 77
A78: 14 | C78: 78 | D78: 221 | I78: 78
A79: 92 | C79: 79 | D79: 128 | E79: 160 | I79: 79
A80: 57 | C80: 80 | D80: 109 | I80: 80
A81: 183 | C81: 81 | D81: 61 | I81: 81
A82: 30 | C82: 82 | D82: 208 | I82: 82
A83: 191 | C83: 83 | D83: 161 | I83: 83
A84: 106 | C84: 84 | D84: 110 | I84: 84
A85: 133 | C85: 85 | D85: 62 | I85: 85
A86: 1 | C86: 86 | D86: 16 | I86: 86
A87: 188 | C87: 87 | D87: 209 | I87: 87
A88: 211 | C88: 88 | D88: 162 | E88: 190 | I88: 88
A89: 121 | C89: 89 | D89: 111 | I89: 89
A90: 97 | C90: 90 | D90: 63 | E90: 269 | F90: 271 | G90: 278 | I90: 90
A91: 217 | C91: 91 | D91: 17 | I91: 91
A92: 165 | C92: 92 | D92: 3 | E92: 79 | I92: 92
A93: 162 | C93: 93 | D93: 210 | E93: 229 | I93: 93
A94: 6 | C94: 94 | D94: 163 | I94: 94
A95: 12 | C95: 95 | D95: 112 | I95: 95
A96: 17 | C96: 96 | D96: 64 | I96: 96
A97: 23 | C97: 97 | D97: 18 | E97: 90 | I97: 97
A98: 27 | C98: 98 | D98: 211 | E98: 212 | F98: 213 | G98: 228 | I98: 98
A99: 33 | C99: 99 | D99: 164 | I99: 99
A100: 40 | C100: 100 | D100: 113 | I100: 100
A101: 45 | C101: 101 | D101: 65 | E101: 279 | I101: 101
A102: 48 | C102: 102 | D102: 19 | I102: 102
A103: 53 | C103: 103 | D103: 165 | I103: 103
A104: 59 | C104: 104 | D104: 114 | I104: 104
A105: 63 | C105: 105 | D105: 66 | I105: 105
A106: 68 | C106: 106 | D106: 20 | E106: 84 | I106: 106
A107: 72 | C107: 107 | D107: 222 | E107: 223 | F107: 224 | G107: 225 | I107: 107
A108: 75 | C108: 108 | D108: 166 | I108: 108
A109: 80 | C109: 109 | D109: 115 | I109: 109
A110: 84 | C110: 110 | D110: 247 | I110: 110
A111: 89 | C111: 111 | D111: 67 | I111: 111
A112: 95 | C112: 112 | D112: 21 | I112: 112
A113: 100 | C113: 113 | D113: 167 | I113: 113
A114: 104 | C114: 114 | D114: 255 | I114: 114
A115: 109 | C115: 115 | D115: 116 | E115: 234 | I115: 115
A116: 115 | C116: 116 | D116: 68 | I116: 116
A117: 119 | C117: 117 | D117: 22 | I117: 117
A118: 124 | C118: 118 | D118: 168 | I118: 118
A119: 131 | C119: 119 | D119: 117 | I119: 119
A120: 135 | C120: 120 | D120: 69 | E120: 277 | I120: 120
A121: 140 | C121: 121 | D121: 23 | E121: 89 | I121: 121
A122: 145 | C122: 122 | D122: 46 | E122: 276 | I122: 122
A123: 149 | C123: 123 | D123: 169 | I123: 123
A124: 154 | C124: 124 | D124: 118 | I124: 124
A125: 159 | C125: 125 | D125: 257 | I125: 125
A126: 162 | C126: 126 | D126: 70 | I126: 126
A127: 165 | C127: 127 | D127: 241 | I127: 127
A128: 79 | C128: 128 | D128: 24 | I128: 128
A129: 72 | C129: 129 | D129: 260 | I129: 129
A130: 174 | C130: 130 | D130: 170 | I130: 130
A131: 178 | C131: =C130+1 -> 131 | D131: 119 | I131: =I130+1 -> 131
A132: 182 | C132: 132 | D132: 47 | E132: 71 | I132: 132
A133: 187 | C133: 133 | D133: 25 | E133: 85 | I133: 133
A134: 190 | C134: 134 | D134: 171 | I134: 134
A135: 72 | C135: 135 | D135: 120 | I135: 135
A136: 198 | C136: 136 | D136: 72 | I136: 136
A137: 203 | C137: 137 | D137: 26 | E137: 280 | I137: 137
A138: 207 | C138: 138 | D138: 254 | I138: 138
A139: 210 | C139: 139 | D139: 172 | I139: 139
A140: 213 | C140: 140 | D140: 121 | I140: 140
A141: 214 | C141: 141 | D141: 248 | I141: 141
A142: 216 | C142: 142 | D142: 73 | I142: 142
A143: 220 | C143: 143 | D143: 27 | I143: 143
A144: 221 | C144: 144 | D144: 173 | I144: 144
A145: 4 | C145: 145 | D145: 122 | I145: 145
A146: 11 | C146: 146 | D146: 74 | I146: 146
A147: 15 | C147: 147 | D147: 28 | I147: 147
A148: 22 | C148: 148 | D148: 174 | I148: 148
A149: 26 | C149: 149 | D149: 123 | I149: 149
A150: 32 | C150: 150 | D150: 75 | I150: 150
A151: 38 | C151: 151 | D151: 29 | I151: 151
A152: 44 | C152: 152 | D152: 175 | I152: 152
A153: 47 | C153: 153 | D153: 216 | E153: 218 | F153: 220
A154: 52 | C154: 154 | D154: 124
A155: 58 | C155: 155 | D155: 76
A156: 62 | C156: 156 | D156: 242
A157: 67 | C157: 157 | D157: 30
A158: 71 | C158: 158 | D158: 176
A159: 74 | C159: 159 | D159: 125
A160: 79 | C160: 160 | D160: 77
A161: 83 | C161: 161 | D161: 31
A162: 88 | C162: 162 | D162: 93 | E162: 126
A163: 94 | C163: 163 | D163: 32
A164: 99 | C164: 164 | D164: 178
A165: 103 | C165: 165 | D165: 92 | E165: 127 | F165: 184
A166: 108 | C166: 166 | D166: 33
A167: 113 | C167: 167 | D167: 179 | E167: 232
A168: 118 | C168: 168 | D168: 34
A169: 123 | C169: 169 | D169: 214 | E169: 215
A170: 130 | C170: 170 | D170: 180
A171: 134 | C171: 171 | D171: 35
A172: 139 | C172: 172 | D172: 181
A173: 144 | C173: 173 | D173: 219
A174: 148 | C174: 174 | D174: 130
A175: 152 | C175: 175 | D175: 243
A176: 158 | C176: 176 | D176: 36
A177: 31 | C177: 177 | D177: 182
A178: 164 | C178: 178 | D178: 131
A179: 167 | C179: 179 | D179: 37
A180: 170 | C180: 180 | D180: 217
A181: 172 | C181: 181 | D181: 183
A182: 177 | C182: 182 | D182: 132
A183: 181 | C183: 183 | D183: 81
A184: 165 | C184: 184 | D184: 38
A185: 189 | C185: 185 | D185: 262
A186: 194 | C186: 186 | D186: 256
A187: 197 | C187: 187 | D187: 133
A188: 202 | C188: 188 | D188: 87 | E188: 263
A189: 206 | C189: 189 | D189: 185
A190: 88 | C190: 190 | D190: 134
A191: 10 | C191: 191 | D191: 83
A192: 21 | C192: 192 | D192: 40
A193: 219 | C193: 193 | D193: 264
A194: 61 | C194: 194 | D194: 186
A195: 3 | C195: =C194+1 -> 195 | D195: 41
A196: 10 | C196: 196 | D196: 265
A197: 10 | C197: 197 | D197: 187
A198: 21 | C198: 198 | D198: 136
A199: 21 | C199: 199 | D199: 42
A200: 37 | C200: 200 | D200: 259
... 174 more rows

Sheet tpkheaders
A1: init | B1: init.tpk | C1: DIC.BIN | D1: CHR_O_PS01.MDL | E1: ADDEFF.ADB | F1: QUEST.QDB | G1: ITEMDATA.BIN | H1: COMMON1.BIN | I1: B_BATTLE1.BIN | J1: UICOMMONTEXT.BIN | K1: SHOPDATA.BIN | L1: REPAIRDATA.BIN | M1: TOWNTEXT.BIN | N1: RESCUERDATA.BIN | O1: SCENEDATA.BIN | P1: VOICEACTORDATA.BIN | Q1: COMMON_SE.PBD | R1: COMMON_SE.PHD | S1: BTLPARAMSETTING.BIN | T1: SKILL.BIN | U1: SKILLGET.BIN | V1: CLASS_CHANGE.TOP | W1: FIELDSETTINGPARAM.ALT | X1: FIELDSUPPORTSKILL.HCR | Y1: CUSTOMMENUDATA.BIN | Z1: CUSTOMMENUTEXT.BIN | AA1: BGMDATABASE.KNN | AB1: TOWNJUMP_MAIN.BIN | AC1: TOWNJUMP_EXCEPTION.BIN | AD1: BTL_LVUP.TPK | AE1: BTL_CMD.TPK | AF1: BTL_EXGAGE.TPK | AG1: FONT.TEXB | AH1: GAMEOVER.TPK | AI1: MENU_TOP.TPK | AJ1: NUMBER.TPK | AK1: POP_UP.TPK | AL1: UI_FIELD01.TPK | AM1: UI_FIELD03.TPK | AN1: NG_POP.TPK | AO1: SUPPORT.TPK | AP1: ENCOUNTERS.TPK | AQ1: EF_ALL.EFP | AR1: ENCOUNT.TPK | AS1: LANDFORMS.BIN | AT1: UI_FACES.BIN | AU1: UI_COM_BG.PTM | AV1: EVT_STR_TABLES.TPK | AW1: ACQUIRED_SKILL.BIN | AX1: PLAYER_DB.BIN | AY1: ENEMY_DB.BIN | AZ1: ENEMY_LIST.BIN | BA1: SKILL_INFO.BIN | BB1: UI_METO_CHR_NON.TEXB | BC1: AREA.TPK | BD1: MENU_BG.TPK | BE1: ENEMY_DB_EASY.BIN | BF1: EF_D06_300_1_OR.EFC
A2: ui | B2: quest.tpk | C2: QUEST.HUBB | D2: QUEST.HUMB | E2: QUEST.HUDB | F2: QUEST0.HMCB | G2: QUEST1.HMCB | H2: QUEST2.HMCB | I2: QUEST3.HMCB | J2: QUEST4.HMCB | K2: QUEST5.HMCB | L2: QUEST6.HMCB | M2: QUEST0.HMMB | N2: QUEST1.HMMB | O2: QUEST2.HMMB | P2: QUEST3.HMMB | Q2: QUEST4.HMMB | R2: QUEST5.HMMB | S2: QUEST6.HMMB | T2: QUEST0.HMTB | U2: QUEST1.HMTB | V2: QUEST2.HMTB | W2: QUEST3.HMTB | X2: QUEST4.HMTB | Y2: QUEST5.HMTB | Z2: QUEST6.HMTB | AA2: UI_QUEST_DATA.TEXB | AB2: QUESTTEXT1.BIN
A3: worldmap | B3: WorldMap.tpk | C3: WORLDMAPDATA.WLD | D3: WORLD1.BIN | E3: WORLDMAPHUROWARODATA.WFD
A4: worldmap | B4: WorldModel.tpk | C4: GP00A.SM | D4: GP01A.SM | E4: GP02A.SM | F4: GP03A.SM | G4: GP04A.SM | H4: GP05A.SM | I4: GP06A.SM | J4: GP07A.SM | K4: GP08A.SM | L4: GP09A.SM | M4: GP10A.SM | N4: GP11A.SM | O4: GP12A.SM | P4: GP13A.SM | Q4: LM00A.SM | R4: LM01A.SM | S4: LM02A.SM | T4: LM03A.SM | U4: LM04A.SM | V4: LM05A.SM | W4: LM06A.SM | X4: LM07B.SM | Y4: LM08A.SM | Z4: LM09A.SM | AA4: LM10A.SM | AB4: LM07A.SM | AC4: LM11A.SM | AD4: LM08B.SM | AE4: LOCATOR_POINT.MDL | AF4: W01_CAM_0.MDL | AG4: W01_CAM_1.MDL | AH4: W01_CAM_2.MDL | AI4: W01_CAM_0.ANM | AJ4: W01_CAM_1.ANM | AK4: W01_CAM_2.ANM | AL4: EF_UIW.EFP | AM4: WORLD_SE.PHD | AN4: WORLD_SE.PBD | AO4: EE_C00_007_1_OR.EFC | AP4: EE_C00_007_2_OR.EFC | AQ4: WORLD1.BIN
A5: ui | B5: arasuji.tpk | C5: HUD_BONE_00.HUBB | D5: HUD_MATERIAL_00.HUMB | E5: HUD_MODEL_00.HUDB | F5: HUD_MOT_COLOR_00.HMCB | G5: HUD_MOT_MATERIAL_00.HMMB | H5: HUD_MOT_MATERIAL_01.HMMB | I5: HUD_MOT_MATERIAL_02.HMMB | J5: HUD_MOT_TRS_00.HMTB | K5: TEX_00.TEXB
A6: ui | B6: area01.tpk | C6: UI_AREA_GZD.TEXB | D6: AREA.HUMB | E6: AREA.HUDB | F6: AREA.HUBB | G6: AREA.HMTB | H6: AREA.HMMB
A7: ui | B7: area02.tpk | C7: UI_AREA_TRA.TEXB | D7: AREA.HUMB | E7: AREA.HUDB | F7: AREA.HUBB | G7: AREA.HMTB | H7: AREA.HMMB
A8: ui | B8: area03.tpk | C8: UI_AREA_TKY.TEXB | D8: AREA.HUMB | E8: AREA.HUDB | F8: AREA.HUBB | G8: AREA.HMTB | H8: AREA.HMMB
A9: ui | B9: area04.tpk | C9: UI_AREA_D04.TEXB | D9: AREA.HUMB | E9: AREA.HUDB | F9: AREA.HUBB | G9: AREA.HMTB | H9: AREA.HMMB
A10: ui | B10: area05.tpk | C10: UI_AREA_D05.TEXB | D10: AREA.HUMB | E10: AREA.HUDB | F10: AREA.HUBB | G10: AREA.HMTB | H10: AREA.HMMB
A11: ui | B11: area06.tpk | C11: UI_AREA_D06.TEXB | D11: AREA.HUMB | E11: AREA.HUDB | F11: AREA.HUBB | G11: AREA.HMTB | H11: AREA.HMMB
A12: ui | B12: area07.tpk | C12: UI_AREA_D02.TEXB | D12: AREA.HUMB | E12: AREA.HUDB | F12: AREA.HUBB | G12: AREA.HMTB | H12: AREA.HMMB
A13: ui | B13: area08.tpk | C13: UI_AREA_D08.TEXB | D13: AREA.HUMB | E13: AREA.HUDB | F13: AREA.HUBB | G13: AREA.HMTB | H13: AREA.HMMB
A14: ui | B14: area09.tpk | C14: UI_AREA_D06.TEXB | D14: AREA.HUMB | E14: AREA.HUDB | F14: AREA.HUBB | G14: AREA.HMTB | H14: AREA.HMMB
A15: ui | B15: area10.tpk | C15: UI_AREA_D10.TEXB | D15: AREA.HUMB | E15: AREA.HUDB | F15: AREA.HUBB | G15: AREA.HMTB | H15: AREA.HMMB
A16: ui | B16: area11.tpk | C16: UI_AREA_T00.TEXB | D16: AREA.HUMB | E16: AREA.HUDB | F16: AREA.HUBB | G16: AREA.HMTB | H16: AREA.HMMB
A17: ui | B17: kaisyu.tpk | C17: UI_KAISYU_DATA.TEXB | D17: UI_KAISYU_MDL.HUDB | E17: UI_KAISYU_BONE.HUBB | F17: UI_KAISYU_MAT.HUMB | G17: UI_KAISYU_01.HMCB | H17: UI_KAISYU_02.HMCB | I17: UI_KAISYU_03.HMCB | J17: UI_KAISYU_01.HMMB | K17: UI_KAISYU_01.HMTB | L17: UI_KAISYU_02.HMTB | M17: UI_KAISYU_03.HMTB | N17: UI_KAISYU_03.HMMB | O17: UI_KAISYU_04.HMCB | P17: UI_KAISYU_04.HMMB | Q17: UI_KAISYU_04.HMTB | R17: UI_KAISYU_05.HMCB | S17: UI_KAISYU_05.HMMB | T17: UI_KAISYU_05.HMTB
A18: ui | B18: location01.tpk | C18: UI_LOCA_D01.TEXB | D18: LOCATION01.HUBB | E18: LOCATION01.HUMB | F18: LOCATION01.HUDB | G18: LOCATION01.HMCB | H18: LOCATION01.HMMB | I18: LOCATION01.HMMB | J18: LOCATION01.HMTB
A19: ui | B19: location02.tpk | C19: UI_LOCA_D02.TEXB | D19: LOCATION.HUBB | E19: LOCATION.HUMB | F19: LOCATION.HUDB | G19: LOCATION.HMCB | H19: LOCATION.HMMB | I19: LOCATION.HMTB
A20: ui | B20: location03.tpk | C20: UI_LOCA_D03.TEXB | D20: LOCATION.HUBB | E20: LOCATION.HUMB | F20: LOCATION.HUDB | G20: LOCATION.HMCB | H20: LOCATION.HMMB | I20: LOCATION.HMTB
A21: ui | B21: location04.tpk | C21: UI_LOCA_D04.TEXB | D21: LOCATION.HUBB | E21: LOCATION.HUMB | F21: LOCATION.HUDB | G21: LOCATION.HMCB | H21: LOCATION.HMMB | I21: LOCATION.HMTB
A22: ui | B22: location05.tpk | C22: UI_LOCA_D05.TEXB | D22: LOCATION.HUBB | E22: LOCATION.HUMB | F22: LOCATION.HUDB | G22: LOCATION.HMCB | H22: LOCATION.HMMB | I22: LOCATION.HMMB | J22: LOCATION.HMTB
A23: ui | B23: location06.tpk | C23: UI_LOCA_D06.TEXB | D23: LOCATION.HUBB | E23: LOCATION.HUMB | F23: LOCATION.HUDB | G23: LOCATION.HMCB | H23: LOCATION.HMMB | I23: LOCATION.HMTB
A24: ui | B24: location07.tpk | C24: UI_LOCA_D07.TEXB | D24: LOCATION.HUBB | E24: LOCATION.HUMB | F24: LOCATION.HUDB | G24: LOCATION.HMCB | H24: LOCATION.HMMB | I24: LOCATION.HMMB | J24: LOCATION.HMTB
A25: ui | B25: location08.tpk | C25: UI_LOCA_D08.TEXB | D25: LOCATION.HUBB | E25: LOCATION.HUMB | F25: LOCATION.HUDB | G25: LOCATION.HMCB | H25: LOCATION.HMMB | I25: LOCATION.HMMB | J25: LOCATION.HMTB
A26: ui | B26: location09.tpk | C26: UI_LOCA_D09.TEXB | D26: LOCATION.HUBB | E26: LOCATION.HUMB | F26: LOCATION.HUDB | G26: LOCATION.HMCB | H26: LOCATION.HMMB | I26: LOCATION.HMMB | J26: LOCATION.HMTB
A27: ui | B27: location10.tpk | C27: UI_LOCA_E06.TEXB | D27: LOCATION.HUBB | E27: LOCATION.HUMB | F27: LOCATION.HUDB | G27: LOCATION.HMCB | H27: LOCATION.HMMB | I27: LOCATION.HMMB | J27: LOCATION.HMTB
A28: ui | B28: location11.tpk | C28: TEX_00.TEXB | D28: HUD_MODEL_00.HUDB | E28: HUD_BONE_00.HUBB | F28: HUD_MATERIAL_00.HUMB | G28: HUD_MOT_COLOR_00.HMCB | H28: HUD_MOT_MATERIAL_00.HMMB | I28: HUD_MOT_TRS_00.HMTB
A29: ui | B29: location12.tpk | C29: TEX_00.TEXB | D29: HUD_MODEL_00.HUDB | E29: HUD_BONE_00.HUBB | F29: HUD_MATERIAL_00.HUMB | G29: HUD_MOT_COLOR_00.HMCB | H29: HUD_MOT_MATERIAL_00.HMMB | I29: HUD_MOT_TRS_00.HMTB
A30: ui | B30: location13.tpk | C30: TEX_00.TEXB | D30: HUD_MODEL_00.HUDB | E30: HUD_BONE_00.HUBB | F30: HUD_MATERIAL_00.HUMB | G30: HUD_MOT_COLOR_00.HMCB | H30: HUD_MOT_MATERIAL_00.HMMB | I30: HUD_MOT_TRS_00.HMTB
A31: ui | B31: location14.tpk | C31: TEX_00.TEXB | D31: HUD_MODEL_00.HUDB | E31: HUD_BONE_00.HUBB | F31: HUD_MATERIAL_00.HUMB | G31: HUD_MOT_COLOR_00.HMCB | H31: HUD_MOT_MATERIAL_00.HMMB | I31: HUD_MOT_TRS_00.HMTB
A32: ui | B32: location15.tpk | C32: TEX_00.TEXB | D32: HUD_MODEL_00.HUDB | E32: HUD_BONE_00.HUBB | F32: HUD_MATERIAL_00.HUMB | G32: HUD_MOT_COLOR_00.HMCB | H32: HUD_MOT_MATERIAL_00.HMMB | I32: HUD_MOT_TRS_00.HMTB
A33: ui | B33: location16.tpk | C33: TEX_00.TEXB | D33: HUD_MODEL_00.HUDB | E33: HUD_BONE_00.HUBB | F33: HUD_MATERIAL_00.HUMB | G33: HUD_MOT_COLOR_00.HMCB | H33: HUD_MOT_MATERIAL_00.HMMB | I33: HUD_MOT_TRS_00.HMTB
A34: ui | B34: menu_item.tpk | C34: UI_MENU_ITEM.TEXB | D34: MENU_ITEM_MDL.HUDB | E34: MENU_ITEM_B.HUBB | F34: MENU_ITEM_MT.HUMB | G34: UI_MEIT_01.HMCB | H34: UI_MEIT_02.HMCB | I34: UI_MEIT_04.HMCB | J34: UI_MEIT_01.HMMB | K34: UI_MEIT_02.HMMB | L34: UI_MEIT_03.HMMB | M34: UI_MEIT_01.HMTB | N34: UI_MEIT_02.HMTB | O34: UI_MEIT_03.HMTB | P34: UI_MEIT_05.HMTB | Q34: UI_MEIT_06.HMTB | R34: UI_MEIT_07.HMTB
A35: ui | B35: murakumo02.tpk | C35: UI_OF_MURA02.TEXB | D35: UI_MURA02_MDL.HUDB | E35: UI_MURA02_BONE.HUBB | F35: UI_MURA02_MAT.HUMB | G35: UI_MURA_0201.HMCB | H35: UI_MURA_0202.HMCB | I35: UI_MURA_0203.HMCB | J35: UI_MURA_0204.HMCB | K35: UI_MURA_0205.HMCB | L35: UI_MURA_0201.HMMB | M35: UI_MURA_0202.HMMB | N35: UI_MURA_0203.HMMB | O35: UI_MURA_0204.HMMB | P35: UI_MURA_0205.HMMB | Q35: UI_MURA_0201.HMTB | R35: UI_MURA_0202.HMTB | S35: UI_MURA_0203.HMTB | T35: UI_MURA_0204.HMTB
A36: ending | B36: staffroll.tpk | C36: UI_STAFF_DATA.TEXB | D36: STAFFROLL.HUDB | E36: STAFFROLL.HUBB | F36: STAFFROLL.HUMB | G36: STAFFROLL0.HMMB | H36: STAFFROLL0.HMPB | I36: STAFFROLL0.HMTB
A37: Field\LandForm\map_t_gzd_005\MAP_T_GZD_005_CAM_00 | B37: PTMS.TPK | C37: MAP_T_GZD_004.PTM
A38: Field\LandForm\map_t_gzd_100\MINIMAP | B38: PTMS.TPK | C38: MAP_T_GZD_100.PTM
A39: Field\LandForm\map_t_gzd_101\MINIMAP | B39: PTMS.TPK | C39: MAP_T_GZD_101.PTM
A40: Field\LandForm\map_t_gzd_102\MINIMAP | B40: PTMS.TPK | C40: MAP_T_GZD_102.PTM
A41: Field\LandForm\map_t_gzd_000\MINIMAP | B41: PTMS.TPK | C41: MAP_T_GZD_000.PTM
A42: Field\LandForm\map_t_gzd_001\MINIMAP | B42: PTMS.TPK | C42: MAP_T_GZD_001.PTM
A43: Field\LandForm\map_t_gzd_002\MINIMAP | B43: PTMS.TPK | C43: MAP_T_GZD_002.PTM
A44: Field\LandForm\map_t_gzd_003\MINIMAP | B44: PTMS.TPK | C44: MAP_T_GZD_003.PTM
A45: Field\LandForm\map_t_gzd_004\MINIMAP | B45: PTMS.TPK | C45: MAP_T_GZD_004.PTM
A46: Field\LandForm\map_t_gzd_005\MINIMAP | B46: PTMS.TPK | C46: MAP_T_GZD_005.PTM
A47: Field\LandForm\map_t_gzd_006\MINIMAP | B47: PTMS.TPK | C47: MAP_T_GZD_006.PTM
A48: Field\LandForm\map_t_gzd_007\MINIMAP | B48: PTMS.TPK | C48: MAP_T_GZD_007.PTM
A49: Field\LandForm\map_t_gzd_008\MINIMAP | B49: PTMS.TPK | C49: MAP_T_GZD_008.PTM
A50: Field\LandForm\map_t_gzd_009\MINIMAP | B50: PTMS.TPK | C50: MAP_T_GZD_009.PTM
A51: Field\LandForm\map_t_gzd_010\MINIMAP | B51: PTMS.TPK | C51: MAP_T_GZD_010.PTM
A52: Field\LandForm\map_t_gzd_011\MINIMAP | B52: PTMS.TPK | C52: MAP_T_GZD_011.PTM
A53: Field\LandForm\map_t_gzd_012\MINIMAP | B53: PTMS.TPK | C53: MAP_T_GZD_012.PTM
A54: Field\LandForm\map_t_gzd_013\MINIMAP | B54: PTMS.TPK | C54: MAP_T_GZD_013.PTM
A55: Field\LandForm\map_t_gzd_014\MINIMAP | B55: PTMS.TPK | C55: MAP_T_GZD_014.PTM
A56: Field\LandForm\map_t_gzd_015\MINIMAP | B56: PTMS.TPK | C56: MAP_T_GZD_015.PTM
A57: Field\LandForm\map_t_gzd_016\MINIMAP | B57: PTMS.TPK | C57: MAP_T_GZD_016.PTM
A58: Field\LandForm\map_t_gzd_017\MINIMAP | B58: PTMS.TPK | C58: MAP_T_GZD_017.PTM
A59: Field\LandForm\map_t_gzd_018\MINIMAP | B59: PTMS.TPK | C59: MAP_T_GZD_018.PTM
A60: Field\LandForm\map_t_gzd_019\MINIMAP | B60: PTMS.TPK | C60: MAP_T_GZD_019.PTM
A61: Field\LandForm\map_i_gzd_005\MINIMAP | B61: PTMS.TPK | C61: MAP_I_GZD_005.PTM
A62: Field\LandForm\map_i_gzd_006\MINIMAP | B62: PTMS.TPK | C62: MAP_I_GZD_006.PTM
A63: Field\LandForm\map_i_gzd_007\MINIMAP | B63: PTMS.TPK | C63: MAP_I_GZD_007.PTM
A64: Field\LandForm\map_i_gzd_008\MINIMAP | B64: PTMS.TPK | C64: MAP_I_GZD_008.PTM
A65: Field\LandForm\map_i_gzd_009\MINIMAP | B65: PTMS.TPK | C65: MAP_I_GZD_009.PTM
A66: Field\LandForm\map_i_gzd_010\MINIMAP | B66: PTMS.TPK | C66: MAP_I_GZD_010.PTM
A67: Field\LandForm\map_i_gzd_011\MINIMAP | B67: PTMS.TPK | C67: MAP_I_GZD_011.PTM
A68: Field\LandForm\map_i_gzd_012\MINIMAP | B68: PTMS.TPK | C68: MAP_I_GZD_012.PTM
A69: Field\LandForm\map_i_gzd_013\MINIMAP | B69: PTMS.TPK | C69: MAP_I_GZD_013.PTM
A70: Field\LandForm\map_i_gzd_014\MINIMAP | B70: PTMS.TPK | C70: MAP_I_GZD_014.PTM
A71: Field\LandForm\map_i_gzd_015\MINIMAP | B71: PTMS.TPK | C71: MAP_I_GZD_015.PTM
A72: Field\LandForm\map_i_gzd_016\MINIMAP | B72: PTMS.TPK | C72: MAP_I_GZD_016.PTM
A73: Field\LandForm\map_i_gzd_017\MINIMAP | B73: PTMS.TPK | C73: MAP_I_GZD_017.PTM
A74: Field\LandForm\map_i_gzd_018\MINIMAP | B74: PTMS.TPK | C74: MAP_I_GZD_018.PTM
A75: Field\LandForm\map_i_gzd_019\MINIMAP | B75: PTMS.TPK | C75: MAP_I_GZD_019.PTM
A76: Field\LandForm\map_i_gzd_020\MINIMAP | B76: PTMS.TPK | C76: MAP_I_GZD_020.PTM
A77: Field\LandForm\map_i_gzd_003\MINIMAP | B77: PTMS.TPK | C77: MAP_I_GZD_003.PTM
A78: Field\LandForm\map_i_gzd_001\MINIMAP | B78: PTMS.TPK | C78: MAP_I_GZD_001.PTM
A79: Field\LandForm\map_i_gzd_000\MINIMAP | B79: PTMS.TPK | C79: MAP_I_GZD_000.PTM
A80: Field\LandForm\map_d_urd_000\MINIMAP | B80: PTMS.TPK | C80: MAP_T_GZD_102.PTM
A81: Field\LandForm\map_d_urd_001\MINIMAP | B81: PTMS.TPK | C81: MAP_T_GZD_001.PTM
A82: Field\LandForm\map_t_gzd_100 | B82: MINIMAP.TPK | C82: PTMS.TPK | D82: PARAM.BIN
A83: Field\LandForm\map_t_gzd_101 | B83: MINIMAP.TPK | C83: PTMS.TPK | D83: PARAM.BIN
A84: Field\LandForm\map_t_gzd_102 | B84: MINIMAP.TPK | C84: PTMS.TPK | D84: PARAM.BIN
A85: Field\LandForm\map_t_gzd_000 | B85: MINIMAP.TPK | C85: PTMS.TPK | D85: PARAM.BIN
A86: Field\LandForm\map_t_gzd_001 | B86: MINIMAP.TPK | C86: PTMS.TPK | D86: PARAM.BIN
A87: Field\LandForm\map_t_gzd_002 | B87: MINIMAP.TPK | C87: PTMS.TPK | D87: PARAM.BIN
A88: Field\LandForm\map_t_gzd_003 | B88: MINIMAP.TPK | C88: PTMS.TPK | D88: PARAM.BIN
A89: Field\LandForm\map_t_gzd_004 | B89: MINIMAP.TPK | C89: PTMS.TPK | D89: PARAM.BIN
A90: Field\LandForm\map_t_gzd_005 | B90: MINIMAP.TPK | C90: PTMS.TPK | D90: PARAM.BIN
A91: Field\LandForm\map_t_gzd_006 | B91: MINIMAP.TPK | C91: PTMS.TPK | D91: PARAM.BIN
A92: Field\LandForm\map_t_gzd_007 | B92: MINIMAP.TPK | C92: PTMS.TPK | D92: PARAM.BIN
A93: Field\LandForm\map_t_gzd_008 | B93: MINIMAP.TPK | C93: PTMS.TPK | D93: PARAM.BIN
A94: Field\LandForm\map_t_gzd_009 | B94: MINIMAP.TPK | C94: PTMS.TPK | D94: PARAM.BIN
A95: Field\LandForm\map_t_gzd_010 | B95: MINIMAP.TPK | C95: PTMS.TPK | D95: PARAM.BIN
A96: Field\LandForm\map_t_gzd_011 | B96: MINIMAP.TPK | C96: PTMS.TPK | D96: PARAM.BIN
A97: Field\LandForm\map_t_gzd_012 | B97: MINIMAP.TPK | C97: PTMS.TPK | D97: PARAM.BIN
A98: Field\LandForm\map_t_gzd_013 | B98: MINIMAP.TPK | C98: PTMS.TPK | D98: PARAM.BIN
A99: Field\LandForm\map_t_gzd_014 | B99: MINIMAP.TPK | C99: PTMS.TPK | D99: PARAM.BIN
A100: Field\LandForm\map_t_gzd_015 | B100: MINIMAP.TPK | C100: PTMS.TPK | D100: PARAM.BIN
A101: Field\LandForm\map_t_gzd_016 | B101: MINIMAP.TPK | C101: PTMS.TPK | D101: PARAM.BIN
A102: Field\LandForm\map_t_gzd_017 | B102: MINIMAP.TPK | C102: PTMS.TPK | D102: PARAM.BIN
A103: Field\LandForm\map_t_gzd_018 | B103: MINIMAP.TPK | C103: PTMS.TPK | D103: PARAM.BIN
A104: Field\LandForm\map_t_gzd_019 | B104: MINIMAP.TPK | C104: PTMS.TPK | D104: PARAM.BIN
A105: Field\LandForm\map_i_gzd_005 | B105: MINIMAP.TPK | C105: PTMS.TPK | D105: PARAM.BIN
A106: Field\LandForm\map_i_gzd_006 | B106: MINIMAP.TPK | C106: PTMS.TPK | D106: PARAM.BIN
A107: Field\LandForm\map_i_gzd_007 | B107: MINIMAP.TPK | C107: PTMS.TPK | D107: PARAM.BIN
A108: Field\LandForm\map_i_gzd_008 | B108: MINIMAP.TPK | C108: PTMS.TPK | D108: PARAM.BIN
A109: Field\LandForm\map_i_gzd_009 | B109: MINIMAP.TPK | C109: PTMS.TPK | D109: PARAM.BIN
A110: Field\LandForm\map_i_gzd_010 | B110: MINIMAP.TPK | C110: PTMS.TPK | D110: PARAM.BIN
A111: Field\LandForm\map_i_gzd_011 | B111: MINIMAP.TPK | C111: PTMS.TPK | D111: PARAM.BIN
A112: Field\LandForm\map_i_gzd_012 | B112: MINIMAP.TPK | C112: PTMS.TPK | D112: PARAM.BIN
A113: Field\LandForm\map_i_gzd_013 | B113: MINIMAP.TPK | C113: PTMS.TPK | D113: PARAM.BIN
A114: Field\LandForm\map_i_gzd_014 | B114: MINIMAP.TPK | C114: PTMS.TPK | D114: PARAM.BIN
A115: Field\LandForm\map_i_gzd_015 | B115: MINIMAP.TPK | C115: PTMS.TPK | D115: PARAM.BIN
A116: Field\LandForm\map_i_gzd_016 | B116: MINIMAP.TPK | C116: PTMS.TPK | D116: PARAM.BIN
A117: Field\LandForm\map_i_gzd_017 | B117: MINIMAP.TPK | C117: PTMS.TPK | D117: PARAM.BIN
A118: Field\LandForm\map_i_gzd_018 | B118: MINIMAP.TPK | C118: PTMS.TPK | D118: PARAM.BIN
A119: Field\LandForm\map_i_gzd_019 | B119: MINIMAP.TPK | C119: PTMS.TPK | D119: PARAM.BIN
A120: Field\LandForm\map_i_gzd_020 | B120: MINIMAP.TPK | C120: PTMS.TPK | D120: PARAM.BIN
A121: Field\LandForm\map_i_gzd_003 | B121: MINIMAP.TPK | C121: PTMS.TPK | D121: PARAM.BIN
A122: Field\LandForm\map_i_gzd_001 | B122: MINIMAP.TPK | C122: PTMS.TPK | D122: PARAM.BIN
A123: Field\LandForm\map_i_gzd_000 | B123: MINIMAP.TPK | C123: PTMS.TPK | D123: PARAM.BIN
A124: Field\LandForm\map_d_urd_000 | B124: MINIMAP.TPK | C124: PTMS.TPK | D124: PARAM.BIN
A125: Field\LandForm\map_d_urd_001 | B125: MINIMAP.TPK | C125: PTMS.TPK | D125: PARAM.BIN
A126: Field\LandForm | B126: map_t_gzd_100.tpk | C126: MAP_T_GZD_100.SM | D126: MAP_T_GZD_100_BG.SM | E126: DUMMY | F126: MAP_T_GZD_100_COL.CLIS | G126: MAP_T_GZD_100_CAM_00.TPK | H126: MAP_T_GZD_100_CAM_01.TPK | I126: DUMMY | J126: DUMMY | K126: DUMMY | L126: SCRIPT.LUB | M126: DUMMY | N126: MAP_T_GZD_100_FW.SM | O126: DUMMY | P126: DUMMY | Q126: DUMMY | R126: DUMMY | S126: DUMMY | T126: DUMMY | U126: DUMMY | V126: DUMMY | W126: MINIMAP.TPK
A127: Field\LandForm | B127: map_t_gzd_101.tpk | C127: MAP_T_GZD_101.SM | D127: MAP_T_GZD_101_BG.SM | E127: DUMMY | F127: MAP_T_GZD_101_COL.CLIS | G127: MAP_T_GZD_100_CAM_00.TPK | H127: MAP_T_GZD_100_CAM_01.TPK | I127: DUMMY | J127: DUMMY | K127: DUMMY | L127: SCRIPT.LUB | M127: DUMMY | N127: DUMMY | O127: DUMMY | P127: DUMMY | Q127: DUMMY | R127: DUMMY | S127: DUMMY | T127: DUMMY | U127: DUMMY | V127: DUMMY | W127: MINIMAP.TPK
A128: Field\LandForm | B128: map_t_gzd_102.tpk | C128: MAP_T_GZD_100.SM | D128: MAP_T_GZD_100_BG.SM | E128: DUMMY | F128: MAP_T_GZD_100_COL.CLIS | G128: MAP_T_GZD_100_CAM_00.TPK | H128: MAP_T_GZD_100_CAM_01.TPK | I128: DUMMY | J128: DUMMY | K128: DUMMY | L128: SCRIPT.LUB | M128: DUMMY | N128: MAP_T_GZD_102_FW.SM | O128: WALL_FW.SM | P128: DUMMY | Q128: DUMMY | R128: DUMMY | S128: DUMMY | T128: DUMMY | U128: DUMMY | V128: DUMMY | W128: MINIMAP.TPK
A129: Field\LandForm | B129: map_t_gzd_000.tpk | C129: MAP_T_GZD_000.SM | D129: DUMMY | E129: MAP_T_GZD_000_ADD.SM | F129: MAP_T_GZD_000_COL.CLIS | G129: DUMMY | H129: DUMMY | I129: DUMMY | J129: DUMMY | K129: DUMMY | L129: SCRIPT.LUB | M129: DUMMY | N129: DUMMY | O129: DUMMY | P129: MAP_T_GZD_000_DOOR_L.SM | Q129: MAP_T_GZD_000_DOOR_R.SM | R129: DUMMY | S129: DUMMY | T129: DUMMY | U129: DUMMY | V129: DUMMY | W129: MINIMAP.TPK
A130: Field\LandForm | B130: map_t_gzd_001.tpk | C130: MAP_T_GZD_000.SM | D130: DUMMY | E130: MAP_T_GZD_000_ADD.SM | F130: MAP_T_GZD_000_COL.CLIS | G130: DUMMY | H130: DUMMY | I130: DUMMY | J130: DUMMY | K130: DUMMY | L130: SCRIPT.LUB | M130: DUMMY | N130: MAP_T_GZD_001_FW.SM | O130: DUMMY | P130: MAP_T_GZD_001_DOOR_L.SM | Q130: MAP_T_GZD_001_DOOR_R.SM | R130: DUMMY | S130: DUMMY | T130: DUMMY | U130: DUMMY | V130: DUMMY | W130: MINIMAP.TPK
A131: Field\LandForm | B131: map_t_gzd_002.tpk | C131: MAP_T_GZD_002.SM | D131: DUMMY | E131: DUMMY | F131: MAP_T_GZD_002_COL.CLIS | G131: DUMMY | H131: DUMMY | I131: DUMMY | J131: DUMMY | K131: DUMMY | L131: SCRIPT.LUB | M131: MAP_T_GZD_002_SCREEN.SM | N131: DUMMY | O131: DUMMY | P131: MAP_T_GZD_002_WALL.SM | Q131: DUMMY | R131: DUMMY | S131: DUMMY | T131: DUMMY | U131: DUMMY | V131: DUMMY | W131: MINIMAP.TPK
A132: Field\LandForm | B132: map_t_gzd_003.tpk | C132: MAP_T_GZD_003.SM | D132: DUMMY | E132: DUMMY | F132: MAP_T_GZD_003_COL.CLIS | G132: DUMMY | H132: DUMMY | I132: DUMMY | J132: DUMMY | K132: DUMMY | L132: SCRIPT.LUB | M132: DUMMY | N132: DUMMY | O132: DUMMY | P132: MAP_T_GZD_003_WALL.SM | Q132: DUMMY | R132: DUMMY | S132: DUMMY | T132: DUMMY | U132: DUMMY | V132: DUMMY | W132: MINIMAP.TPK
A133: Field\LandForm | B133: map_t_gzd_004.tpk | C133: MAP_T_GZD_004.SM | D133: DUMMY | E133: MAP_T_GZD_004_ADD.SM | F133: MAP_T_GZD_004_COL.CLIS | G133: DUMMY | H133: DUMMY | I133: DUMMY | J133: DUMMY | K133: DUMMY | L133: SCRIPT.LUB | M133: DUMMY | N133: DUMMY | O133: DUMMY | P133: DUMMY | Q133: DUMMY | R133: DUMMY | S133: DUMMY | T133: DUMMY | U133: DUMMY | V133: DUMMY | W133: MINIMAP.TPK
A134: Field\LandForm | B134: map_t_gzd_005.tpk | C134: MAP_T_GZD_005.SM | D134: DUMMY | E134: MAP_T_GZD_005_ADD.SM | F134: MAP_T_GZD_005_COL.CLIS | G134: MAP_T_GZD_005_CAM_00.TPK | H134: DUMMY | I134: DUMMY | J134: DUMMY | K134: DUMMY | L134: SCRIPT.LUB | M134: DUMMY | N134: DUMMY | O134: DUMMY | P134: DUMMY | Q134: DUMMY | R134: DUMMY | S134: DUMMY | T134: DUMMY | U134: DUMMY | V134: DUMMY | W134: MINIMAP.TPK
A135: Field\LandForm | B135: map_t_gzd_006.tpk | C135: MAP_T_GZD_006.SM | D135: DUMMY | E135: DUMMY | F135: MAP_T_GZD_006_COL.CLIS | G135: DUMMY | H135: DUMMY | I135: DUMMY | J135: DUMMY | K135: DUMMY | L135: SCRIPT.LUB | M135: DUMMY | N135: DUMMY | O135: DUMMY | P135: DUMMY | Q135: DUMMY | R135: DUMMY | S135: DUMMY | T135: DUMMY | U135: DUMMY | V135: DUMMY | W135: MINIMAP.TPK
A136: Field\LandForm | B136: map_t_gzd_007.tpk | C136: MAP_T_GZD_007.SM | D136: DUMMY | E136: MAP_T_GZD_007_ADD.SM | F136: MAP_T_GZD_007_COL.CLIS | G136: DUMMY | H136: DUMMY | I136: DUMMY | J136: DUMMY | K136: DUMMY | L136: SCRIPT.LUB | M136: DUMMY | N136: DUMMY | O136: DUMMY | P136: DUMMY | Q136: DUMMY | R136: DUMMY | S136: DUMMY | T136: DUMMY | U136: DUMMY | V136: DUMMY | W136: MINIMAP.TPK
A137: Field\LandForm | B137: map_t_gzd_008.tpk | C137: MAP_T_GZD_008.SM | D137: DUMMY | E137: MAP_T_GZD_008_ADD.SM | F137: MAP_T_GZD_008_COL.CLIS | G137: DUMMY | H137: DUMMY | I137: DUMMY | J137: DUMMY | K137: DUMMY | L137: SCRIPT.LUB | M137: DUMMY | N137: DUMMY | O137: DUMMY | P137: DUMMY | Q137: DUMMY | R137: DUMMY | S137: DUMMY | T137: DUMMY | U137: DUMMY | V137: DUMMY | W137: MINIMAP.TPK
A138: Field\LandForm | B138: map_t_gzd_009.tpk | C138: MAP_T_GZD_009.SM | D138: DUMMY | E138: MAP_T_GZD_009_ADD.SM | F138: MAP_T_GZD_009_COL.CLIS | G138: DUMMY | H138: DUMMY | I138: DUMMY | J138: DUMMY | K138: DUMMY | L138: SCRIPT.LUB | M138: DUMMY | N138: DUMMY | O138: DUMMY | P138: MAP_T_GZD_009_DOOR_L.SM | Q138: MAP_T_GZD_009_DOOR_R.SM | R138: DUMMY | S138: DUMMY | T138: DUMMY | U138: DUMMY | V138: DUMMY | W138: MINIMAP.TPK
A139: Field\LandForm | B139: map_t_gzd_010.tpk | C139: MAP_T_GZD_010.SM | D139: DUMMY | E139: MAP_T_GZD_010_ADD.SM | F139: MAP_T_GZD_010_COL.CLIS | G139: DUMMY | H139: DUMMY | I139: DUMMY | J139: DUMMY | K139: DUMMY | L139: SCRIPT.LUB | M139: DUMMY | N139: DUMMY | O139: DUMMY | P139: DUMMY | Q139: DUMMY | R139: DUMMY | S139: DUMMY | T139: DUMMY | U139: DUMMY | V139: DUMMY | W139: MINIMAP.TPK
A140: Field\LandForm | B140: map_t_gzd_011.tpk | C140: MAP_T_GZD_011.SM | D140: DUMMY | E140: MAP_T_GZD_011_ADD.SM | F140: MAP_T_GZD_011_COL.CLIS | G140: DUMMY | H140: DUMMY | I140: DUMMY | J140: DUMMY | K140: DUMMY | L140: SCRIPT.LUB | M140: DUMMY | N140: DUMMY | O140: DUMMY | P140: DUMMY | Q140: DUMMY | R140: DUMMY | S140: DUMMY | T140: DUMMY | U140: DUMMY | V140: DUMMY | W140: MINIMAP.TPK
A141: Field\LandForm | B141: map_t_gzd_012.tpk | C141: MAP_T_GZD_012.SM | D141: DUMMY | E141: MAP_T_GZD_012_ADD.SM | F141: MAP_T_GZD_012_COL.CLIS | G141: DUMMY | H141: DUMMY | I141: DUMMY | J141: DUMMY | K141: DUMMY | L141: SCRIPT.LUB | M141: DUMMY | N141: DUMMY | O141: DUMMY | P141: DUMMY | Q141: DUMMY | R141: DUMMY | S141: DUMMY | T141: DUMMY | U141: DUMMY | V141: DUMMY | W141: MINIMAP.TPK
A142: Field\LandForm | B142: map_t_gzd_013.tpk | C142: MAP_T_GZD_013.SM | D142: DUMMY | E142: MAP_T_GZD_013_ADD.SM | F142: MAP_T_GZD_013_COL.CLIS | G142: DUMMY | H142: DUMMY | I142: DUMMY | J142: DUMMY | K142: DUMMY | L142: SCRIPT.LUB | M142: DUMMY | N142: DUMMY | O142: DUMMY | P142: DUMMY | Q142: DUMMY | R142: DUMMY | S142: DUMMY | T142: DUMMY | U142: DUMMY | V142: DUMMY | W142: MINIMAP.TPK
A143: Field\LandForm | B143: map_t_gzd_014.tpk | C143: MAP_T_GZD_014.SM | D143: DUMMY | E143: MAP_T_GZD_014_ADD.SM | F143: MAP_T_GZD_014_COL.CLIS | G143: DUMMY | H143: DUMMY | I143: DUMMY | J143: DUMMY | K143: DUMMY | L143: SCRIPT.LUB | M143: DUMMY | N143: DUMMY | O143: DUMMY | P143: DUMMY | Q143: DUMMY | R143: DUMMY | S143: DUMMY | T143: DUMMY | U143: DUMMY | V143: DUMMY | W143: MINIMAP.TPK
A144: Field\LandForm | B144: map_t_gzd_015.tpk | C144: MAP_T_GZD_015.SM | D144: DUMMY | E144: MAP_T_GZD_015_ADD.SM | F144: MAP_T_GZD_015_COL.CLIS | G144: DUMMY | H144: DUMMY | I144: DUMMY | J144: DUMMY | K144: DUMMY | L144: SCRIPT.LUB | M144: DUMMY | N144: DUMMY | O144: DUMMY | P144: DUMMY | Q144: DUMMY | R144: DUMMY | S144: DUMMY | T144: DUMMY | U144: DUMMY | V144: DUMMY | W144: MINIMAP.TPK
A145: Field\LandForm | B145: map_t_gzd_016.tpk | C145: MAP_T_GZD_016.SM | D145: DUMMY | E145: MAP_T_GZD_016_ADD.SM | F145: MAP_T_GZD_016_COL.CLIS | G145: DUMMY | H145: DUMMY | I145: DUMMY | J145: DUMMY | K145: DUMMY | L145: SCRIPT.LUB | M145: DUMMY | N145: DUMMY | O145: DUMMY | P145: MAP_T_GZD_016_DOOR_L.SM | Q145: MAP_T_GZD_016_DOOR_R.SM | R145: DUMMY | S145: DUMMY | T145: DUMMY | U145: DUMMY | V145: DUMMY | W145: MINIMAP.TPK
A146: Field\LandForm | B146: map_t_gzd_017.tpk | C146: MAP_T_GZD_017.SM | D146: DUMMY | E146: MAP_T_GZD_017_ADD.SM | F146: MAP_T_GZD_017_COL.CLIS | G146: DUMMY | H146: DUMMY | I146: DUMMY | J146: DUMMY | K146: DUMMY | L146: SCRIPT.LUB | M146: DUMMY | N146: DUMMY | O146: DUMMY | P146: MAP_T_GZD_017_DOOR_L.SM | Q146: MAP_T_GZD_017_DOOR_R.SM | R146: DUMMY | S146: DUMMY | T146: DUMMY | U146: DUMMY | V146: DUMMY | W146: MINIMAP.TPK
A147: Field\LandForm | B147: map_t_gzd_018.tpk | C147: MAP_T_GZD_018.SM | D147: DUMMY | E147: MAP_T_GZD_018_ADD.SM | F147: MAP_T_GZD_018_COL.CLIS | G147: DUMMY | H147: DUMMY | I147: DUMMY | J147: DUMMY | K147: DUMMY | L147: SCRIPT.LUB | M147: DUMMY | N147: DUMMY | O147: DUMMY | P147: MAP_T_GZD_018_DOOR_L.SM | Q147: MAP_T_GZD_018_DOOR_R.SM | R147: DUMMY | S147: DUMMY | T147: DUMMY | U147: DUMMY | V147: DUMMY | W147: MINIMAP.TPK
A148: Field\LandForm | B148: map_t_gzd_019.tpk | C148: MAP_T_GZD_019.SM | D148: DUMMY | E148: DUMMY | F148: MAP_T_GZD_019_COL.CLIS | G148: DUMMY | H148: DUMMY | I148: DUMMY | J148: DUMMY | K148: DUMMY | L148: SCRIPT.LUB | M148: DUMMY | N148: DUMMY | O148: DUMMY | P148: MAP_T_GZD_019_DOOR_L.SM | Q148: MAP_T_GZD_019_DOOR_R.SM | R148: DUMMY | S148: DUMMY | T148: DUMMY | U148: DUMMY | V148: DUMMY | W148: MINIMAP.TPK
A149: Field\LandForm | B149: map_i_gzd_005.tpk | C149: MAP_I_GZD_005.SM | D149: DUMMY | E149: MAP_I_GZD_005_ADD.SM | F149: MAP_I_GZD_005_COL.CLIS | G149: DUMMY | H149: DUMMY | I149: DUMMY | J149: DUMMY | K149: DUMMY | L149: SCRIPT.LUB | M149: DUMMY | N149: DUMMY | O149: DUMMY | P149: MAP_I_GZD_005_WALL.SM | Q149: DUMMY | R149: DUMMY | S149: DUMMY | T149: DUMMY | U149: DUMMY | V149: DUMMY | W149: MINIMAP.TPK
A150: Field\LandForm | B150: map_i_gzd_006.tpk | C150: MAP_I_GZD_006.SM | D150: DUMMY | E150: MAP_I_GZD_006_ADD.SM | F150: MAP_I_GZD_006_COL.CLIS | G150: DUMMY | H150: DUMMY | I150: DUMMY | J150: DUMMY | K150: DUMMY | L150: SCRIPT.LUB | M150: DUMMY | N150: DUMMY | O150: DUMMY | P150: MAP_I_GZD_006_WALL.SM | Q150: DUMMY | R150: DUMMY | S150: DUMMY | T150: DUMMY | U150: DUMMY | V150: DUMMY | W150: MINIMAP.TPK
A151: Field\LandForm | B151: map_i_gzd_007.tpk | C151: MAP_I_GZD_007.SM | D151: DUMMY | E151: DUMMY | F151: MAP_I_GZD_007_COL.CLIS | G151: DUMMY | H151: DUMMY | I151: DUMMY | J151: DUMMY | K151: DUMMY | L151: SCRIPT.LUB | M151: DUMMY | N151: DUMMY | O151: DUMMY | P151: DUMMY | Q151: DUMMY | R151: DUMMY | S151: DUMMY | T151: DUMMY | U151: DUMMY | V151: DUMMY | W151: MINIMAP.TPK
A152: Field\LandForm | B152: map_i_gzd_008.tpk | C152: MAP_I_GZD_008.SM | D152: DUMMY | E152: DUMMY | F152: MAP_I_GZD_008_COL.CLIS | G152: DUMMY | H152: DUMMY | I152: DUMMY | J152: DUMMY | K152: DUMMY | L152: SCRIPT.LUB | M152: DUMMY | N152: DUMMY | O152: DUMMY | P152: DUMMY | Q152: DUMMY | R152: DUMMY | S152: DUMMY | T152: DUMMY | U152: DUMMY | V152: DUMMY | W152: MINIMAP.TPK
A153: Field\LandForm | B153: map_i_gzd_009.tpk | C153: MAP_I_GZD_009.SM | D153: DUMMY | E153: DUMMY | F153: MAP_I_GZD_009_COL.CLIS | G153: DUMMY | H153: DUMMY | I153: DUMMY | J153: DUMMY | K153: DUMMY | L153: SCRIPT.LUB | M153: DUMMY | N153: DUMMY | O153: DUMMY | P153: DUMMY | Q153: DUMMY | R153: DUMMY | S153: DUMMY | T153: DUMMY | U153: DUMMY | V153: DUMMY | W153: MINIMAP.TPK
A154: Field\LandForm | B154: map_i_gzd_010.tpk | C154: MAP_I_GZD_010.SM | D154: DUMMY | E154: DUMMY | F154: MAP_I_GZD_010_COL.CLIS | G154: DUMMY | H154: DUMMY | I154: DUMMY | J154: DUMMY | K154: DUMMY | L154: SCRIPT.LUB | M154: DUMMY | N154: DUMMY | O154: DUMMY | P154: DUMMY | Q154: DUMMY | R154: DUMMY | S154: DUMMY | T154: DUMMY | U154: DUMMY | V154: DUMMY | W154: MINIMAP.TPK
A155: Field\LandForm | B155: map_i_gzd_011.tpk | C155: MAP_I_GZD_011.SM | D155: DUMMY | E155: DUMMY | F155: MAP_I_GZD_011_COL.CLIS | G155: DUMMY | H155: DUMMY | I155: DUMMY | J155: DUMMY | K155: DUMMY | L155: SCRIPT.LUB | M155: DUMMY | N155: DUMMY | O155: DUMMY | P155: DUMMY | Q155: DUMMY | R155: DUMMY | S155: DUMMY | T155: DUMMY | U155: DUMMY | V155: DUMMY | W155: MINIMAP.TPK
A156: Field\LandForm | B156: map_i_gzd_012.tpk | C156: MAP_I_GZD_012.SM | D156: DUMMY | E156: DUMMY | F156: MAP_I_GZD_012_COL.CLIS | G156: DUMMY | H156: DUMMY | I156: DUMMY | J156: DUMMY | K156: DUMMY | L156: SCRIPT.LUB | M156: DUMMY | N156: DUMMY | O156: DUMMY | P156: DUMMY | Q156: DUMMY | R156: DUMMY | S156: DUMMY | T156: DUMMY | U156: DUMMY | V156: DUMMY | W156: MINIMAP.TPK
A157: Field\LandForm | B157: map_i_gzd_013.tpk | C157: MAP_I_GZD_013.SM | D157: DUMMY | E157: DUMMY | F157: MAP_I_GZD_013_COL.CLIS | G157: DUMMY | H157: DUMMY | I157: DUMMY | J157: DUMMY | K157: DUMMY | L157: SCRIPT.LUB | M157: DUMMY | N157: DUMMY | O157: DUMMY | P157: DUMMY | Q157: DUMMY | R157: DUMMY | S157: DUMMY | T157: DUMMY | U157: DUMMY | V157: DUMMY | W157: MINIMAP.TPK
A158: Field\LandForm | B158: map_i_gzd_014.tpk | C158: MAP_I_GZD_014.SM | D158: DUMMY | E158: DUMMY | F158: MAP_I_GZD_014_COL.CLIS | G158: DUMMY | H158: DUMMY | I158: DUMMY | J158: DUMMY | K158: DUMMY | L158: SCRIPT.LUB | M158: DUMMY | N158: DUMMY | O158: DUMMY | P158: DUMMY | Q158: DUMMY | R158: DUMMY | S158: DUMMY | T158: DUMMY | U158: DUMMY | V158: DUMMY | W158: MINIMAP.TPK
A159: Field\LandForm | B159: map_i_gzd_015.tpk | C159: MAP_I_GZD_015.SM | D159: DUMMY | E159: DUMMY | F159: MAP_I_GZD_015_COL.CLIS | G159: DUMMY | H159: DUMMY | I159: DUMMY | J159: DUMMY | K159: DUMMY | L159: SCRIPT.LUB | M159: DUMMY | N159: DUMMY | O159: DUMMY | P159: DUMMY | Q159: DUMMY | R159: DUMMY | S159: DUMMY | T159: DUMMY | U159: DUMMY | V159: DUMMY | W159: MINIMAP.TPK
A160: Field\LandForm | B160: map_i_gzd_016.tpk | C160: MAP_I_GZD_016.SM | D160: DUMMY | E160: DUMMY | F160: MAP_I_GZD_016_COL.CLIS | G160: DUMMY | H160: DUMMY | I160: DUMMY | J160: DUMMY | K160: DUMMY | L160: SCRIPT.LUB | M160: DUMMY | N160: DUMMY | O160: DUMMY | P160: DUMMY | Q160: DUMMY | R160: DUMMY | S160: DUMMY | T160: DUMMY | U160: DUMMY | V160: DUMMY | W160: MINIMAP.TPK
A161: Field\LandForm | B161: map_i_gzd_017.tpk | C161: MAP_I_GZD_017.SM | D161: DUMMY | E161: DUMMY | F161: MAP_I_GZD_017_COL.CLIS | G161: DUMMY | H161: DUMMY | I161: DUMMY | J161: DUMMY | K161: DUMMY | L161: SCRIPT.LUB | M161: DUMMY | N161: DUMMY | O161: DUMMY | P161: DUMMY | Q161: DUMMY | R161: DUMMY | S161: DUMMY | T161: DUMMY | U161: DUMMY | V161: DUMMY | W161: MINIMAP.TPK
A162: Field\LandForm | B162: map_i_gzd_018.tpk | C162: MAP_I_GZD_018.SM | D162: DUMMY | E162: MAP_I_GZD_018_KEMURI.SM | F162: MAP_I_GZD_018_COL.CLIS | G162: DUMMY | H162: DUMMY | I162: DUMMY | J162: DUMMY | K162: DUMMY | L162: SCRIPT.LUB | M162: DUMMY | N162: DUMMY | O162: DUMMY | P162: DUMMY | Q162: DUMMY | R162: DUMMY | S162: DUMMY | T162: DUMMY | U162: DUMMY | V162: DUMMY | W162: MINIMAP.TPK
A163: Field\LandForm | B163: map_i_gzd_019.tpk | C163: MAP_I_GZD_019.SM | D163: DUMMY | E163: MAP_I_GZD_019_ADD.SM | F163: MAP_I_GZD_019_COL.CLIS | G163: DUMMY | H163: DUMMY | I163: DUMMY | J163: DUMMY | K163: DUMMY | L163: SCRIPT.LUB | M163: DUMMY | N163: DUMMY | O163: DUMMY | P163: DUMMY | Q163: DUMMY | R163: DUMMY | S163: DUMMY | T163: DUMMY | U163: DUMMY | V163: DUMMY | W163: MINIMAP.TPK
A164: Field\LandForm | B164: map_i_gzd_020.tpk | C164: MAP_I_GZD_020.SM | D164: DUMMY | E164: DUMMY | F164: MAP_I_GZD_020_COL.CLIS | G164: DUMMY | H164: DUMMY | I164: DUMMY | J164: DUMMY | K164: DUMMY | L164: SCRIPT.LUB | M164: CAPSULE.SM | N164: FEMALE.SM | O164: MALE.SM | P164: MAP_I_GZD_020_WALL.SM | Q164: DUMMY | R164: GLASS.SM | S164: RUSHE.SM | T164: DUMMY | U164: DUMMY | V164: DUMMY | W164: MINIMAP.TPK
A165: Field\LandForm | B165: map_i_gzd_003.tpk | C165: MAP_I_GZD_003.SM | D165: DUMMY | E165: DUMMY | F165: MAP_I_GZD_003_COL.CLIS | G165: DUMMY | H165: DUMMY | I165: DUMMY | J165: DUMMY | K165: DUMMY | L165: SCRIPT.LUB | M165: DUMMY | N165: DUMMY | O165: DUMMY | P165: DUMMY | Q165: DUMMY | R165: DUMMY | S165: DUMMY | T165: DUMMY | U165: DUMMY | V165: DUMMY | W165: MINIMAP.TPK
A166: Field\LandForm | B166: map_i_gzd_001.tpk | C166: MAP_I_GZD_001.SM | D166: DUMMY | E166: MAP_I_GZD_001_ADD.SM | F166: MAP_I_GZD_001_COL.CLIS | G166: DUMMY | H166: DUMMY | I166: DUMMY | J166: DUMMY | K166: DUMMY | L166: SCRIPT.LUB | M166: DUMMY | N166: DUMMY | O166: DUMMY | P166: DUMMY | Q166: DUMMY | R166: DUMMY | S166: DUMMY | T166: DUMMY | U166: DUMMY | V166: DUMMY | W166: MINIMAP.TPK
A167: Field\LandForm | B167: map_i_gzd_000.tpk | C167: MAP_I_GZD_000.SM | D167: DUMMY | E167: MAP_I_GZD_000_ADD.SM | F167: MAP_I_GZD_000_COL.CLIS | G167: DUMMY | H167: DUMMY | I167: DUMMY | J167: DUMMY | K167: DUMMY | L167: SCRIPT.LUB | M167: DUMMY | N167: DUMMY | O167: DUMMY | P167: DUMMY | Q167: DUMMY | R167: DUMMY | S167: DUMMY | T167: DUMMY | U167: DUMMY | V167: DUMMY | W167: MINIMAP.TPK
A168: Field\LandForm | B168: map_d_urd_000.tpk | C168: MAP_T_GZD_100.SM | D168: MAP_T_GZD_100_BG.SM | E168: DUMMY | F168: MAP_T_GZD_100_COL.CLIS | G168: MAP_T_GZD_100_CAM_00.TPK | H168: MAP_T_GZD_100_CAM_01.TPK | I168: DUMMY | J168: DUMMY | K168: DUMMY | L168: SCRIPT.LUB | M168: DUMMY | N168: MAP_T_GZD_102_FW.SM | O168: WALL_FW.SM | P168: DUMMY | Q168: DUMMY | R168: DUMMY | S168: DUMMY | T168: DUMMY | U168: DUMMY | V168: DUMMY | W168: MINIMAP.TPK
A169: Field\LandForm | B169: map_d_urd_001.tpk | C169: MAP_T_GZD_000.SM | D169: DUMMY | E169: MAP_T_GZD_000_ADD.SM | F169: MAP_T_GZD_000_COL.CLIS | G169: DUMMY | H169: DUMMY | I169: DUMMY | J169: DUMMY | K169: DUMMY | L169: SCRIPT.LUB | M169: DUMMY | N169: MAP_T_GZD_001_FW.SM | O169: DUMMY | P169: MAP_T_GZD_001_DOOR_L.SM | Q169: MAP_T_GZD_001_DOOR_R.SM | R169: DUMMY | S169: DUMMY | T169: DUMMY | U169: DUMMY | V169: DUMMY | W169: MINIMAP.TPK
A170: ui\spAreaTitle | B170: event_title_01.tpk | C170: UI_EVENT_TITLE_01.TEXB | D170: UI_EVENT_TITLE_01.HUBB | E170: UI_EVENT_TITLE_01.HUDB | F170: UI_EVENT_TITLE_01.HUMB | G170: UI_EVENT_TITLE_01_IN.HMCB | H170: UI_EVENT_TITLE_01_OUT.HMMB
A171: ui\spAreaTitle | B171: event_title_02.tpk | C171: UI_EVENT_TITLE_01.TEXB | D171: UI_EVENT_TITLE_02.HUBB | E171: UI_EVENT_TITLE_02.HUDB | F171: UI_EVENT_TITLE_02.HUMB | G171: UI_EVENT_TITLE_02_IN.HMCB | H171: UI_EVENT_TITLE_02_OUT.HMMB
A172: ui\spAreaTitle | B172: event_title_03.tpk | C172: UI_EVENT_TITLE_01.TEXB | D172: UI_EVENT_TITLE_03.HUBB | E172: UI_EVENT_TITLE_03.HUDB | F172: UI_EVENT_TITLE_03.HUMB | G172: UI_EVENT_TITLE_03_IN.HMCB | H172: UI_EVENT_TITLE_03_OUT.HMMB
A173: ui | B173: event_title.tpk | C173: UI_EVENT_TITLE_01.TEXB | D173: UI_EVENT_TITLE_01.HUBB | E173: UI_EVENT_TITLE_01.HUDB | F173: UI_EVENT_TITLE_01.HUMB | G173: UI_EVENT_TITLE_01_IN.HMCB | H173: UI_EVENT_TITLE_01_IN.HMTB | I173: UI_EVENT_TITLE_01_OUT.HMCB | J173: UI_EVENT_TITLE_01_OUT.HMMB
A174: ui | B174: titleL.tpk | C174: UI_LOGO_0001.TEXB | D174: UI_LOGO_0101.TEXB | E174: UI_LOGO_0102.TEXB | F174: LOGO0.HMCB | G174: LOGO0.HUBB | H174: LOGO0.HUDB | I174: LOGO0.HUMB | J174: LOGO1.HMCB | K174: LOGO1.HUBB | L174: LOGO1.HUDB | M174: LOGO1.HUMB | N174: LOGO2.HMCB | O174: LOGO2.HUBB | P174: LOGO2.HUDB | Q174: LOGO2.HUMB
